Workbook

Sheet Instructions

Sheet Filters
A1: Filters
J3: Sample Size: | M3: =SUBTOTAL(102,Data!$J:$J) -> 1616
D5: Proposal Improvement/Work Type
D22: Proposal Information

Sheet Results
B1: Results | J1: Combined Asphalt Results
B3: Mobilization Results | E3: Traffic Control Project Results
B4: Sample Size: | C4: =SUBTOTAL(102, Data!AB:AB) -> 1616 | E4: Sample Size: | F4: =SUBTOTAL(102, Data!AD:AD) -> 1606
B5: Expected Range (lower limit): | C5: =_xlfn.AGGREGATE(16,5,Data!$AB:$AB,0.05) -> 0.015 | E5: Expected Range (lower limit): | F5: =_xlfn.AGGREGATE(16,5,Data!$AD:$AD,0.05) -> 0.001 | G5: =_xlfn.AGGREGATE(16,5,Data!$AC:$AC,0.05) -> 1027.975
B6: Typical Middle Value: | C6: =_xlfn.AGGREGATE(16,5,Data!$AB:$AB,0.5) -> 0.068 | E6: Typical Middle Value: | F6: =_xlfn.AGGREGATE(16,5,Data!$AD:$AD,0.5) -> 0.004 | G6: =_xlfn.AGGREGATE(16,5,Data!$AC:$AC,0.5) -> 6245
B7: Expected Range (upper limit): | C7: =_xlfn.AGGREGATE(16,5,Data!$AB:$AB,0.95) -> 0.196 | E7: Expected Range (upper limit): | F7: =_xlfn.AGGREGATE(16,5,Data!$AD:$AD,0.95) -> 0.04375 | G7: =_xlfn.AGGREGATE(16,5,Data!$AC:$AC,0.95) -> 135691.25
B9: Average Number of Bidders | C9: =SUBTOTAL(101,Data!R:R) -> 3.042079208
B11: Item Classification Totals
C12: Lower Limit | D12: 2
B13: Expected Range: | C13: Middle Value | D13: =IF(D12=1,0.05,IF(D12=2,0.5,0.95)) -> 0.5
C14: Upper Limit
B15: Item Class | C15: =IF(D12=1,C12,IF(D12=2,C13,C14)) -> Middle Value | D15: Item Class Code
B16: SPVs (Default) | C16: =_xlfn.AGGREGATE(16,5,Data!$AE:$AE,$D$13) -> 0.019 | D16: AAA
B17: Asphalt | C17: =_xlfn.AGGREGATE(16,5,Data!$AF:$AF,$D$13) -> 0.102 | D17: ASPH
B18: Base Aggregate | C18: =_xlfn.AGGREGATE(16,5,Data!$AG:$AG,$D$13) -> 0.037 | D18: BASE
B19: Bridge Painting | C19: =_xlfn.AGGREGATE(16,5,Data!$AH:$AH,$D$13) -> 0 | D19: BRPT
B20: Concrete Pavement | C20: =_xlfn.AGGREGATE(16,5,Data!$AI:$AI,$D$13) -> 0.003 | D20: CONC
B21: Curb & Gutter, Sidewalk | C21: =_xlfn.AGGREGATE(16,5,Data!$AJ:$AJ,$D$13) -> 0.002 | D21: CURB | F21: Average Cost per Mile
B22: Drainage Culverts Conduits | C22: =_xlfn.AGGREGATE(16,5,Data!$AK:$AK,$D$13) -> 0.007 | D22: DRNG
B23: Electrical | C23: =_xlfn.AGGREGATE(16,5,Data!$AL:$AL,$D$13) -> 0 | D23: ELEC | F23: =IFERROR(SUMPRODUCT((Table1[Bid Cost per Mile]<>" ")* SUBTOTAL(109, OFFSET(Data!S2, ROW(Table1[Total Bid Amount])- ROW(Data!S2),)))/SUMPRODUCT((Table1[Bid Cost per Mile]<>" ")* SUBTOTAL(109, OFFSET(Data!E2, ROW(Table1[Proposal Length])- ROW(Data!E2),))),"No proposal lengths") -> 701397.055
B24: Erosion Control | C24: =_xlfn.AGGREGATE(16,5,Data!$AM:$AM,$D$13) -> 0.019 | D24: EROC | F24: Note: Mile calculations use centerline, proposal length, not lane miles. Divided highways are not doubled.
B25: Earthwork | C25: =_xlfn.AGGREGATE(16,5,Data!$AN:$AN,$D$13) -> 0.037 | D25: ERTH
B26: Gates and Fences | C26: =_xlfn.AGGREGATE(16,5,Data!$AO:$AO,$D$13) -> 0 | D26: FENC
B27: Beamguard | C27: =_xlfn.AGGREGATE(16,5,Data!$AP:$AP,$D$13) -> 0.001 | D27: GDRL
B28: Intelligent Transportation Systems | C28: =_xlfn.AGGREGATE(16,5,Data!$AQ:$AQ,$D$13) -> 0 | D28: ITS
B29: Landscaping | C29: =_xlfn.AGGREGATE(16,5,Data!$AR:$AR,$D$13) -> 0.002 | D29: LSCP
B30: Lighting | C30: =_xlfn.AGGREGATE(16,5,Data!$AS:$AS,$D$13) -> 0 | D30: LTNG
B31: Miscellaneous or Specialty Work | C31: =_xlfn.AGGREGATE(16,5,Data!$AT:$AT,$D$13) -> 0.017 | D31: MISC
B32: Mobilization | C32: =_xlfn.AGGREGATE(16,5,Data!$AB:$AB,$D$13) -> 0.068 | D32: MOBL
B33: Pavement Marking | C33: =_xlfn.AGGREGATE(16,5,Data!$AU:$AU,$D$13) -> 0.02 | D33: PVMK
B34: Removal Asphalt Pavement | C34: =_xlfn.AGGREGATE(16,5,Data!$AV:$AV,$D$13) -> 0.003 | D34: RMVA
B35: Removal Old Structures | C35: =_xlfn.AGGREGATE(16,5,Data!$AW:$AW,$D$13) -> 0 | D35: RMVB
B36: Removal Concrete Pavement | C36: =_xlfn.AGGREGATE(16,5,Data!$AX:$AX,$D$13) -> 0 | D36: RMVC
B37: Removals | C37: =_xlfn.AGGREGATE(16,5,Data!$AY:$AY,$D$13) -> 0.002 | D37: RMVL
B38: Signs | C38: =_xlfn.AGGREGATE(16,5,Data!$AZ:$AZ,$D$13) -> 0.002 | D38: SIGN
B39: Structures | C39: =_xlfn.AGGREGATE(16,5,Data!$BA:$BA,$D$13) -> 0.006 | D39: STRC
B40: Survey | C40: =_xlfn.AGGREGATE(16,5,Data!$BB:$BB,$D$13) -> 0.004 | D40: SURV
B41: Traffic Control Permanent | C41: =_xlfn.AGGREGATE(16,5,Data!$BC:$BC,$D$13) -> 0 | D41: TRFP
B42: Traffic Control Temporary | C42: =_xlfn.AGGREGATE(16,5,Data!$BD:$BD,$D$13) -> 0.013 | D42: TRFT

Sheet Data
A1: Improvement Type | B1: Improvement Concept | C1: Contract Work Type | D1: Work Rating | E1: Proposal Length | F1: Urban/ Rural | G1: Project Size | H1: Let Date | I1: Let Calendar Year | J1: Proposal ID | K1: Controlling Project ID | L1: Subprogram (by Controlling Project ID) | M1: Region | N1: County | O1: Route | P1: Proposal Description | Q1: Low Bidder | R1: Number of Bidders | S1: Total Bid Amount | T1: Bid Cost per Mile | U1: Item Number (for largest mix) | V1: Item Description (for largest mix) | W1: Total HMA Qty (TON) | X1: Ave HMA Unit Price (DOL/TON) | Y1: Number of Mixes | Z1: PWL Project | AA1: Mobilization Bid Price | AB1: Mobilization Percentage | AC1: Traffic Control Item Price | AD1: Traffic Control Item Percentage | AE1: SPVs (AAA) | AF1: ASPH | AG1: BASE | AH1: BRPT | AI1: CONC | AJ1: CURB | AK1: DRNG | AL1: ELEC | AM1: EROC | AN1: ERTH | AO1: FENC | AP1: GDRL | AQ1: ITS | AR1: LSCP | AS1: LTNG | AT1: MISC | AU1: PVMK | AV1: RMVA | AW1: RMVB | AX1: RMVC | AY1: RMVL | AZ1: SIGN | BA1: STRC | BB1: SURV | BC1: TRFP | BD1: TRFT
A2: Reconstruction | B2: RECONSTRUCTION, PRESERVATION | C2: General Construction | D2: General Construction | E2: 1.618 | F2: Rural | G2: $10M to $20M | H2: 2024-02-13 | I2: 2024 | J2: 20240213002 | K2: 1646-08-72 | L2: STATE HIGHWAY REHABILITATION | M2: SW | N2: Vernon | O2: USH 014 | P2: C Westby, N Main Street; High Echo Lane to Locust Street | Q2: ZIGNEGO COMPANY, INC. | R2: 6 | S2: 11866381.84 | T2: =IFERROR(Table1[[#This Row],[Total Bid Amount]]/Table1[[#This Row],[Proposal Length]]," ") -> 7333981.36 | U2: 460.6224 | V2: HMA Pavement 4 MT 58-28 S | W2: 1090 | X2: 137.88 | Y2: 1 | AA2: 652000 | AB2: 0.055 | AC2: 76000 | AD2: 0.006 | AE2: 0.067 | AF2: 0.095 | AG2: 0.107 | AH2: 0 | AI2: 0.262 | AJ2: 0.101 | AK2: 0.111 | AL2: 0.025 | AM2: 0.027 | AN2: 0.051 | AO2: 0.001 | AP2: 0 | AQ2: 0 | AR2: 0.009 | AS2: 0.001 | AT2: 0.018 | AU2: 0.008 | AV2: 0.005 | AW2: 0 | AX2: 0.01 | AY2: 0.008 | AZ2: 0.004 | BA2: 0.011 | BB2: 0.005 | BC2: 0.001 | BD2: 0.018
A3: Resurfacing | B3: PARTIAL DEPTH CIR WITH > 2.5 INCH CAP | C3: General Construction | D3: General Construction | E3: 12.007 | F3: Rural | G3: $ 2M to $10M | H3: 2024-02-13 | I3: 2024 | J3: 20240213003 | K3: 5080-02-74 | L3: STATE HIGHWAY REHABILITATION | M3: SW | N3: Sauk | O3: STH 023 | P3: Spring Green - Reedsburg; USH 14 to CTH Gg | Q3: D L GASSER CONSTRUCTION | R3: 2 | S3: 9447234.37 | T3: =IFERROR(Table1[[#This Row],[Total Bid Amount]]/Table1[[#This Row],[Proposal Length]]," ") -> 786810.558 | U3: 460.6224 | V3: HMA Pavement 4 MT 58-28 S | W3: 44122 | X3: 73.55145098 | Y3: 2 | Z3: X | AA3: 344434.34 | AB3: 0.036 | AC3: 31068.36 | AD3: 0.003 | AE3: 0.04 | AF3: 0.39 | AG3: 0.115 | AH3: 0 | AI3: 0.009 | AJ3: 0.018 | AK3: 0.026 | AL3: 0 | AM3: 0.059 | AN3: 0.021 | AO3: 0 | AP3: 0.08 | AQ3: 0 | AR3: 0.002 | AS3: 0 | AT3: 0.013 | AU3: 0.033 | AV3: 0.027 | AW3: 0.01 | AX3: 0 | AY3: 0.005 | AZ3: 0.002 | BA3: 0.094 | BB3: 0.005 | BC3: 0 | BD3: 0.014
A4: Reconstruction | B4: RECONSTRUCTION, PRESERVATION | C4: Grading | D4: General Construction and Grading | E4: 0.843 | F4: Rural | G4: $ 1M to $ 2M | H4: 2024-02-13 | I4: 2024 | J4: 20240213004 | K4: 5305-00-71 | L4: LOCAL TRANSPORTATION FACILITY IMPROVEMENT ASSISTANCE | M4: SW | N4: Vernon | O4: CTH SS | P4: T Liberty - STH 56; Pea Vine Road to STH 56 | Q4: INTEGRITY GRADING AND EXCAVATING, INC. | R4: 5 | S4: 1921489.48 | T4: =IFERROR(Table1[[#This Row],[Total Bid Amount]]/Table1[[#This Row],[Proposal Length]]," ") -> 2279346.951 | U4: 460.6223 | V4: HMA Pavement 3 MT 58-28 S | W4: 2880 | X4: 99.3475 | Y4: 2 | AA4: 161500 | AB4: 0.084 | AC4: 1000 | AD4: 0.001 | AE4: 0 | AF4: 0.152 | AG4: 0.067 | AH4: 0 | AI4: 0 | AJ4: 0 | AK4: 0.048 | AL4: 0 | AM4: 0.101 | AN4: 0.437 | AO4: 0 | AP4: 0.08 | AQ4: 0 | AR4: 0.002 | AS4: 0 | AT4: 0.012 | AU4: 0.005 | AV4: 0 | AW4: 0 | AX4: 0 | AY4: 0.004 | AZ4: 0.002 | BA4: 0 | BB4: 0.003 | BC4: 0 | BD4: 0.003
A5: Bridge Replacement | B5: BRIDGE REPLACEMENT, PRESERVATION | C5: Structures | D5: General Const and Highway Structures | E5: 0.065 | F5: Rural | G5: $ 0.5M or less | H5: 2024-02-13 | I5: 2024 | J5: 20240213005 | K5: 5346-00-71 | L5: HIGHWAY AND LOCAL BRIDGE IMPROVEMENT ASSISTANCE | M5: SW | N5: La Crosse | O5: LOC STR | P5: Town of Barre, Drogseth Road; Bostwick Creek Bridge B-32-0231 | Q5: RADTKE CONTRACTORS INC. | R5: 7 | S5: 495186.95 | T5: =IFERROR(Table1[[#This Row],[Total Bid Amount]]/Table1[[#This Row],[Proposal Length]]," ") -> 7618260.769 | AA5: 81974.73 | AB5: 0.166 | AC5: 2459.58 | AD5: 0.005 | AE5: 0.004 | AF5: 0.035 | AG5: 0.036 | AH5: 0 | AI5: 0.002 | AJ5: 0 | AK5: 0.002 | AL5: 0 | AM5: 0.075 | AN5: 0.148 | AO5: 0 | AP5: 0 | AQ5: 0 | AR5: 0.004 | AS5: 0 | AT5: 0.013 | AU5: 0 | AV5: 0 | AW5: 0.028 | AX5: 0 | AY5: 0.001 | AZ5: 0.004 | BA5: 0.459 | BB5: 0.012 | BC5: 0 | BD5: 0.011
A6: Pavement Replacement | B6: PAVEMENT REPLACEMENT | C6: General Construction | D6: General and Incidental Construction | E6: 1.195 | F6: Unknown | G6: $ 2M to $10M | H6: 2024-02-13 | I6: 2024 | J6: 20240213006 | K6: 5350-02-70 | L6: STATE HIGHWAY REHABILITATION | M6: SW | N6: Rock | O6: USH 051 | P6: C Janesville, Center Avenue; Nicolet Street to Court Street | Q6: ROCK ROAD COMPANIES, INC. | R6: 3 | S6: 9416113.91 | T6: =IFERROR(Table1[[#This Row],[Total Bid Amount]]/Table1[[#This Row],[Proposal Length]]," ") -> 7879593.23 | U6: 460.6224 | V6: HMA Pavement 4 MT 58-28 S | W6: 691 | X6: 125 | Y6: 1 | AA6: 594091.54 | AB6: 0.063 | AC6: 82530 | AD6: 0.009 | AE6: 0.177 | AF6: 0.011 | AG6: 0.072 | AH6: 0.005 | AI6: 0.255 | AJ6: 0.061 | AK6: 0.042 | AL6: 0.033 | AM6: 0.003 | AN6: 0.1 | AO6: 0.003 | AP6: 0.01 | AQ6: 0 | AR6: 0.014 | AS6: 0 | AT6: 0.02 | AU6: 0.005 | AV6: 0.001 | AW6: 0.002 | AX6: 0.021 | AY6: 0.01 | AZ6: 0.004 | BA6: 0.058 | BB6: 0.002 | BC6: 0.012 | BD6: 0.016
A7: Miscellaneous | B7: MISCELLANEOUS | C7: General Construction | D7: Incidental Construction | E7: 3.457 | F7: Rural | G7: $ 0.5M or less | H7: 2024-02-13 | I7: 2024 | J7: 20240213007 | K7: 5899-00-60 | L7: LOCAL TRANSPORTATION FACILITY IMPROVEMENT ASSISTANCE | M7: SW | N7: Sauk | O7: CTH HH | P7: Reedsburg - Lyndon Station; CTH H to the Juneau County Line CTH Hh | Q7: CENTURY FENCE COMPANY | R7: 2 | S7: 148098.9 | T7: =IFERROR(Table1[[#This Row],[Total Bid Amount]]/Table1[[#This Row],[Proposal Length]]," ") -> 42840.29505 | AA7: 17500 | AB7: 0.118 | AC7: 6500 | AD7: 0.044 | AE7: 0 | AF7: 0.072 | AG7: 0 | AH7: 0 | AI7: 0 | AJ7: 0 | AK7: 0 | AL7: 0 | AM7: 0 | AN7: 0 | AO7: 0 | AP7: 0 | AQ7: 0 | AR7: 0 | AS7: 0 | AT7: 0 | AU7: 0.623 | AV7: 0 | AW7: 0 | AX7: 0 | AY7: 0 | AZ7: 0.099 | BA7: 0 | BB7: 0.02 | BC7: 0 | BD7: 0.068
A8: Miscellaneous | B8: MISCELLANEOUS | C8: General Construction | D8: General and Incidental Construction | E8: 0.216 | F8: Urban | G8: $ 0.5M to $ 1M | H8: 2024-02-13 | I8: 2024 | J8: 20240213008 | K8: 7189-03-72 | L8: STATE HIGHWAY REHABILITATION | M8: SW | N8: Monroe | O8: USH 012 | P8: Black River Falls - Tomah; Wittig Road Intersection | Q8: CHIPPEWA CONCRETE SERVICES, INC. | R8: 3 | S8: 962997.36 | T8: =IFERROR(Table1[[#This Row],[Total Bid Amount]]/Table1[[#This Row],[Proposal Length]]," ") -> 4458321.111 | U8: 460.6424 | V8: HMA Pavement 4 MT 58-28 H | W8: 372 | X8: 172.8611022 | Y8: 1 | AA8: 105644.46 | AB8: 0.11 | AC8: 10310.96 | AD8: 0.011 | AE8: 0.001 | AF8: 0.07 | AG8: 0.044 | AH8: 0 | AI8: 0.114 | AJ8: 0.096 | AK8: 0.018 | AL8: 0.236 | AM8: 0.01 | AN8: 0.019 | AO8: 0 | AP8: 0 | AQ8: 0.002 | AR8: 0.001 | AS8: 0.008 | AT8: 0.09 | AU8: 0.022 | AV8: 0.004 | AW8: 0 | AX8: 0.005 | AY8: 0.007 | AZ8: 0.005 | BA8: 0 | BB8: 0.006 | BC8: 0.09 | BD8: 0.044
A9: Resurfacing | B9: RESURFACING (OVERLAY < 2.5 INCHES) | C9: Asphaltic Pavement | D9: General Const and Asphaltic Surfacing | E9: 2.241 | F9: Unknown | G9: $ 2M to $10M | H9: 2024-02-13 | I9: 2024 | J9: 20240213010 | K9: 2040-03-75 | L9: STATE HIGHWAY REHABILITATION | M9: SE | N9: Milwaukee | O9: STH 100 | P9: Ryan Road; Shepard Ave to STH 32 | Q9: PAYNE AND DOLAN, INC | R9: 2 | S9: 2470800.39 | T9: =IFERROR(Table1[[#This Row],[Total Bid Amount]]/Table1[[#This Row],[Proposal Length]]," ") -> 1102543.681 | U9: 460.6224 | V9: HMA Pavement 4 MT 58-28 S | W9: 12230 | X9: 64.16 | Y9: 1 | Z9: X | AA9: 98480.49 | AB9: 0.04 | AC9: 19000 | AD9: 0.008 | AE9: 0.038 | AF9: 0.362 | AG9: 0.014 | AH9: 0.032 | AI9: 0.014 | AJ9: 0.003 | AK9: 0.002 | AL9: 0.02 | AM9: 0.024 | AN9: 0.019 | AO9: 0.014 | AP9: 0.026 | AQ9: 0 | AR9: 0.003 | AS9: 0 | AT9: 0.037 | AU9: 0.044 | AV9: 0.04 | AW9: 0.081 | AX9: 0.002 | AY9: 0.005 | AZ9: 0.007 | BA9: 0.147 | BB9: 0.002 | BC9: 0.005 | BD9: 0.019
A10: Reconstruction | B10: RECONSTRUCTION, PRESERVATION | C10: General Construction | D10: General and Incidental Construction | E10: 1.2 | F10: Unknown | G10: $10M to $20M | H10: 2024-02-13 | I10: 2024 | J10: 20240213011 | K10: 2395-05-71 | L10: LOCAL TRANSPORTATION FACILITY IMPROVEMENT ASSISTANCE | M10: SE | N10: Milwaukee | O10: LOC STR | P10: C Milwaukee E/W Howard Avenue; S 6th Street to S Clement Avenue | Q10: ZIGNEGO COMPANY, INC. | R10: 4 | S10: 12858249.79 | T10: =IFERROR(Table1[[#This Row],[Total Bid Amount]]/Table1[[#This Row],[Proposal Length]]," ") -> 10715208.16 | AA10: 386000 | AB10: 0.03 | AC10: 103000 | AD10: 0.008 | AE10: 0.329 | AF10: 0.018 | AG10: 0.039 | AH10: 0 | AI10: 0.152 | AJ10: 0.077 | AK10: 0.01 | AL10: 0.118 | AM10: 0.005 | AN10: 0.07 | AO10: 0 | AP10: 0 | AQ10: 0 | AR10: 0.014 | AS10: 0.005 | AT10: 0.032 | AU10: 0.004 | AV10: 0.002 | AW10: 0 | AX10: 0.015 | AY10: 0.04 | AZ10: 0.002 | BA10: 0 | BB10: 0.004 | BC10: 0.019 | BD10: 0.014
A11: Reconstruction | B11: RECONSTRUCTION, PRESERVATION | C11: Grading | D11: General Construction and Grading | E11: 1.832 | F11: Rural | G11: $ 2M to $10M | H11: 2024-02-13 | I11: 2024 | J11: 20240213012 | K11: 2711-06-70 | L11: LOCAL TRANSPORTATION FACILITY IMPROVEMENT ASSISTANCE | M11: SE | N11: Washington | O11: CTH P | P11: Polk - Jackson STH 145 to Sherman Road CTH P Washington County | Q11: MASHUDA CONTRACTORS, INC. | R11: 8 | S11: 4066451.87 | T11: =IFERROR(Table1[[#This Row],[Total Bid Amount]]/Table1[[#This Row],[Proposal Length]]," ") -> 2219678.968 | U11: 460.6223 | V11: HMA Pavement 3 MT 58-28 S | W11: 16090 | X11: 58.40034183 | Y11: 3 | AA11: 224880 | AB11: 0.055 | AC11: 5450 | AD11: 0.001 | AE11: 0.018 | AF11: 0.248 | AG11: 0.261 | AH11: 0 | AI11: 0.001 | AJ11: 0.013 | AK11: 0.108 | AL11: 0 | AM11: 0.031 | AN11: 0.148 | AO11: 0 | AP11: 0 | AQ11: 0 | AR11: 0.009 | AS11: 0 | AT11: 0.017 | AU11: 0.005 | AV11: 0 | AW11: 0.008 | AX11: 0.012 | AY11: 0.007 | AZ11: 0.002 | BA11: 0.047 | BB11: 0.006 | BC11: 0 | BD11: 0.005
A12: Miscellaneous | B12: MISCELLANEOUS | C12: General Construction | D12: General Construction | E12: 0.198 | F12: Rural | G12: $ 1M to $ 2M | H12: 2024-02-13 | I12: 2024 | J12: 20240213013 | K12: 2816-03-70 | L12: LOCAL TRANSPORTATION FACILITY IMPROVEMENT ASSISTANCE | M12: SE | N12: Racine | O12: CTH U | P12: V Raymond CTH U; Intersection With 7 Mile Road | Q12: MICHELS ROAD & STONE, INC. | R12: 6 | S12: 1294053.13 | T12: =IFERROR(Table1[[#This Row],[Total Bid Amount]]/Table1[[#This Row],[Proposal Length]]," ") -> 6535621.869 | U12: 460.5223 | V12: HMA Pavement 3 LT 58-28 S | W12: 2078 | X12: 73.21607315 | Y12: 2 | AA12: 62853.91 | AB12: 0.049 | AC12: 9000 | AD12: 0.007 | AE12: 0 | AF12: 0.123 | AG12: 0.27 | AH12: 0 | AI12: 0.061 | AJ12: 0.101 | AK12: 0.077 | AL12: 0.062 | AM12: 0.054 | AN12: 0.084 | AO12: 0 | AP12: 0 | AQ12: 0 | AR12: 0.006 | AS12: 0.012 | AT12: 0.041 | AU12: 0.008 | AV12: 0.002 | AW12: 0 | AX12: 0 | AY12: 0.002 | AZ12: 0.022 | BA12: 0 | BB12: 0.008 | BC12: 0.003 | BD12: 0.016
A13: Bridge Rehabilitation | B13: BRIDGE REHABILITATION | C13: Structures | D13: Highway Structures | E13: 0.184 | F13: Unknown | G13: $ 2M to $10M | H13: 2024-02-13 | I13: 2024 | J13: 20240213015 | K13: 2984-12-74 | L13: HIGHWAY AND LOCAL BRIDGE IMPROVEMENT ASSISTANCE | M13: SE | N13: Milwaukee | O13: LOC STR | P13: C Milwaukee, N Holton St Phase 2; Br Over Milw Rvr, Commerce, Water | Q13: ZENITH TECH., INC. - WAUKESHA | R13: 2 | S13: 4807409.25 | T13: =IFERROR(Table1[[#This Row],[Total Bid Amount]]/Table1[[#This Row],[Proposal Length]]," ") -> 26127224.18 | AA13: 540000 | AB13: 0.112 | AC13: 4100 | AD13: 0.001 | AE13: 0.133 | AF13: 0.001 | AG13: 0.001 | AH13: 0.186 | AI13: 0 | AJ13: 0.002 | AK13: 0 | AL13: 0.001 | AM13: 0.003 | AN13: 0.006 | AO13: 0 | AP13: 0 | AQ13: 0 | AR13: 0 | AS13: 0 | AT13: 0.014 | AU13: 0.001 | AV13: 0.001 | AW13: 0.081 | AX13: 0 | AY13: 0 | AZ13: 0 | BA13: 0.453 | BB13: 0.001 | BC13: 0 | BD13: 0.002
A14: Resurfacing | B14: RESURF (OVERLAY < 2.5 IN W/SOME FULL DEPTH PATCHG) | C14: Asphaltic Pavement | D14: General Const and Asphaltic Surfacing | E14: 6.014 | F14: Rural | G14: $ 2M to $10M | H14: 2024-02-13 | I14: 2024 | J14: 20240213016 | K14: 3190-11-70 | L14: STATE HIGHWAY REHABILITATION | M14: SE | N14: Walworth | O14: STH 036 | P14: Springfield to Burlington; STH 120 to STH 11 | Q14: PAYNE AND DOLAN, INC | R14: 2 | S14: 2960954.64 | T14: =IFERROR(Table1[[#This Row],[Total Bid Amount]]/Table1[[#This Row],[Proposal Length]]," ") -> 492343.6382 | U14: 460.5224 | V14: HMA Pavement 4 LT 58-28 S | W14: 15400 | X14: 71.65519481 | Y14: 2 | Z14: X | AA14: 168261 | AB14: 0.057 | AC14: 18150 | AD14: 0.006 | AE14: 0.079 | AF14: 0.404 | AG14: 0.032 | AH14: 0 | AI14: 0.005 | AJ14: 0.016 | AK14: 0.005 | AL14: 0 | AM14: 0.023 | AN14: 0.014 | AO14: 0 | AP14: 0.018 | AQ14: 0 | AR14: 0.001 | AS14: 0 | AT14: 0.017 | AU14: 0.051 | AV14: 0.037 | AW14: 0.014 | AX14: 0 | AY14: 0.003 | AZ14: 0.005 | BA14: 0.191 | BB14: 0.004 | BC14: 0 | BD14: 0.021
A15: Miscellaneous | B15: MISCELLANEOUS | C15: General Construction | D15: Incidental Construction | E15: 5.121 | F15: Rural | G15: $ 0.5M or less | H15: 2024-02-13 | I15: 2024 | J15: 20240213017 | K15: 4822-07-71 | L15: LOCAL TRANSPORTATION FACILITY IMPROVEMENT ASSISTANCE | M15: SE | N15: Ozaukee | O15: CTH H | P15: Fredonia - Port Washington; CTH A-CTH Kw | Q15: CENTURY FENCE COMPANY | R15: 3 | S15: 136980.75 | T15: =IFERROR(Table1[[#This Row],[Total Bid Amount]]/Table1[[#This Row],[Proposal Length]]," ") -> 26748.82835 | AA15: 22500 | AB15: 0.164 | AC15: 5000 | AD15: 0.037 | AE15: 0 | AF15: 0.217 | AG15: 0 | AH15: 0 | AI15: 0 | AJ15: 0 | AK15: 0 | AL15: 0 | AM15: 0 | AN15: 0.004 | AO15: 0 | AP15: 0 | AQ15: 0 | AR15: 0 | AS15: 0 | AT15: 0 | AU15: 0.506 | AV15: 0 | AW15: 0 | AX15: 0 | AY15: 0 | AZ15: 0.071 | BA15: 0 | BB15: 0 | BC15: 0 | BD15: 0.038
A16: Expansion | B16: RECONSTRUCTION, EXPANSION | C16: General Construction | D16: General Construction | E16: 0.816 | F16: Unknown | G16: $20M or more | H16: 2024-02-13 | I16: 2024 | J16: 20240213018 | K16: 1130-64-76 | L16: MAJOR HIGHWAY DEVELOPMENT | M16: NE | N16: Outagamie | O16: IH 041 | P16: Appleton - De Pere; Northland/STH 15 Intchg B440315/16 | Q16: MICHELS ROAD & STONE, INC. | R16: 7 | S16: 27720351.3 | T16: =IFERROR(Table1[[#This Row],[Total Bid Amount]]/Table1[[#This Row],[Proposal Length]]," ") -> 33971018.75 | U16: 460.5224 | V16: HMA Pavement 4 LT 58-28 S | W16: 742 | X16: 89.37735849 | Y16: 3 | AA16: 1456816.2 | AB16: 0.053 | AC16: 126950 | AD16: 0.005 | AE16: 0.237 | AF16: 0.027 | AG16: 0.064 | AH16: 0 | AI16: 0.118 | AJ16: 0.024 | AK16: 0.087 | AL16: 0.025 | AM16: 0.021 | AN16: 0.057 | AO16: 0.004 | AP16: 0.022 | AQ16: 0.005 | AR16: 0.003 | AS16: 0.001 | AT16: 0.023 | AU16: 0.011 | AV16: 0 | AW16: 0.027 | AX16: 0.002 | AY16: 0.006 | AZ16: 0.003 | BA16: 0.143 | BB16: 0 | BC16: 0.004 | BD16: 0.033
A17: Bridge Rehab. & Preventive | B17: BRIDGE PREVENTIVE | C17: Structures | D17: General and Struct and Incidental Const | E17: 2.144 | F17: Rural | G17: $ 0.5M or less | H17: 2024-02-13 | I17: 2024 | J17: 20240213019 | K17: 1146-75-80 | L17: MAJOR HIGHWAY DEVELOPMENT | M17: NE | N17: Outagamie | O17: STH 015 | P17: STH 76 - New London; CTH Jj - CTH T/Givens Rd | Q17: NORCON CORPORATION | R17: 3 | S17: 212738.55 | T17: =IFERROR(Table1[[#This Row],[Total Bid Amount]]/Table1[[#This Row],[Proposal Length]]," ") -> 99225.06996 | AA17: 5110 | AB17: 0.024 | AC17: 20000 | AD17: 0.094 | AE17: 0 | AF17: 0 | AG17: 0 | AH17: 0 | AI17: 0 | AJ17: 0 | AK17: 0 | AL17: 0 | AM17: 0 | AN17: 0 | AO17: 0 | AP17: 0 | AQ17: 0 | AR17: 0 | AS17: 0 | AT17: 0 | AU17: 0.049 | AV17: 0 | AW17: 0 | AX17: 0 | AY17: 0 | AZ17: 0 | BA17: 0.8 | BB17: 0 | BC17: 0 | BD17: 0.127
A18: Reconstruction | B18: RECONSTRUCTION, PRESERVATION | C18: General Construction | D18: General and Incidental Construction | E18: 1.533 | F18: Unknown | G18: $ 2M to $10M | H18: 2024-02-13 | I18: 2024 | J18: 20240213020 | K18: 4517-06-71 | L18: LOCAL TRANSPORTATION FACILITY IMPROVEMENT ASSISTANCE | M18: NE | N18: Brown | O18: LOC STR | P18: V Allouez, Libal Street; STH 172 to Kalb Ave | Q18: DORNER INC. | R18: 6 | S18: 3947522.4 | T18: =IFERROR(Table1[[#This Row],[Total Bid Amount]]/Table1[[#This Row],[Proposal Length]]," ") -> 2575030.92 | U18: 460.6223 | V18: HMA Pavement 3 MT 58-28 S | W18: 11090 | X18: 78.46979261 | Y18: 2 | AA18: 134500 | AB18: 0.034 | AC18: 15865 | AD18: 0.004 | AE18: 0.115 | AF18: 0.235 | AG18: 0.069 | AH18: 0 | AI18: 0.043 | AJ18: 0.096 | AK18: 0.196 | AL18: 0 | AM18: 0.033 | AN18: 0.056 | AO18: 0 | AP18: 0 | AQ18: 0 | AR18: 0.003 | AS18: 0 | AT18: 0.018 | AU18: 0.018 | AV18: 0.016 | AW18: 0 | AX18: 0.003 | AY18: 0.045 | AZ18: 0.007 | BA18: 0 | BB18: 0.007 | BC18: 0 | BD18: 0.007
A19: Reconstruction | B19: RECONSTRUCTION, PRESERVATION | C19: General Construction | D19: General and Incidental Construction | E19: 0.483 | F19: Unknown | G19: $ 2M to $10M | H19: 2024-02-13 | I19: 2024 | J19: 20240213021 | K19: 4831-05-71 | L19: LOCAL TRANSPORTATION FACILITY IMPROVEMENT ASSISTANCE | M19: NE | N19: Fond Du Lac | O19: CTH VV | P19: C Fond Du Lac, CTH Vv CTH V to Martin Avenue | Q19: VINTON CONSTRUCTION COMPANY | R19: 3 | S19: 3694062.44 | T19: =IFERROR(Table1[[#This Row],[Total Bid Amount]]/Table1[[#This Row],[Proposal Length]]," ") -> 7648162.402 | U19: 460.6223 | V19: HMA Pavement 3 MT 58-28 S | W19: 4460 | X19: 71.16479821 | Y19: 2 | AA19: 124000 | AB19: 0.034 | AC19: 7250 | AD19: 0.002 | AE19: 0.263 | AF19: 0.101 | AG19: 0.09 | AH19: 0 | AI19: 0.03 | AJ19: 0.046 | AK19: 0.198 | AL19: 0.069 | AM19: 0.026 | AN19: 0.053 | AO19: 0 | AP19: 0 | AQ19: 0.001 | AR19: 0.002 | AS19: 0.002 | AT19: 0.035 | AU19: 0.007 | AV19: 0 | AW19: 0.004 | AX19: 0 | AY19: 0.011 | AZ19: 0.003 | BA19: 0 | BB19: 0.003 | BC19: 0.018 | BD19: 0.005
A20: Reconstruction | B20: RECONSTRUCTION, PRESERVATION | C20: Concrete Pavement | D20: General Construction and PCC Pavement | E20: 0.553 | F20: Unknown | G20: $ 2M to $10M | H20: 2024-02-13 | I20: 2024 | J20: 20240213022 | K20: 4985-00-62 | L20: LOCAL TRANSPORTATION FACILITY IMPROVEMENT ASSISTANCE | M20: NE | N20: Brown | O20: LOC STR | P20: C Depere, Lawrence Drive; Fortune Avenue to Scheuring Road | Q20: VINTON CONSTRUCTION COMPANY | R20: 4 | S20: 2342282.72 | T20: =IFERROR(Table1[[#This Row],[Total Bid Amount]]/Table1[[#This Row],[Proposal Length]]," ") -> 4235592.622 | AA20: 309500 | AB20: 0.132 | AC20: 5500 | AD20: 0.002 | AE20: 0.024 | AF20: 0.003 | AG20: 0.061 | AH20: 0 | AI20: 0.305 | AJ20: 0.098 | AK20: 0.075 | AL20: 0.068 | AM20: 0.026 | AN20: 0.088 | AO20: 0 | AP20: 0 | AQ20: 0 | AR20: 0.002 | AS20: 0.007 | AT20: 0.048 | AU20: 0.015 | AV20: 0.001 | AW20: 0 | AX20: 0.008 | AY20: 0.009 | AZ20: 0.005 | BA20: 0 | BB20: 0.006 | BC20: 0.004 | BD20: 0.015
A21: Bridge Replacement | B21: BRIDGE REPLACEMENT, PRESERVATION | C21: Structures | D21: General Const and Highway Structures | E21: 0.065 | F21: Unknown | G21: $ 0.5M to $ 1M | H21: 2024-02-13 | I21: 2024 | J21: 20240213023 | K21: 4986-00-59 | L21: HIGHWAY AND LOCAL BRIDGE IMPROVEMENT ASSISTANCE | M21: NE | N21: Fond Du Lac | O21: LOC STR | P21: V North Fond Du Lac,Mckinley Street; Mosher Creek Bridge | Q21: PHEIFER BROTHERS CONSTRUCTION CO., INC. | R21: 4 | S21: 817253.87 | T21: =IFERROR(Table1[[#This Row],[Total Bid Amount]]/Table1[[#This Row],[Proposal Length]]," ") -> 12573136.46 | AA21: 19904.12 | AB21: 0.024 | AC21: 500 | AD21: 0.001 | AE21: 0.006 | AF21: 0.025 | AG21: 0.046 | AH21: 0 | AI21: 0.101 | AJ21: 0.057 | AK21: 0.096 | AL21: 0 | AM21: 0.044 | AN21: 0.15 | AO21: 0 | AP21: 0 | AQ21: 0 | AR21: 0.001 | AS21: 0 | AT21: 0.025 | AU21: 0.008 | AV21: 0 | AW21: 0.104 | AX21: 0.007 | AY21: 0.006 | AZ21: 0.004 | BA21: 0.279 | BB21: 0.009 | BC21: 0 | BD21: 0.009
A22: Bridge Replacement | B22: BRIDGE REPLACEMENT, PRESERVATION | C22: Structures | D22: Highway Structures | E22: 0.025 | F22: Unknown | G22: $ 0.5M to $ 1M | H22: 2024-02-13 | I22: 2024 | J22: 20240213024 | K22: 4987-12-71 | L22: HIGHWAY AND LOCAL BRIDGE IMPROVEMENT ASSISTANCE | M22: NE | N22: Brown | O22: LOC STR | P22: C Green Bay, Larsen Road; Beaver Dam Creek Bridge | Q22: RADTKE CONTRACTORS INC. | R22: 4 | S22: 659699.62 | T22: =IFERROR(Table1[[#This Row],[Total Bid Amount]]/Table1[[#This Row],[Proposal Length]]," ") -> 26387984.8 | AA22: 82086.93 | AB22: 0.124 | AC22: 3500 | AD22: 0.005 | AE22: 0.001 | AF22: 0 | AG22: 0.009 | AH22: 0 | AI22: 0.078 | AJ22: 0.012 | AK22: 0.002 | AL22: 0 | AM22: 0.054 | AN22: 0.046 | AO22: 0 | AP22: 0.002 | AQ22: 0 | AR22: 0 | AS22: 0 | AT22: 0.016 | AU22: 0.007 | AV22: 0 | AW22: 0.058 | AX22: 0.011 | AY22: 0 | AZ22: 0 | BA22: 0.559 | BB22: 0.005 | BC22: 0 | BD22: 0.016
A23: Bridge Replacement | B23: BRIDGE REPLACEMENT, PRESERVATION | C23: Structures | D23: General Const and Highway Structures | E23: 0.056 | F23: Rural | G23: $ 0.5M or less | H23: 2024-02-13 | I23: 2024 | J23: 20240213025 | K23: 6296-02-71 | L23: HIGHWAY AND LOCAL BRIDGE IMPROVEMENT ASSISTANCE | M23: NE | N23: Fond Du Lac | O23: CTH M | P23: T Rosendale, CTH M; Fond Du Lac River Bridge | Q23: RADTKE CONTRACTORS INC. | R23: 4 | S23: 498453.8 | T23: =IFERROR(Table1[[#This Row],[Total Bid Amount]]/Table1[[#This Row],[Proposal Length]]," ") -> 8900960.714 | AA23: 62558.95 | AB23: 0.126 | AC23: 3600 | AD23: 0.007 | AE23: 0.004 | AF23: 0.054 | AG23: 0.096 | AH23: 0 | AI23: 0.003 | AJ23: 0 | AK23: 0.001 | AL23: 0 | AM23: 0.065 | AN23: 0.115 | AO23: 0 | AP23: 0.061 | AQ23: 0 | AR23: 0.002 | AS23: 0 | AT23: 0.012 | AU23: 0.009 | AV23: 0.002 | AW23: 0.03 | AX23: 0 | AY23: 0 | AZ23: 0.003 | BA23: 0.388 | BB23: 0.006 | BC23: 0 | BD23: 0.024
A24: Pavement Replacement | B24: PAVEMENT REPLACEMENT | C24: Asphaltic Pavement | D24: Gen Const and Grading and Asph Surface | E24: 3.027 | F24: Rural | G24: $ 2M to $10M | H24: 2024-02-13 | I24: 2024 | J24: 20240213026 | K24: 1590-12-76 | L24: STATE HIGHWAY REHABILITATION | M24: NC | N24: Oneida | O24: USH 008 | P24: Rhinelander - Monico; STH 17 North to CTH P | Q24: MUSSON BROS., INC. | R24: 5 | S24: 3226386.81 | T24: =IFERROR(Table1[[#This Row],[Total Bid Amount]]/Table1[[#This Row],[Proposal Length]]," ") -> 1065869.445 | U24: 460.6223 | V24: HMA Pavement 3 MT 58-28 S | W24: 18460 | X24: 65.22760022 | Y24: 2 | AA24: 156221.33 | AB24: 0.048 | AC24: 2000 | AD24: 0.001 | AE24: 0 | AF24: 0.394 | AG24: 0.288 | AH24: 0 | AI24: 0.009 | AJ24: 0.004 | AK24: 0 | AL24: 0.002 | AM24: 0.005 | AN24: 0.162 | AO24: 0 | AP24: 0 | AQ24: 0 | AR24: 0.003 | AS24: 0 | AT24: 0.009 | AU24: 0.028 | AV24: 0.003 | AW24: 0 | AX24: 0.035 | AY24: 0 | AZ24: 0 | BA24: 0 | BB24: 0.005 | BC24: 0 | BD24: 0.004
A25: Reconstruction | B25: RECONSTRUCTION, PRESERVATION | C25: Concrete Pavement | D25: General Construction and PCC Pavement | E25: 1.24 | F25: Urban | G25: $ 2M to $10M | H25: 2024-02-13 | I25: 2024 | J25: 20240213028 | K25: 6767-01-71 | L25: LOCAL TRANSPORTATION FACILITY IMPROVEMENT ASSISTANCE | M25: NC | N25: Portage | O25: CTH B | P25: V Plover, CTH B; Wisconsin Avenue to Hoover Avenue | Q25: ZIGNEGO COMPANY, INC. | R25: 6 | S25: 6385291 | T25: =IFERROR(Table1[[#This Row],[Total Bid Amount]]/Table1[[#This Row],[Proposal Length]]," ") -> 5149428.226 | U25: 460.6224 | V25: HMA Pavement 4 MT 58-28 S | W25: 3500 | X25: 103.2 | Y25: 1 | AA25: 191000 | AB25: 0.03 | AC25: 52525 | AD25: 0.008 | AE25: 0.047 | AF25: 0.078 | AG25: 0.055 | AH25: 0 | AI25: 0.367 | AJ25: 0.074 | AK25: 0.088 | AL25: 0.075 | AM25: 0.022 | AN25: 0.049 | AO25: 0 | AP25: 0 | AQ25: 0 | AR25: 0.001 | AS25: 0.003 | AT25: 0.027 | AU25: 0.011 | AV25: 0.007 | AW25: 0 | AX25: 0.024 | AY25: 0.005 | AZ25: 0.002 | BA25: 0 | BB25: 0.004 | BC25: 0.015 | BD25: 0.016
A26: Resurfacing | B26: RESURFACING (OVERLAY >= 2.5 INCHES AND < 4 INCHES) | C26: Asphaltic Pavement | D26: General Const and Asphaltic Surfacing | E26: 5.09 | F26: Urban | G26: $ 2M to $10M | H26: 2024-02-13 | I26: 2024 | J26: 20240213029 | K26: 6950-04-72 | L26: STATE HIGHWAY REHABILITATION | M26: NC | N26: Wood | O26: STH 054 | P26: Dexterville - Wisconsin Rapids; Swanson Road to Seneca Road | Q26: AMERICAN ASPHALT OF WISCONSIN | R26: 1 | S26: 4521001.15 | T26: =IFERROR(Table1[[#This Row],[Total Bid Amount]]/Table1[[#This Row],[Proposal Length]]," ") -> 888212.4067 | U26: 460.6224 | V26: HMA Pavement 4 MT 58-28 S | W26: 19846 | X26: 91.79531392 | Y26: 2 | AA26: 205672.16 | AB26: 0.045 | AC26: 24931.4 | AD26: 0.006 | AE26: 0.013 | AF26: 0.489 | AG26: 0.037 | AH26: 0 | AI26: 0.013 | AJ26: 0.072 | AK26: 0.052 | AL26: 0 | AM26: 0.011 | AN26: 0.039 | AO26: 0 | AP26: 0.006 | AQ26: 0 | AR26: 0.001 | AS26: 0 | AT26: 0.046 | AU26: 0.03 | AV26: 0.095 | AW26: 0.003 | AX26: 0.003 | AY26: 0.024 | AZ26: 0.003 | BA26: 0 | BB26: 0.007 | BC26: 0 | BD26: 0.013
A27: Reconstruction | B27: RECONSTRUCTION, PRESERVATION | C27: Concrete Pavement | D27: Gen Const and PCC Pvmt and Incidental | E27: 0.3 | F27: Urban | G27: $ 2M to $10M | H27: 2024-02-13 | I27: 2024 | J27: 20240213030 | K27: 6996-04-72 | L27: LOCAL TRANSPORTATION FACILITY IMPROVEMENT ASSISTANCE | M27: NC | N27: Waupaca | O27: CTH D | P27: N Water Street, City of New London Shawano Street to Pearl Street | Q27: ZIGNEGO COMPANY, INC. | R27: 4 | S27: 2924037.88 | T27: =IFERROR(Table1[[#This Row],[Total Bid Amount]]/Table1[[#This Row],[Proposal Length]]," ") -> 9746792.933 | AA27: 92000 | AB27: 0.031 | AC27: 3500 | AD27: 0.001 | AE27: 0.117 | AF27: 0.019 | AG27: 0.034 | AH27: 0 | AI27: 0.25 | AJ27: 0.134 | AK27: 0.152 | AL27: 0.077 | AM27: 0.007 | AN27: 0.037 | AO27: 0 | AP27: 0 | AQ27: 0 | AR27: 0.003 | AS27: 0.007 | AT27: 0.051 | AU27: 0.011 | AV27: 0 | AW27: 0 | AX27: 0.009 | AY27: 0.022 | AZ27: 0.003 | BA27: 0 | BB27: 0.007 | BC27: 0.023 | BD27: 0.006
A28: Reconstruction | B28: RECONSTRUCTION, PRESERVATION | C28: General Construction | D28: General and Incidental Construction | E28: 1.481 | F28: Unknown | G28: $ 2M to $10M | H28: 2024-02-13 | I28: 2024 | J28: 20240213031 | K28: 6999-09-72 | L28: LOCAL TRANSPORTATION FACILITY IMPROVEMENT ASSISTANCE | M28: NC | N28: Marathon | O28: LOC STR | P28: C Wausau, Stewart Avenue; S 72nd Avenue to S 48th Avenue | Q28: INTEGRITY GRADING AND EXCAVATING, INC. | R28: 5 | S28: 7097394.38 | T28: =IFERROR(Table1[[#This Row],[Total Bid Amount]]/Table1[[#This Row],[Proposal Length]]," ") -> 4792298.704 | U28: 460.5223 | V28: HMA Pavement 3 LT 58-28 S | W28: 10800 | X28: 86.13842593 | Y28: 2 | AA28: 487000 | AB28: 0.069 | AC28: 7000 | AD28: 0.001 | AE28: 0.275 | AF28: 0.18 | AG28: 0.09 | AH28: 0 | AI28: 0.008 | AJ28: 0.036 | AK28: 0.154 | AL28: 0.018 | AM28: 0.045 | AN28: 0.043 | AO28: 0 | AP28: 0.002 | AQ28: 0 | AR28: 0.003 | AS28: 0 | AT28: 0.012 | AU28: 0.013 | AV28: 0.002 | AW28: 0.001 | AX28: 0.013 | AY28: 0.011 | AZ28: 0.002 | BA28: 0 | BB28: 0.004 | BC28: 0.004 | BD28: 0.015
A29: Pavement Replacement | B29: PAVEMENT REPLACEMENT | C29: Asphaltic Pavement | D29: General Const and Asphaltic Surfacing | E29: 1.32 | F29: Unknown | G29: $ 1M to $ 2M | H29: 2024-02-13 | I29: 2024 | J29: 20240213032 | K29: 6999-16-73 | L29: LOCAL TRANSPORTATION FACILITY IMPROVEMENT ASSISTANCE | M29: NC | N29: Marathon | O29: LOC STR | P29: C Mosinee, Main Street; 4th Street to Rangeline Road | Q29: AMERICAN ASPHALT OF WISCONSIN | R29: 1 | S29: 1125146.31 | T29: =IFERROR(Table1[[#This Row],[Total Bid Amount]]/Table1[[#This Row],[Proposal Length]]," ") -> 852383.5682 | U29: 460.5224 | V29: HMA Pavement 4 LT 58-28 S | W29: 4900 | X29: 80.4 | Y29: 1 | AA29: 111528.93 | AB29: 0.099 | AC29: 29300 | AD29: 0.026 | AE29: 0.038 | AF29: 0.36 | AG29: 0.047 | AH29: 0 | AI29: 0.004 | AJ29: 0.146 | AK29: 0.022 | AL29: 0 | AM29: 0.016 | AN29: 0.011 | AO29: 0 | AP29: 0 | AQ29: 0 | AR29: 0 | AS29: 0 | AT29: 0.059 | AU29: 0.029 | AV29: 0.013 | AW29: 0 | AX29: 0 | AY29: 0.107 | AZ29: 0 | BA29: 0 | BB29: 0.007 | BC29: 0 | BD29: 0.042
A30: Bridge Replacement | B30: BRIDGE REPLACEMENT, PRESERVATION | C30: Structures | D30: Highway Structures | E30: 0.025 | F30: Rural | G30: $ 0.5M or less | H30: 2024-02-13 | I30: 2024 | J30: 20240213033 | K30: 9815-00-70 | L30: HIGHWAY AND LOCAL BRIDGE IMPROVEMENT ASSISTANCE | M30: NC | N30: Forest | O30: LOC STR | P30: T Hiles, West Pine Lake Road; Wolf River Bridge B-21-0032 | Q30: LUNDA CONSTRUCTION COMPANY | R30: 4 | S30: 343388.79 | T30: =IFERROR(Table1[[#This Row],[Total Bid Amount]]/Table1[[#This Row],[Proposal Length]]," ") -> 13735551.6 | AA30: 49597.37 | AB30: 0.144 | AC30: 100 | AD30: 0 | AE30: 0.028 | AF30: 0.034 | AG30: 0.016 | AH30: 0 | AI30: 0.002 | AJ30: 0 | AK30: 0.001 | AL30: 0 | AM30: 0.061 | AN30: 0.203 | AO30: 0 | AP30: 0.001 | AQ30: 0 | AR30: 0.002 | AS30: 0 | AT30: 0.03 | AU30: 0 | AV30: 0 | AW30: 0 | AX30: 0 | AY30: 0 | AZ30: 0.014 | BA30: 0.444 | BB30: 0.016 | BC30: 0 | BD30: 0.003
A31: Bridge Replacement | B31: BRIDGE REPLACEMENT, PRESERVATION | C31: Structures | D31: General Const and Highway Structures | E31: 0.057 | F31: Urban | G31: $ 1M to $ 2M | H31: 2024-02-13 | I31: 2024 | J31: 20240213034 | K31: 9835-00-71 | L31: HIGHWAY AND LOCAL BRIDGE IMPROVEMENT ASSISTANCE | M31: NC | N31: Langlade | O31: LOC STR | P31: C Antigo, 4th Avenue, Springbrook Creek Bridge B-34-0062 | Q31: PHEIFER BROTHERS CONSTRUCTION CO., INC. | R31: 4 | S31: 1023561.48 | T31: =IFERROR(Table1[[#This Row],[Total Bid Amount]]/Table1[[#This Row],[Proposal Length]]," ") -> 17957218.95 | U31: 460.5223 | V31: HMA Pavement 3 LT 58-28 S | W31: 195 | X31: 116.9102564 | Y31: 2 | AA31: 57797.71 | AB31: 0.056 | AC31: 1450 | AD31: 0.001 | AE31: 0.218 | AF31: 0.028 | AG31: 0.02 | AH31: 0.017 | AI31: 0.004 | AJ31: 0.022 | AK31: 0.107 | AL31: 0.011 | AM31: 0.034 | AN31: 0.023 | AO31: 0.001 | AP31: 0 | AQ31: 0 | AR31: 0 | AS31: 0 | AT31: 0.022 | AU31: 0 | AV31: 0 | AW31: 0.074 | AX31: 0 | AY31: 0.02 | AZ31: 0.001 | BA31: 0.334 | BB31: 0.006 | BC31: 0 | BD31: 0.003
A32: Bridge Replacement | B32: BRIDGE REPLACEMENT, PRESERVATION | C32: Structures | D32: Highway Structures | E32: 0.0279 | F32: Rural | G32: $ 0.5M or less | H32: 2024-02-13 | I32: 2024 | J32: 20240213035 | K32: 7835-00-70 | L32: HIGHWAY AND LOCAL BRIDGE IMPROVEMENT ASSISTANCE | M32: NW | N32: Clark | O32: LOC STR | P32: T Longwood, Cloverdale Road; Br Black River Bridge B-10-0265 | Q32: RADTKE CONTRACTORS INC. | R32: 6 | S32: 427945.46 | T32: =IFERROR(Table1[[#This Row],[Total Bid Amount]]/Table1[[#This Row],[Proposal Length]]," ") -> 15338546.95 | AA32: 62015.21 | AB32: 0.145 | AC32: 1700 | AD32: 0.004 | AE32: 0 | AF32: 0 | AG32: 0.02 | AH32: 0 | AI32: 0.002 | AJ32: 0 | AK32: 0.002 | AL32: 0 | AM32: 0.07 | AN32: 0.157 | AO32: 0 | AP32: 0 | AQ32: 0 | AR32: 0.014 | AS32: 0 | AT32: 0.014 | AU32: 0 | AV32: 0 | AW32: 0.046 | AX32: 0 | AY32: 0 | AZ32: 0.004 | BA32: 0.506 | BB32: 0.006 | BC32: 0 | BD32: 0.013
A33: Bridge Replacement | B33: BRIDGE REPLACEMENT, PRESERVATION | C33: Structures | D33: Highway Structures | E33: 0.035 | F33: Rural | G33: $ 0.5M to $ 1M | H33: 2024-02-13 | I33: 2024 | J33: 20240213036 | K33: 7839-00-70 | L33: HIGHWAY AND LOCAL BRIDGE IMPROVEMENT ASSISTANCE | M33: NW | N33: Clark | O33: LOC STR | P33: Town of Mead, Starks Road; S Fork Eau Claire Rvr Brdg B-10-396 | Q33: LARSON CONSTRUCTION CO., INC. | R33: 6 | S33: 529267.85 | T33: =IFERROR(Table1[[#This Row],[Total Bid Amount]]/Table1[[#This Row],[Proposal Length]]," ") -> 15121938.57 | AA33: 66365 | AB33: 0.125 | AC33: 2208 | AD33: 0.004 | AE33: 0.024 | AF33: 0 | AG33: 0.015 | AH33: 0 | AI33: 0.003 | AJ33: 0 | AK33: 0.002 | AL33: 0 | AM33: 0.038 | AN33: 0.071 | AO33: 0 | AP33: 0 | AQ33: 0 | AR33: 0 | AS33: 0 | AT33: 0.015 | AU33: 0 | AV33: 0 | AW33: 0.066 | AX33: 0 | AY33: 0 | AZ33: 0.001 | BA33: 0.629 | BB33: 0.005 | BC33: 0 | BD33: 0.006
A34: Bridge Replacement | B34: BRIDGE REPLACEMENT, PRESERVATION | C34: Structures | D34: Highway Structures | E34: 0.034 | F34: Rural | G34: $ 0.5M to $ 1M | H34: 2024-02-13 | I34: 2024 | J34: 20240213037 | K34: 7862-00-70 | L34: HIGHWAY AND LOCAL BRIDGE IMPROVEMENT ASSISTANCE | M34: NW | N34: Chippewa | O34: LOC STR | P34: T Sigel, 240th Street; Paint Creek Bridge B-09-0393 | Q34: RADTKE CONTRACTORS INC. | R34: 5 | S34: 516114.85 | T34: =IFERROR(Table1[[#This Row],[Total Bid Amount]]/Table1[[#This Row],[Proposal Length]]," ") -> 15179848.53 | AA34: 78435.34 | AB34: 0.152 | AC34: 2100 | AD34: 0.004 | AE34: 0.021 | AF34: 0.02 | AG34: 0.012 | AH34: 0 | AI34: 0.003 | AJ34: 0 | AK34: 0.002 | AL34: 0 | AM34: 0.073 | AN34: 0.043 | AO34: 0 | AP34: 0 | AQ34: 0 | AR34: 0.001 | AS34: 0 | AT34: 0.018 | AU34: 0 | AV34: 0 | AW34: 0.077 | AX34: 0 | AY34: 0 | AZ34: 0.001 | BA34: 0.569 | BB34: 0.004 | BC34: 0 | BD34: 0.006
A35: Miscellaneous | B35: MISCELLANEOUS | C35: Asphaltic Pavement | D35: General Const and Asphaltic Surfacing | E35: 9.17 | F35: Rural | G35: $ 2M to $10M | H35: 2024-02-13 | I35: 1900 | J35: 20240213038 | K35: 8120-02-66 | L35: STATE HIGHWAY REHABILITATION | M35: NW | N35: Barron | O35: STH 048 | P35: Mckinley - Rice Lake; USH 63 North to STH 25 | Q35: MONARCH PAVING COMPANY | R35: 1 | S35: 5968307.03 | T35: =IFERROR(Table1[[#This Row],[Total Bid Amount]]/Table1[[#This Row],[Proposal Length]]," ") -> 650851.3664 | U35: 460.6645 | V35: HMA Pavement 5 MT 58-34 V | W35: 28436 | X35: 100.43 | Y35: 1 | Z35: X | AA35: 478945.92 | AB35: 0.08 | AC35: 24020 | AD35: 0.004 | AE35: 0.027 | AF35: 0.558 | AG35: 0.139 | AH35: 0 | AI35: 0 | AJ35: 0.004 | AK35: 0.008 | AL35: 0 | AM35: 0.006 | AN35: 0.028 | AO35: 0 | AP35: 0.039 | AQ35: 0 | AR35: 0 | AS35: 0 | AT35: 0.011 | AU35: 0.043 | AV35: 0.016 | AW35: 0.003 | AX35: 0.002 | AY35: 0.002 | AZ35: 0.001 | BA35: 0.014 | BB35: 0.001 | BC35: 0 | BD35: 0.018
A36: Resurfacing | B36: RESURF (OVERLAY >= 4 IN DOES NOT INCREASE PROFILE) | C36: Asphaltic Pavement | D36: Asphaltic Surfacing | E36: 3.454 | F36: Rural | G36: $ 1M to $ 2M | H36: 2024-01-09 | I36: =YEAR(H36) -> 2024 | J36: 20240109001 | K36: 3364-00-75 | L36: STATE HIGHWAY REHABILITATION | M36: SW | N36: Dodge | O36: STH 067 | P36: Mayville - Campbellsport, STH 28 to STH 175 | Q36: KARTECHNER BROTHERS LLC | R36: 2 | S36: 1498729.39 | T36: =IFERROR(Table1[[#This Row],[Total Bid Amount]]/Table1[[#This Row],[Proposal Length]]," ") -> 433911.2305 | U36: 460.6224 | V36: HMA Pavement 4 MT 58-28 S | W36: 15340 | X36: 66.7 | Y36: 1 | Z36: X | AA36: 78750 | AB36: 0.053 | AC36: 4300 | AD36: 0.003 | AE36: 0.008 | AF36: 0.751 | AG36: 0.025 | AH36: 0 | AI36: 0 | AJ36: 0 | AK36: 0.001 | AL36: 0 | AM36: 0.002 | AN36: 0.013 | AO36: 0 | AP36: 0 | AQ36: 0 | AR36: 0 | AS36: 0 | AT36: 0.013 | AU36: 0.057 | AV36: 0.048 | AW36: 0 | AX36: 0 | AY36: 0 | AZ36: 0 | BA36: 0 | BB36: 0.002 | BC36: 0 | BD36: 0.027
A37: Bridge Replacement | B37: BRIDGE REPLACEMENT, PRESERVATION | C37: Structures | D37: Highway Structures | E37: 0.061 | F37: Rural | G37: $ 0.5M to $ 1M | H37: 2024-01-09 | I37: 2024 | J37: 20240109002 | K37: 3813-00-70 | L37: HIGHWAY AND LOCAL BRIDGE IMPROVEMENT ASSISTANCE | M37: SW | N37: Dodge | O37: LOC STR | P37: Town of Hubbard, Wildcat Road; Wildcat Creek Bridge, B-14-0227 | Q37: CONCRETE STRUCTURES, INC. | R37: 9 | S37: 918995.8 | T37: =IFERROR(Table1[[#This Row],[Total Bid Amount]]/Table1[[#This Row],[Proposal Length]]," ") -> 15065504.92 | AA37: 81975 | AB37: 0.089 | AC37: 5500 | AD37: 0.006 | AE37: 0.015 | AF37: 0.026 | AG37: 0.014 | AH37: 0 | AI37: 0.038 | AJ37: 0 | AK37: 0.007 | AL37: 0 | AM37: 0.072 | AN37: 0.051 | AO37: 0 | AP37: 0.043 | AQ37: 0 | AR37: 0.001 | AS37: 0 | AT37: 0.008 | AU37: 0.005 | AV37: 0.001 | AW37: 0.012 | AX37: 0 | AY37: 0.001 | AZ37: 0.003 | BA37: 0.594 | BB37: 0.007 | BC37: 0 | BD37: 0.012
A38: Resurfacing | B38: RESURF (OVERLAY >= 4 IN DOES NOT INCREASE PROFILE) | C38: Asphaltic Pavement | D38: General Const and Asphaltic Surfacing | E38: 3.804 | F38: Rural | G38: $ 2M to $10M | H38: 2024-01-09 | I38: 2024 | J38: 20240109003 | K38: 5280-03-70 | L38: STATE HIGHWAY REHABILITATION | M38: SW | N38: Dane | O38: STH 113 | P38: Madison - Lodi; Sunset Lane to CTH V | Q38: PAYNE AND DOLAN, INC | R38: 3 | S38: 2327834.94 | T38: =IFERROR(Table1[[#This Row],[Total Bid Amount]]/Table1[[#This Row],[Proposal Length]]," ") -> 611943.9905 | U38: 460.6223 | V38: HMA Pavement 3 MT 58-28 S | W38: 14623 | X38: 67.46515763 | Y38: 2 | AA38: 106000 | AB38: 0.046 | AC38: 18950 | AD38: 0.008 | AE38: 0.015 | AF38: 0.459 | AG38: 0.045 | AH38: 0 | AI38: 0.016 | AJ38: 0.033 | AK38: 0.018 | AL38: 0 | AM38: 0.023 | AN38: 0.033 | AO38: 0 | AP38: 0.012 | AQ38: 0 | AR38: 0.001 | AS38: 0 | AT38: 0.04 | AU38: 0.046 | AV38: 0.009 | AW38: 0.008 | AX38: 0 | AY38: 0.003 | AZ38: 0.001 | BA38: 0.161 | BB38: 0.005 | BC38: 0 | BD38: 0.025
A39: Pavement Replacement | B39: PAVEMENT REPLACEMENT | C39: Grading | D39: General Construction and Grading | E39: 1.02 | F39: Urban | G39: $ 2M to $10M | H39: 2024-01-09 | I39: 2024 | J39: 20240109005 | K39: 5880-01-70 | L39: STATE HIGHWAY REHABILITATION | M39: SW | N39: Sauk | O39: USH 012 | P39: Mauston - Wisconsin Dells North County Line to STH 13 | Q39: GERKE EXCAVATING INC | R39: 7 | S39: 2204317.4 | T39: =IFERROR(Table1[[#This Row],[Total Bid Amount]]/Table1[[#This Row],[Proposal Length]]," ") -> 2161095.49 | U39: 460.6223 | V39: HMA Pavement 3 MT 58-28 S | W39: 6584 | X39: 83.48933171 | Y39: 2 | AA39: 161569.85 | AB39: 0.073 | AC39: 8600 | AD39: 0.004 | AE39: 0.027 | AF39: 0.263 | AG39: 0.309 | AH39: 0 | AI39: 0.004 | AJ39: 0.045 | AK39: 0.06 | AL39: 0 | AM39: 0.046 | AN39: 0.063 | AO39: 0 | AP39: 0 | AQ39: 0 | AR39: 0.008 | AS39: 0 | AT39: 0.016 | AU39: 0.019 | AV39: 0.002 | AW39: 0.005 | AX39: 0.029 | AY39: 0.003 | AZ39: 0.005 | BA39: 0 | BB39: 0.005 | BC39: 0 | BD39: 0.017
A40: Preservation/Restoration | B40: SEAL COAT/CRACK FILL/JOINT, CRACK OR SPOT REPAIR | C40: General Construction | D40: General and Incidental Construction | E40: 0.518 | F40: Urban | G40: $ 0.5M or less | H40: 2024-01-09 | I40: 2024 | J40: 20240109006 | K40: 7570-05-65 | L40: STATE HIGHWAY REHABILITATION | M40: SW | N40: Monroe | O40: STH 016 | P40: La Crosse - Sparta; E Jct Hamlet Ave to Alpine Rd | Q40: GERKE EXCAVATING INC | R40: 3 | S40: 303497.81 | T40: =IFERROR(Table1[[#This Row],[Total Bid Amount]]/Table1[[#This Row],[Proposal Length]]," ") -> 585903.1081 | AA40: 54379.27 | AB40: 0.179 | AC40: 5320.62 | AD40: 0.018 | AE40: 0.167 | AF40: 0.324 | AG40: 0.083 | AH40: 0 | AI40: 0 | AJ40: 0.014 | AK40: 0.01 | AL40: 0 | AM40: 0.027 | AN40: 0.027 | AO40: 0 | AP40: 0 | AQ40: 0 | AR40: 0.013 | AS40: 0 | AT40: 0.027 | AU40: 0.083 | AV40: 0.004 | AW40: 0 | AX40: 0 | AY40: 0.002 | AZ40: 0.009 | BA40: 0 | BB40: 0.005 | BC40: 0 | BD40: 0.026
A41: Miscellaneous | B41: MISCELLANEOUS | C41: General Construction | D41: General and Incidental Construction | E41: 0.116 | F41: Unknown | G41: $ 0.5M to $ 1M | H41: 2024-01-09 | I41: 2024 | J41: 20240109007 | K41: 7570-05-70 | L41: STATE HIGHWAY REHABILITATION | M41: SW | N41: La Crosse | O41: STH 016 | P41: La Crosse - Sparta; CTH M Intersection | Q41: CHIPPEWA CONCRETE SERVICES, INC. | R41: 4 | S41: 595717.78 | T41: =IFERROR(Table1[[#This Row],[Total Bid Amount]]/Table1[[#This Row],[Proposal Length]]," ") -> 5135498.103 | AA41: 86354.34 | AB41: 0.145 | AC41: 5955.54 | AD41: 0.01 | AE41: 0.077 | AF41: 0.049 | AG41: 0.031 | AH41: 0 | AI41: 0.194 | AJ41: 0.021 | AK41: 0.036 | AL41: 0.086 | AM41: 0.003 | AN41: 0.025 | AO41: 0 | AP41: 0 | AQ41: 0 | AR41: 0 | AS41: 0.005 | AT41: 0.172 | AU41: 0.027 | AV41: 0.01 | AW41: 0 | AX41: 0.018 | AY41: 0.014 | AZ41: 0.006 | BA41: 0 | BB41: 0.009 | BC41: 0.045 | BD41: 0.027
A42: Resurfacing | B42: RESURF (OVERLAY >= 4 IN DOES NOT INCREASE PROFILE) | C42: General Construction | D42: General Construction | E42: 5.878 | F42: Unknown | G42: $10M to $20M | H42: 2024-01-09 | I42: 2024 | J42: 20240109008 | K42: 1090-09-76 | L42: STATE HIGHWAY REHABILITATION | M42: SE | N42: Waukesha | O42: IH 043 | P42: IH 43 Rock Freeway; STH 164 to Moorland Rd | Q42: ROCK ROAD COMPANIES, INC. | R42: 6 | S42: 16606542.4 | T42: =IFERROR(Table1[[#This Row],[Total Bid Amount]]/Table1[[#This Row],[Proposal Length]]," ") -> 2825202.858 | U42: 460.7224 | V42: HMA Pavement 4 HT 58-28 S | W42: 58216 | X42: 78.27762952 | Y42: 4 | Z42: X | AA42: 615345.09 | AB42: 0.037 | AC42: 45060 | AD42: 0.003 | AE42: 0.069 | AF42: 0.29 | AG42: 0.352 | AH42: 0 | AI42: 0.041 | AJ42: 0.004 | AK42: 0.006 | AL42: 0.003 | AM42: 0.007 | AN42: 0.006 | AO42: 0.001 | AP42: 0.011 | AQ42: 0.037 | AR42: 0.001 | AS42: 0 | AT42: 0.019 | AU42: 0.039 | AV42: 0.034 | AW42: 0.002 | AX42: 0 | AY42: 0.001 | AZ42: 0.013 | BA42: 0.006 | BB42: 0 | BC42: 0 | BD42: 0.022
A43: Reconditioning | B43: RECONDITION (IMPROVE CURVE/GRADE/SIGHT/INTERSECT) | C43: General Construction | D43: General Construction | E43: 0.498 | F43: Unknown | G43: $ 2M to $10M | H43: 2024-01-09 | I43: 2024 | J43: 20240109009 | K43: 2230-07-73 | L43: LOCAL TRANSPORTATION FACILITY IMPROVEMENT ASSISTANCE | M43: SE | N43: Milwaukee | O43: LOC STR | P43: V West Milw W Greenfield Avenue; S 56th Street to S 47th Street | Q43: LALONDE CONTRACTORS INCORPORATED | R43: 6 | S43: 4668698.1 | T43: =IFERROR(Table1[[#This Row],[Total Bid Amount]]/Table1[[#This Row],[Proposal Length]]," ") -> 9374895.783 | U43: 460.5224 | V43: HMA Pavement 4 LT 58-28 S | W43: 43 | X43: 240 | Y43: 1 | AA43: 262680.92 | AB43: 0.056 | AC43: 13750 | AD43: 0.003 | AE43: 0.138 | AF43: 0.006 | AG43: 0.097 | AH43: 0 | AI43: 0.204 | AJ43: 0.101 | AK43: 0.064 | AL43: 0.092 | AM43: 0.006 | AN43: 0.077 | AO43: 0 | AP43: 0 | AQ43: 0 | AR43: 0.004 | AS43: 0.003 | AT43: 0.051 | AU43: 0.013 | AV43: 0.002 | AW43: 0 | AX43: 0.02 | AY43: 0.023 | AZ43: 0.004 | BA43: 0.002 | BB43: 0.011 | BC43: 0.015 | BD43: 0.013
A44: Resurfacing | B44: RESURFACING (OVERLAY >= 4 INCHES) | C44: General Construction | D44: General and Incidental Construction | E44: 1.573 | F44: Unknown | G44: $ 2M to $10M | H44: 2024-01-09 | I44: =YEAR(H44) -> 2024 | J44: 20240109010 | K44: 2250-15-70 | L44: STATE HIGHWAY REHABILITATION | M44: SE | N44: Racine | O44: STH 020 | P44: Washington Ave - Vil of Mt Pleasant; Oakes Rd to STH 31 | Q44: PAYNE AND DOLAN, INC | R44: 2 | S44: 5253726.88 | T44: =IFERROR(Table1[[#This Row],[Total Bid Amount]]/Table1[[#This Row],[Proposal Length]]," ") -> 3339940.801 | U44: 460.6223 | V44: HMA Pavement 3 MT 58-28 S | W44: 16328 | X44: 80.34076433 | Y44: 2 | AA44: 224212.84 | AB44: 0.043 | AC44: 163503.04 | AD44: 0.031 | AE44: 0.095 | AF44: 0.274 | AG44: 0.091 | AH44: 0 | AI44: 0.028 | AJ44: 0.038 | AK44: 0.011 | AL44: 0.17 | AM44: 0.008 | AN44: 0.003 | AO44: 0 | AP44: 0.004 | AQ44: 0.005 | AR44: 0.001 | AS44: 0.003 | AT44: 0.072 | AU44: 0.028 | AV44: 0.003 | AW44: 0.007 | AX44: 0 | AY44: 0.022 | AZ44: 0.007 | BA44: 0.009 | BB44: 0.003 | BC44: 0.029 | BD44: 0.045
A45: Bridge Rehabilitation | B45: BRIDGE REHABILITATION | C45: Structures | D45: Highway Structures | E45: 0.771 | F45: Unknown | G45: $ 2M to $10M | H45: 2024-01-09 | I45: =YEAR(H45) -> 2024 | J45: 20240109011 | K45: 2265-10-71 | L45: STATE HIGHWAY REHABILITATION | M45: SE | N45: Milwaukee | O45: STH 241 | P45: Oak Creek - Milwaukee; 8 Mile Rd to Elm Rd | Q45: SHEET PILING SERVICES LLC | R45: 8 | S45: 2114945.69 | T45: =IFERROR(Table1[[#This Row],[Total Bid Amount]]/Table1[[#This Row],[Proposal Length]]," ") -> 2743120.22 | U45: 460.6224 | V45: HMA Pavement 4 MT 58-28 S | W45: 2156 | X45: 71.00113636 | Y45: 2 | AA45: 189620 | AB45: 0.09 | AC45: 5640 | AD45: 0.003 | AE45: 0.01 | AF45: 0.087 | AG45: 0.047 | AH45: 0 | AI45: 0.093 | AJ45: 0.023 | AK45: 0.039 | AL45: 0.001 | AM45: 0.024 | AN45: 0.03 | AO45: 0 | AP45: 0.013 | AQ45: 0.023 | AR45: 0.006 | AS45: 0 | AT45: 0.015 | AU45: 0.021 | AV45: 0.013 | AW45: 0.119 | AX45: 0.002 | AY45: 0.007 | AZ45: 0.003 | BA45: 0.317 | BB45: 0.011 | BC45: 0 | BD45: 0.008
A46: Resurfacing | B46: RESURFACING (OVERLAY >= 2.5 INCHES AND < 4 INCHES) | C46: General Construction | D46: General Construction | E46: 1.804 | F46: Unknown | G46: $ 2M to $10M | H46: 2024-01-09 | I46: 2024 | J46: 20240109012 | K46: 2310-13-70 | L46: STATE HIGHWAY REHABILITATION | M46: SE | N46: Washington | O46: STH 060 | P46: Main St, Village Jackson; CTH P to Eagle Dr | Q46: VINTON CONSTRUCTION COMPANY | R46: 6 | S46: 3895139.96 | T46: =IFERROR(Table1[[#This Row],[Total Bid Amount]]/Table1[[#This Row],[Proposal Length]]," ") -> 2159168.492 | U46: 460.6224 | V46: HMA Pavement 4 MT 58-28 S | W46: 10590 | X46: 73.19370633 | Y46: 3 | AA46: 276500 | AB46: 0.071 | AC46: 57439.7 | AD46: 0.015 | AE46: 0.056 | AF46: 0.207 | AG46: 0.047 | AH46: 0 | AI46: 0.015 | AJ46: 0.093 | AK46: 0.079 | AL46: 0.135 | AM46: 0.019 | AN46: 0.048 | AO46: 0 | AP46: 0 | AQ46: 0 | AR46: 0.016 | AS46: 0.004 | AT46: 0.051 | AU46: 0.025 | AV46: 0.036 | AW46: 0.001 | AX46: 0.002 | AY46: 0.02 | AZ46: 0.015 | BA46: 0.005 | BB46: 0.005 | BC46: 0.025 | BD46: 0.024
A47: Resurfacing | B47: RESURFACING (OVERLAY < 2.5 INCHES) | C47: Structures | D47: General Const and Highway Structures | E47: 0.966 | F47: Unknown | G47: $ 2M to $10M | H47: 2024-01-09 | I47: =YEAR(H47) -> 2024 | J47: 20240109013 | K47: 2340-03-73 | L47: STATE HIGHWAY REHABILITATION | M47: SE | N47: Racine | O47: STH 020 | P47: Washington Avenue; 90th Street to Oakes Road | Q47: ZENITH TECH., INC. - WAUKESHA | R47: 3 | S47: 2518827.65 | T47: =IFERROR(Table1[[#This Row],[Total Bid Amount]]/Table1[[#This Row],[Proposal Length]]," ") -> 2607482.039 | U47: 460.6224 | V47: HMA Pavement 4 MT 58-28 S | W47: 4938 | X47: 77.66 | Y47: 1 | AA47: 186000 | AB47: 0.074 | AC47: 52419.74 | AD47: 0.021 | AE47: 0.09 | AF47: 0.157 | AG47: 0.114 | AH47: 0.027 | AI47: 0.03 | AJ47: 0 | AK47: 0.004 | AL47: 0.002 | AM47: 0.023 | AN47: 0.015 | AO47: 0 | AP47: 0.118 | AQ47: 0 | AR47: 0.002 | AS47: 0 | AT47: 0.028 | AU47: 0.034 | AV47: 0.014 | AW47: 0.012 | AX47: 0 | AY47: 0.004 | AZ47: 0.008 | BA47: 0.188 | BB47: 0.009 | BC47: 0 | BD47: 0.049
A48: Reconditioning | B48: RECONDITION (IMPROVE CURVE/GRADE/SIGHT/INTERSECT) | C48: General Construction | D48: General Construction | E48: 0.498 | F48: Unknown | G48: $ 1M to $ 2M | H48: 2024-01-09 | I48: 2024 | J48: 20240109014 | K48: 2365-05-71 | L48: LOCAL TRANSPORTATION FACILITY IMPROVEMENT ASSISTANCE | M48: SE | N48: Milwaukee | O48: LOC STR | P48: V Greendale, W Grange Avenue;S 76th Street to 84th Street | Q48: STARK PAVEMENT CORPORATION | R48: 4 | S48: 1796819.13 | T48: =IFERROR(Table1[[#This Row],[Total Bid Amount]]/Table1[[#This Row],[Proposal Length]]," ") -> 3608070.542 | U48: 460.6223 | V48: HMA Pavement 3 MT 58-28 S | W48: 5080 | X48: 70.57165354 | Y48: 2 | AA48: 69000 | AB48: 0.038 | AC48: 17925 | AD48: 0.01 | AE48: 0.152 | AF48: 0.205 | AG48: 0.075 | AH48: 0 | AI48: 0.001 | AJ48: 0.047 | AK48: 0.125 | AL48: 0.058 | AM48: 0.013 | AN48: 0.041 | AO48: 0 | AP48: 0 | AQ48: 0 | AR48: 0.001 | AS48: 0.002 | AT48: 0.057 | AU48: 0.014 | AV48: 0.003 | AW48: 0.014 | AX48: 0.036 | AY48: 0.007 | AZ48: 0.007 | BA48: 0.08 | BB48: 0.008 | BC48: 0 | BD48: 0.018
A49: Reconditioning | B49: RECONDITION (IMPROVE CURVE/GRADE/SIGHT/INTERSECT) | C49: General Construction | D49: General and Incidental Construction | E49: 0.737 | F49: Unknown | G49: $ 2M to $10M | H49: 2024-01-09 | I49: 2024 | J49: 20240109015 | K49: 2455-07-70 | L49: LOCAL TRANSPORTATION FACILITY IMPROVEMENT ASSISTANCE | M49: SE | N49: Milwaukee | O49: LOC STR | P49: C Milwaukee E/W Locust Street; N 7th Street to N Holton Street | Q49: LALONDE CONTRACTORS INCORPORATED | R49: 3 | S49: 5678423.88 | T49: =IFERROR(Table1[[#This Row],[Total Bid Amount]]/Table1[[#This Row],[Proposal Length]]," ") -> 7704781.384 | U49: 460.6224 | V49: HMA Pavement 4 MT 58-28 S | W49: 5255 | X49: 74.6 | Y49: 1 | AA49: 120304.19 | AB49: 0.021 | AC49: 20075 | AD49: 0.004 | AE49: 0.402 | AF49: 0.072 | AG49: 0.068 | AH49: 0 | AI49: 0.064 | AJ49: 0.104 | AK49: 0.007 | AL49: 0.076 | AM49: 0.007 | AN49: 0.004 | AO49: 0 | AP49: 0 | AQ49: 0.002 | AR49: 0.011 | AS49: 0 | AT49: 0.062 | AU49: 0.01 | AV49: 0.012 | AW49: 0 | AX49: 0.007 | AY49: 0.013 | AZ49: 0.004 | BA49: 0 | BB49: 0.008 | BC49: 0.029 | BD49: 0.017
A50: Traffic Operations | B50: STH - TRAFFIC OPERATIONS PAVEMENT MARKING | C50: General Construction | D50: Incidental Construction | E50: 293 | F50: Rural | G50: $ 1M to $ 2M | H50: 2024-01-09 | I50: 2024 | J50: 20240109016 | K50: 1009-34-36 | L50: HIGHWAY MAINTENANCE, REPAIR AND TRAFFIC OPERATIONS | M50: NE | N50: Northeast Region Wide | O50: VAR HWY | P50: Epoxy Pavement Markings-Sth/Ush; Locations On Stn Per Annual Pln | Q50: CENTURY FENCE COMPANY | R50: 2 | S50: 1705493.75 | T50: =IFERROR(Table1[[#This Row],[Total Bid Amount]]/Table1[[#This Row],[Proposal Length]]," ") -> 5820.797782 | AA50: 37500 | AB50: 0.022 | AE50: 0.018 | AF50: 0 | AG50: 0 | AH50: 0 | AI50: 0 | AJ50: 0 | AK50: 0 | AL50: 0 | AM50: 0 | AN50: 0 | AO50: 0 | AP50: 0 | AQ50: 0 | AR50: 0 | AS50: 0 | AT50: 0 | AU50: 0.96 | AV50: 0 | AW50: 0 | AX50: 0 | AY50: 0 | AZ50: 0 | BA50: 0 | BB50: 0 | BC50: 0 | BD50: 0
A51: Reconstruction | B51: RECONSTRUCTION, PRESERVATION | C51: General Construction | D51: General Construction | E51: 0.797 | F51: Unknown | G51: $ 1M to $ 2M | H51: 2024-01-09 | I51: 2024 | J51: 20240109017 | K51: 4516-10-71 | L51: LOCAL TRANSPORTATION FACILITY IMPROVEMENT ASSISTANCE | M51: NE | N51: Brown | O51: LOC STR | P51: V Bellevue, Allouez Avenue; Hazen Road - USH 141 | Q51: VINTON CONSTRUCTION COMPANY | R51: 5 | S51: 1893776.49 | T51: =IFERROR(Table1[[#This Row],[Total Bid Amount]]/Table1[[#This Row],[Proposal Length]]," ") -> 2376131.104 | U51: 460.5223 | V51: HMA Pavement 3 LT 58-28 S | W51: 5630 | X51: 79.45506217 | Y51: 2 | AA51: 390000 | AB51: 0.206 | AC51: 10525 | AD51: 0.006 | AE51: 0.044 | AF51: 0.245 | AG51: 0.018 | AH51: 0 | AI51: 0.019 | AJ51: 0.084 | AK51: 0.14 | AL51: 0.001 | AM51: 0.049 | AN51: 0.091 | AO51: 0 | AP51: 0.024 | AQ51: 0 | AR51: 0.003 | AS51: 0 | AT51: 0.02 | AU51: 0.013 | AV51: 0.003 | AW51: 0 | AX51: 0.001 | AY51: 0.018 | AZ51: 0.003 | BA51: 0 | BB51: 0.007 | BC51: 0.002 | BD51: 0.011
A52: Reconstruction | B52: RECONSTRUCTION, PRESERVATION | C52: Asphaltic Pavement | D52: General Const and Asphaltic Surfacing | E52: 10.425 | F52: Rural | G52: $ 2M to $10M | H52: 2024-01-09 | I52: 2024 | J52: 20240109019 | K52: 1430-08-81 | L52: STATE HIGHWAY REHABILITATION | M52: NC | N52: Green Lake | O52: STH 023 | P52: Princeton - Ripon; STH 73/Pye Alley Road Intersection | Q52: NORTHEAST ASPHALT, INC | R52: 2 | S52: 3514563.12 | T52: =IFERROR(Table1[[#This Row],[Total Bid Amount]]/Table1[[#This Row],[Proposal Length]]," ") -> 337128.3568 | U52: 460.6224 | V52: HMA Pavement 4 MT 58-28 S | W52: 22020 | X52: 65.85 | Y52: 1 | Z52: X | AA52: 104500 | AB52: 0.03 | AC52: 22500 | AD52: 0.006 | AE52: 0.002 | AF52: 0.47 | AG52: 0.075 | AH52: 0 | AI52: 0.083 | AJ52: 0.011 | AK52: 0.029 | AL52: 0 | AM52: 0.023 | AN52: 0.023 | AO52: 0 | AP52: 0.066 | AQ52: 0 | AR52: 0.001 | AS52: 0 | AT52: 0.023 | AU52: 0.084 | AV52: 0.045 | AW52: 0.002 | AX52: 0.002 | AY52: 0.006 | AZ52: 0.001 | BA52: 0 | BB52: 0.001 | BC52: 0 | BD52: 0.023
A53: Preservation/Restoration | B53: PATCH/RUT FILL/REPAIR AND GRIND/SLAB REPLACE | C53: General Construction | D53: General Construction | E53: 10.137 | F53: Rural | G53: $ 2M to $10M | H53: 2024-01-09 | I53: 2024 | J53: 20240109020 | K53: 1620-01-62 | L53: STATE HIGHWAY REHABILITATION | M53: NC | N53: Marathon | O53: STH 013 | P53: Marshfield - Abbotsford; STH 98 to South Junction CTH N | Q53: MICHELS ROAD & STONE, INC. | R53: 4 | S53: 8690842.09 | T53: =IFERROR(Table1[[#This Row],[Total Bid Amount]]/Table1[[#This Row],[Proposal Length]]," ") -> 857338.6692 | U53: 460.5224 | V53: HMA Pavement 4 LT 58-28 S | W53: 12177 | X53: 107.5001437 | Y53: 2 | AA53: 295388.52 | AB53: 0.034 | AC53: 6000 | AD53: 0.001 | AE53: 0.083 | AF53: 0.155 | AG53: 0.037 | AH53: 0 | AI53: 0.465 | AJ53: 0.037 | AK53: 0.01 | AL53: 0.001 | AM53: 0.008 | AN53: 0.019 | AO53: 0 | AP53: 0.024 | AQ53: 0 | AR53: 0 | AS53: 0 | AT53: 0.041 | AU53: 0.031 | AV53: 0.003 | AW53: 0 | AX53: 0.006 | AY53: 0.002 | AZ53: 0.001 | BA53: 0.02 | BB53: 0.002 | BC53: 0 | BD53: 0.02
A54: Bridge Replacement | B54: BRIDGE REPLACEMENT, PRESERVATION | C54: Structures | D54: Highway Structures | E54: 0.076 | F54: Rural | G54: $ 1M to $ 2M | H54: 2024-01-09 | I54: 2024 | J54: 20240109021 | K54: 6664-00-70 | L54: HIGHWAY AND LOCAL BRIDGE IMPROVEMENT ASSISTANCE | M54: NC | N54: Marathon | O54: CTH O | P54: T Bergen, CTH O; Little Eau Pleine Rvr Br B370465 | Q54: PHEIFER BROTHERS CONSTRUCTION CO., INC. | R54: 7 | S54: 1402783.59 | T54: =IFERROR(Table1[[#This Row],[Total Bid Amount]]/Table1[[#This Row],[Proposal Length]]," ") -> 18457678.82 | AA54: 61362.55 | AB54: 0.044 | AC54: 1250 | AD54: 0.001 | AE54: 0.002 | AF54: 0.016 | AG54: 0.014 | AH54: 0 | AI54: 0.028 | AJ54: 0 | AK54: 0 | AL54: 0 | AM54: 0.028 | AN54: 0.077 | AO54: 0 | AP54: 0.022 | AQ54: 0 | AR54: 0.001 | AS54: 0 | AT54: 0.011 | AU54: 0.005 | AV54: 0 | AW54: 0.116 | AX54: 0 | AY54: 0.001 | AZ54: 0.001 | BA54: 0.624 | BB54: 0.007 | BC54: 0 | BD54: 0.005
A55: Reconstruction | B55: RECONSTRUCTION, PRESERVATION | C55: General Construction | D55: General Construction | E55: 0.359 | F55: Urban | G55: $ 0.5M to $ 1M | H55: 2024-01-09 | I55: 2024 | J55: 20240109022 | K55: 6997-04-70 | L55: LOCAL TRANSPORTATION FACILITY IMPROVEMENT ASSISTANCE | M55: NC | N55: Shawano | O55: LOC STR | P55: C Shawano, E Fifth Street; N Main Street to N Hamlin Street | Q55: MCC, INC. | R55: 7 | S55: 806972.92 | T55: =IFERROR(Table1[[#This Row],[Total Bid Amount]]/Table1[[#This Row],[Proposal Length]]," ") -> 2247835.432 | U55: 460.6223 | V55: HMA Pavement 3 MT 58-28 S | W55: 2185 | X55: 82.89736842 | Y55: 2 | AA55: 85000 | AB55: 0.105 | AC55: 3500 | AD55: 0.004 | AE55: 0.061 | AF55: 0.236 | AG55: 0.127 | AH55: 0 | AI55: 0.059 | AJ55: 0.117 | AK55: 0.08 | AL55: 0 | AM55: 0.035 | AN55: 0.068 | AO55: 0 | AP55: 0 | AQ55: 0 | AR55: 0.005 | AS55: 0 | AT55: 0.027 | AU55: 0.019 | AV55: 0 | AW55: 0 | AX55: 0.001 | AY55: 0.027 | AZ55: 0.008 | BA55: 0 | BB55: 0.01 | BC55: 0 | BD55: 0.017
A56: Bridge Replacement | B56: BRIDGE REPLACEMENT, PRESERVATION | C56: Structures | D56: Highway Structures | E56: 0.028 | F56: Rural | G56: $ 0.5M or less | H56: 2024-01-09 | I56: 2024 | J56: 20240109023 | K56: 7244-00-70 | L56: HIGHWAY AND LOCAL BRIDGE IMPROVEMENT ASSISTANCE | M56: NW | N56: Jackson | O56: CTH Z | P56: STH 54 - North County Line; Hay Creek Bridge B-27-0176 | Q56: LARSON CONSTRUCTION CO., INC. | R56: 6 | S56: 401083.9 | T56: =IFERROR(Table1[[#This Row],[Total Bid Amount]]/Table1[[#This Row],[Proposal Length]]," ") -> 14324425 | AA56: 45750 | AB56: 0.114 | AC56: 2254 | AD56: 0.006 | AE56: 0.029 | AF56: 0.034 | AG56: 0.021 | AH56: 0 | AI56: 0.002 | AJ56: 0 | AK56: 0.003 | AL56: 0 | AM56: 0.094 | AN56: 0.112 | AO56: 0 | AP56: 0 | AQ56: 0 | AR56: 0.003 | AS56: 0 | AT56: 0.027 | AU56: 0.012 | AV56: 0 | AW56: 0.061 | AX56: 0 | AY56: 0 | AZ56: 0.005 | BA56: 0.466 | BB56: 0.009 | BC56: 0 | BD56: 0.009
A57: Bridge Replacement | B57: BRIDGE REPLACEMENT, PRESERVATION | C57: Structures | D57: Highway Structures | E57: 0.033 | F57: Rural | G57: $ 0.5M to $ 1M | H57: 2024-01-09 | I57: 2024 | J57: 20240109024 | K57: 7879-03-74 | L57: HIGHWAY AND LOCAL BRIDGE IMPROVEMENT ASSISTANCE | M57: NW | N57: Dunn | O57: CTH C | P57: Downsville - East County Line; Muddy Creek Bridge B-17-0234 | Q57: LARSON CONSTRUCTION CO., INC. | R57: 6 | S57: 681160.44 | T57: =IFERROR(Table1[[#This Row],[Total Bid Amount]]/Table1[[#This Row],[Proposal Length]]," ") -> 20641225.45 | AA57: 45860 | AB57: 0.067 | AC57: 2040 | AD57: 0.003 | AE57: 0.009 | AF57: 0.013 | AG57: 0.04 | AH57: 0 | AI57: 0.064 | AJ57: 0 | AK57: 0.002 | AL57: 0 | AM57: 0.056 | AN57: 0.06 | AO57: 0 | AP57: 0.05 | AQ57: 0 | AR57: 0.001 | AS57: 0 | AT57: 0.013 | AU57: 0.008 | AV57: 0 | AW57: 0.065 | AX57: 0 | AY57: 0.003 | AZ57: 0.001 | BA57: 0.536 | BB57: 0.005 | BC57: 0 | BD57: 0.006
A58: Resurfacing | B58: RESURFACING (OVERLAY >= 2.5 INCHES AND < 4 INCHES) | C58: Asphaltic Pavement | D58: Asphaltic Surfacing | E58: 5.7 | F58: Rural | G58: $ 2M to $10M | H58: 2024-01-09 | I58: 2024 | J58: 20240109026 | K58: 8520-01-75 | L58: STATE HIGHWAY REHABILITATION | M58: NW | N58: Sawyer | O58: STH 077 | P58: Hayward - Clam Lake; USH 63 to CTH K | Q58: MONARCH PAVING COMPANY | R58: 1 | S58: 3291988.15 | T58: =IFERROR(Table1[[#This Row],[Total Bid Amount]]/Table1[[#This Row],[Proposal Length]]," ") -> 577541.7807 | U58: 460.6645 | V58: HMA Pavement 5 MT 58-34 V | W58: 20967 | X58: 97.49 | Y58: 1 | Z58: X | AA58: 200205.63 | AB58: 0.061 | AC58: 25623.34 | AD58: 0.008 | AE58: 0.002 | AF58: 0.691 | AG58: 0.021 | AH58: 0 | AI58: 0 | AJ58: 0.003 | AK58: 0.015 | AL58: 0 | AM58: 0.002 | AN58: 0.006 | AO58: 0 | AP58: 0.002 | AQ58: 0 | AR58: 0 | AS58: 0 | AT58: 0.014 | AU58: 0.062 | AV58: 0.093 | AW58: 0 | AX58: 0.001 | AY58: 0.001 | AZ58: 0 | BA58: 0 | BB58: 0.001 | BC58: 0 | BD58: 0.026
A59: Bridge Replacement | B59: BRIDGE REPLACEMENT, PRESERVATION | C59: Structures | D59: Highway Structures | E59: 0.035 | F59: Rural | G59: $ 0.5M to $ 1M | H59: 2024-01-09 | I59: 2024 | J59: 20240109027 | K59: 9955-00-70 | L59: HIGHWAY AND LOCAL BRIDGE IMPROVEMENT ASSISTANCE | M59: NW | N59: Ashland | O59: LOC STR | P59: C Mellen, E Tyler Ave Bad River Bridge B-02-0073 | Q59: LARSON CONSTRUCTION CO., INC. | R59: 6 | S59: 641424.54 | T59: =IFERROR(Table1[[#This Row],[Total Bid Amount]]/Table1[[#This Row],[Proposal Length]]," ") -> 18326415.43 | AA59: 78251.12 | AB59: 0.122 | AC59: 1900 | AD59: 0.003 | AE59: 0 | AF59: 0.018 | AG59: 0.009 | AH59: 0 | AI59: 0.003 | AJ59: 0.021 | AK59: 0.028 | AL59: 0 | AM59: 0.064 | AN59: 0.05 | AO59: 0.003 | AP59: 0 | AQ59: 0 | AR59: 0.001 | AS59: 0 | AT59: 0.031 | AU59: 0 | AV59: 0 | AW59: 0.076 | AX59: 0 | AY59: 0.001 | AZ59: 0.001 | BA59: 0.557 | BB59: 0.011 | BC59: 0 | BD59: 0.005
A60: Reconditioning | B60: RECONDITION (INTERSECTION/WIDEN/SHOULDER) | C60: General Construction | D60: General and Incidental Construction | E60: 0.068 | F60: Unknown | G60: $ 0.5M to $ 1M | H60: 2024-01-09 | I60: 2024 | J60: 20240109028 | K60: 5992-07-19 | L60: LOCAL TRANSPORTATION FACILITY IMPROVEMENT ASSISTANCE | M60: SW | N60: Dane | O60: LOC STR | P60: C Madison, Gammon Road; Watts Road Intersection | Q60: PARISI CONSTRUCTION, LLC | R60: 3 | S60: 651497.99 | T60: =IFERROR(Table1[[#This Row],[Total Bid Amount]]/Table1[[#This Row],[Proposal Length]]," ") -> 9580852.794 | U60: 460.7424 | V60: HMA Pavement 4 HT 58-28 H | W60: 164 | X60: 480 | Y60: 2 | AA60: 31520 | AB60: 0.048 | AC60: 13700 | AD60: 0.021 | AE60: 0.29 | AF60: 0.121 | AG60: 0.018 | AH60: 0 | AI60: 0 | AJ60: 0.01 | AK60: 0.015 | AL60: 0.181 | AM60: 0.016 | AN60: 0.021 | AO60: 0 | AP60: 0 | AQ60: 0 | AR60: 0.001 | AS60: 0.003 | AT60: 0.081 | AU60: 0.028 | AV60: 0.006 | AW60: 0 | AX60: 0 | AY60: 0.032 | AZ60: 0.008 | BA60: 0 | BB60: 0.014 | BC60: 0.071 | BD60: 0.034
A61: Traffic Operations | B61: STH - TRAFFIC OPERATIONS PAVEMENT MARKING | C61: General Construction | D61: Incidental Construction | E61: 260 | F61: Rural | G61: $ 2M to $10M | H61: 2023-12-12 | I61: 2023 | J61: 20231212001 | K61: 1009-13-90 | L61: HIGHWAY MAINTENANCE, REPAIR AND TRAFFIC OPERATIONS | M61: SW | N61: Southwest Region Wide | O61: VAR HWY | P61: Sw Region Pavement Marking; Stn Locations Per Annual Plan | Q61: SIR LINES-A-LOT LLC | R61: 3 | S61: 2893615.07 | T61: =IFERROR(Table1[[#This Row],[Total Bid Amount]]/Table1[[#This Row],[Proposal Length]]," ") -> 11129.28873 | AA61: 135000 | AB61: 0.047 | AE61: 0.12 | AF61: 0 | AG61: 0 | AH61: 0 | AI61: 0 | AJ61: 0 | AK61: 0 | AL61: 0 | AM61: 0 | AN61: 0 | AO61: 0 | AP61: 0 | AQ61: 0 | AR61: 0 | AS61: 0 | AT61: 0 | AU61: 0.833 | AV61: 0 | AW61: 0 | AX61: 0 | AY61: 0 | AZ61: 0 | BA61: 0 | BB61: 0 | BC61: 0 | BD61: 0
A62: Bridge Replacement | B62: BRIDGE REPLACEMENT, PRESERVATION | C62: Structures | D62: General Const and Highway Structures | E62: 0.128 | F62: Urban | G62: $ 2M to $10M | H62: 2023-12-12 | I62: 2023 | J62: 20231212002 | K62: 1067-02-73 | L62: STATE HIGHWAY REHABILITATION | M62: SW | N62: Jefferson | O62: IH 094 | P62: Madison - Lake Mills; Newville Road Br; Rock Lake Road Br | Q62: SHEET PILING SERVICES LLC | R62: 4 | S62: 5718107.82 | T62: =IFERROR(Table1[[#This Row],[Total Bid Amount]]/Table1[[#This Row],[Proposal Length]]," ") -> 44672717.34 | U62: 460.7423 | V62: HMA Pavement 3 HT 58-28 H | W62: 3424 | X62: 85.35426402 | Y62: 3 | AA62: 421289 | AB62: 0.074 | AC62: 33250 | AD62: 0.006 | AE62: 0 | AF62: 0.053 | AG62: 0.057 | AH62: 0 | AI62: 0.026 | AJ62: 0 | AK62: 0.024 | AL62: 0 | AM62: 0.049 | AN62: 0.055 | AO62: 0.002 | AP62: 0.057 | AQ62: 0 | AR62: 0.004 | AS62: 0 | AT62: 0.005 | AU62: 0.002 | AV62: 0.004 | AW62: 0.023 | AX62: 0 | AY62: 0.003 | AZ62: 0 | BA62: 0.512 | BB62: 0.006 | BC62: 0 | BD62: 0.043
A63: Preservation/Restoration | B63: SHORT TERM OVERLAY (MILL AND OVERLAY) | C63: Asphaltic Pavement | D63: General Const and Asphaltic Surfacing | E63: 10.927 | F63: Rural | G63: $ 2M to $10M | H63: 2023-12-12 | I63: 2023 | J63: 20231212003 | K63: 1390-06-70 | L63: STATE HIGHWAY REHABILITATION | M63: SW | N63: Dodge | O63: STH 026 | P63: Watertown - Waupun; STH 33 to 0.2 Mi S of Milligan Rd | Q63: NORTHEAST ASPHALT, INC | R63: 3 | S63: 3236497.45 | T63: =IFERROR(Table1[[#This Row],[Total Bid Amount]]/Table1[[#This Row],[Proposal Length]]," ") -> 296192.6833 | U63: 460.6224 | V63: HMA Pavement 4 MT 58-28 S | W63: 25510 | X63: 63.1 | Y63: 1 | Z63: X | AA63: 112480 | AB63: 0.035 | AC63: 37500 | AD63: 0.012 | AE63: 0.011 | AF63: 0.65 | AG63: 0.027 | AH63: 0 | AI63: 0 | AJ63: 0.001 | AK63: 0.04 | AL63: 0 | AM63: 0.006 | AN63: 0.033 | AO63: 0 | AP63: 0.022 | AQ63: 0 | AR63: 0.001 | AS63: 0 | AT63: 0.019 | AU63: 0.087 | AV63: 0.017 | AW63: 0 | AX63: 0.001 | AY63: 0.004 | AZ63: 0.001 | BA63: 0 | BB63: 0.003 | BC63: 0 | BD63: 0.042
A64: Resurfacing | B64: RESURFACING (OVERLAY < 2.5 INCHES) | C64: Asphaltic Pavement | D64: General Const and Asphaltic Surfacing | E64: 9.643 | F64: Rural | G64: $ 2M to $10M | H64: 2023-12-12 | I64: 2023 | J64: 20231212004 | K64: 3670-00-74 | L64: STATE HIGHWAY REHABILITATION | M64: SW | N64: Dane | O64: STH 089 | P64: Lake Mills - Columbus; Clarkson Road to Avalon Road | Q64: PAYNE AND DOLAN, INC | R64: 3 | S64: 2784524.27 | T64: =IFERROR(Table1[[#This Row],[Total Bid Amount]]/Table1[[#This Row],[Proposal Length]]," ") -> 288761.2019 | U64: 460.5224 | V64: HMA Pavement 4 LT 58-28 S | W64: 16400 | X64: 74 | Y64: 1 | Z64: X | AA64: 134500 | AB64: 0.048 | AC64: 20000 | AD64: 0.007 | AE64: 0.018 | AF64: 0.512 | AG64: 0.109 | AH64: 0 | AI64: 0 | AJ64: 0.004 | AK64: 0.032 | AL64: 0 | AM64: 0.015 | AN64: 0.062 | AO64: 0 | AP64: 0.011 | AQ64: 0 | AR64: 0.008 | AS64: 0 | AT64: 0.018 | AU64: 0.084 | AV64: 0.008 | AW64: 0.004 | AX64: 0 | AY64: 0.001 | AZ64: 0.002 | BA64: 0.047 | BB64: 0.005 | BC64: 0 | BD64: 0.012
A65: Miscellaneous | B65: MISCELLANEOUS | C65: General Construction | D65: General and Incidental Construction | E65: 0.07 | F65: Urban | G65: $ 0.5M or less | H65: 2023-12-12 | I65: 2023 | J65: 20231212005 | K65: 3997-00-60 | L65: LOCAL TRANSPORTATION FACILITY IMPROVEMENT ASSISTANCE | M65: SW | N65: Dodge | O65: LOC STR | P65: C Watertown, Welsh Road; STH 26 Overpass | Q65: HIGHWAY LANDSCAPERS, INC. | R65: 3 | S65: 88056.61 | T65: =IFERROR(Table1[[#This Row],[Total Bid Amount]]/Table1[[#This Row],[Proposal Length]]," ") -> 1257951.571 | AA65: 4000 | AB65: 0.045 | AC65: 3500 | AD65: 0.04 | AE65: 0 | AF65: 0 | AG65: 0.038 | AH65: 0 | AI65: 0 | AJ65: 0 | AK65: 0 | AL65: 0 | AM65: 0.044 | AN65: 0 | AO65: 0 | AP65: 0.703 | AQ65: 0 | AR65: 0 | AS65: 0 | AT65: 0 | AU65: 0 | AV65: 0 | AW65: 0 | AX65: 0 | AY65: 0 | AZ65: 0.102 | BA65: 0 | BB65: 0.023 | BC65: 0 | BD65: 0.045
A66: Preservation/Restoration | B66: SHORT TERM OVERLAY (MILL AND OVERLAY) | C66: Asphaltic Pavement | D66: General Const and Asphaltic Surfacing | E66: 15.045 | F66: Rural | G66: $ 2M to $10M | H66: 2023-12-12 | I66: 2023 | J66: 20231212006 | K66: 5100-01-60 | L66: STATE HIGHWAY REHABILITATION | M66: SW | N66: Vernon | O66: STH 033 | P66: Cashton-Hillsboro; Kickapoo R Br to C Hillsboro Limit | Q66: MATHY CONSTRUCTION COMPANY | R66: 1 | S66: 5782513.18 | T66: =IFERROR(Table1[[#This Row],[Total Bid Amount]]/Table1[[#This Row],[Proposal Length]]," ") -> 384347.8352 | U66: 460.5224 | V66: HMA Pavement 4 LT 58-28 S | W66: 28578 | X66: 84.14 | Y66: 1 | Z66: X | AA66: 359681.64 | AB66: 0.062 | AC66: 15708.48 | AD66: 0.003 | AE66: 0.028 | AF66: 0.462 | AG66: 0.016 | AH66: 0 | AI66: 0.001 | AJ66: 0.017 | AK66: 0 | AL66: 0.002 | AM66: 0.002 | AN66: 0.011 | AO66: 0 | AP66: 0.208 | AQ66: 0 | AR66: 0.002 | AS66: 0 | AT66: 0.01 | AU66: 0.068 | AV66: 0.066 | AW66: 0.003 | AX66: 0 | AY66: 0.013 | AZ66: 0.001 | BA66: 0.009 | BB66: 0.004 | BC66: 0 | BD66: 0.016
A67: Resurfacing | B67: RESURFACING (OVERLAY >= 4 INCHES) | C67: General Construction | D67: General Construction | E67: 9.624 | F67: Rural | G67: $10M to $20M | H67: 2023-12-12 | I67: 2023 | J67: 20231212007 | K67: 5145-00-71 | L67: STATE HIGHWAY REHABILITATION | M67: SW | N67: Dane | O67: STH 019 | P67: Mazomanie - USH 12; STH 78 to USH 12 | Q67: INTEGRITY GRADING AND EXCAVATING, INC. | R67: 8 | S67: 14529722.4 | T67: =IFERROR(Table1[[#This Row],[Total Bid Amount]]/Table1[[#This Row],[Proposal Length]]," ") -> 1509738.404 | U67: 460.5223 | V67: HMA Pavement 3 LT 58-28 S | W67: 44470 | X67: 62.97602878 | Y67: 2 | Z67: X | AA67: 523177 | AB67: 0.036 | AC67: 13000 | AD67: 0.001 | AE67: 0.01 | AF67: 0.207 | AG67: 0.172 | AH67: 0 | AI67: 0.005 | AJ67: 0.024 | AK67: 0.146 | AL67: 0 | AM67: 0.069 | AN67: 0.152 | AO67: 0 | AP67: 0.052 | AQ67: 0 | AR67: 0.012 | AS67: 0 | AT67: 0.008 | AU67: 0.019 | AV67: 0.008 | AW67: 0.003 | AX67: 0 | AY67: 0.005 | AZ67: 0.004 | BA67: 0.057 | BB67: 0.008 | BC67: 0 | BD67: 0.002
A68: Reconstruction | B68: RECONSTRUCTION, PRESERVATION | C68: General Construction | D68: General and Incidental Construction | E68: 0.8 | F68: Unknown | G68: $ 2M to $10M | H68: 2023-12-12 | I68: 2023 | J68: 20231212008 | K68: 5685-00-05 | L68: LOCAL TRANSPORTATION FACILITY IMPROVEMENT ASSISTANCE | M68: SW | N68: Dane | O68: LOC STR | P68: V of Mcfarland, Exchange Street; Farwell St to Sleepy Hollow Road | Q68: JAMES PETERSON SONS, INC. | R68: 5 | S68: 4021987.94 | T68: =IFERROR(Table1[[#This Row],[Total Bid Amount]]/Table1[[#This Row],[Proposal Length]]," ") -> 5027484.925 | U68: 460.5224 | V68: HMA Pavement 4 LT 58-28 S | W68: 5250 | X68: 74.45333333 | Y68: 2 | AA68: 168350 | AB68: 0.042 | AC68: 11500 | AD68: 0.003 | AE68: 0.335 | AF68: 0.103 | AG68: 0.094 | AH68: 0 | AI68: 0.023 | AJ68: 0.103 | AK68: 0.112 | AL68: 0.01 | AM68: 0.015 | AN68: 0.083 | AO68: 0 | AP68: 0 | AQ68: 0 | AR68: 0.004 | AS68: 0.002 | AT68: 0.022 | AU68: 0.008 | AV68: 0.001 | AW68: 0 | AX68: 0 | AY68: 0.026 | AZ68: 0.002 | BA68: 0 | BB68: 0.01 | BC68: 0 | BD68: 0.006
A69: Miscellaneous | B69: MISCELLANEOUS | C69: Structures | D69: General Const and Highway Structures | E69: 0.709 | F69: Unknown | G69: $ 2M to $10M | H69: 2023-12-12 | I69: 2023 | J69: 20231212009 | K69: 5992-11-11 | L69: LOCAL TRANSPORTATION FACILITY IMPROVEMENT ASSISTANCE | M69: SW | N69: Dane | O69: NON HWY | P69: C of Madison, Autumn Ridge Path; Milwaukee Street to Ziegler Road | Q69: ZENITH TECH., INC. - WAUKESHA | R69: 7 | S69: 4039924.46 | T69: =IFERROR(Table1[[#This Row],[Total Bid Amount]]/Table1[[#This Row],[Proposal Length]]," ") -> 5698059.887 | AA69: 367000 | AB69: 0.091 | AC69: 28250 | AD69: 0.007 | AE69: 0.055 | AF69: 0.023 | AG69: 0.018 | AH69: 0.025 | AI69: 0.003 | AJ69: 0.007 | AK69: 0.005 | AL69: 0.011 | AM69: 0.007 | AN69: 0.033 | AO69: 0.009 | AP69: 0.009 | AQ69: 0 | AR69: 0.002 | AS69: 0 | AT69: 0.015 | AU69: 0.001 | AV69: 0 | AW69: 0 | AX69: 0 | AY69: 0.001 | AZ69: 0.006 | BA69: 0.652 | BB69: 0.007 | BC69: 0 | BD69: 0.019
A70: Bridge Replacement | B70: BRIDGE REPLACEMENT, PRESERVATION | C70: Structures | D70: Highway Structures | E70: 0.13 | F70: Unknown | G70: $ 2M to $10M | H70: 2023-12-12 | I70: 2023 | J70: 20231212012 | K70: 7323-00-71 | L70: HIGHWAY AND LOCAL BRIDGE IMPROVEMENT ASSISTANCE | M70: SW | N70: La Crosse | O70: CTH M | P70: STH 16 - CTH S; La Crosse River Bridge, B-32-0245 | Q70: SHEET PILING SERVICES LLC | R70: 4 | S70: 2691774.31 | T70: =IFERROR(Table1[[#This Row],[Total Bid Amount]]/Table1[[#This Row],[Proposal Length]]," ") -> 20705956.23 | U70: 460.5223 | V70: HMA Pavement 3 LT 58-28 S | W70: 477 | X70: 126.3741509 | Y70: 2 | AA70: 176771.1 | AB70: 0.066 | AC70: 7114.42 | AD70: 0.003 | AE70: 0.002 | AF70: 0.024 | AG70: 0.024 | AH70: 0 | AI70: 0.016 | AJ70: 0.007 | AK70: 0.023 | AL70: 0 | AM70: 0.052 | AN70: 0.065 | AO70: 0 | AP70: 0.011 | AQ70: 0 | AR70: 0.001 | AS70: 0 | AT70: 0.003 | AU70: 0.002 | AV70: 0 | AW70: 0.056 | AX70: 0 | AY70: 0.002 | AZ70: 0 | BA70: 0.632 | BB70: 0.007 | BC70: 0 | BD70: 0.008
A71: Resurfacing | B71: RESURFACING (OVERLAY >= 2.5 INCHES AND < 4 INCHES) | C71: Asphaltic Pavement | D71: General Const and Asphaltic Surfacing | E71: 7.814 | F71: Rural | G71: $ 2M to $10M | H71: 2023-12-12 | I71: 2023 | J71: 20231212013 | K71: 7930-08-71 | L71: STATE HIGHWAY REHABILITATION | M71: SW | N71: La Crosse | O71: STH 108 | P71: West Salem - Melrose; Old 16 Road to North County Line | Q71: MATHY CONSTRUCTION COMPANY | R71: 1 | S71: 3699254.81 | T71: =IFERROR(Table1[[#This Row],[Total Bid Amount]]/Table1[[#This Row],[Proposal Length]]," ") -> 473413.7202 | U71: 460.5224 | V71: HMA Pavement 4 LT 58-28 S | W71: 21395 | X71: 85.56 | Y71: 1 | Z71: X | AA71: 257330.99 | AB71: 0.07 | AC71: 26735.11 | AD71: 0.007 | AE71: 0.032 | AF71: 0.554 | AG71: 0.023 | AH71: 0 | AI71: 0 | AJ71: 0 | AK71: 0.04 | AL71: 0 | AM71: 0.004 | AN71: 0.03 | AO71: 0 | AP71: 0.03 | AQ71: 0 | AR71: 0 | AS71: 0 | AT71: 0.014 | AU71: 0.057 | AV71: 0.097 | AW71: 0.007 | AX71: 0.001 | AY71: 0.001 | AZ71: 0 | BA71: 0.008 | BB71: 0.003 | BC71: 0 | BD71: 0.03
A72: Traffic Operations | B72: STH - TRAFFIC OPERATIONS PAVEMENT MARKING | C72: General Construction | D72: Incidental Construction | E72: 104 | F72: Unknown | G72: $ 2M to $10M | H72: 2023-12-12 | I72: 2023 | J72: 20231212014 | K72: 1000-77-24 | L72: HIGHWAY MAINTENANCE, REPAIR AND TRAFFIC OPERATIONS | M72: SE | N72: Southeast Region Wide | O72: VAR HWY | P72: Epoxy Pavement Marking, 2024; Locations On Stn Per Annual Plan | Q72: MEGA RENTALS, INC. | R72: 2 | S72: 2071269.53 | T72: =IFERROR(Table1[[#This Row],[Total Bid Amount]]/Table1[[#This Row],[Proposal Length]]," ") -> 19916.05317 | AA72: 20000 | AB72: 0.01 | AE72: 0.045 | AF72: 0 | AG72: 0 | AH72: 0 | AI72: 0 | AJ72: 0 | AK72: 0 | AL72: 0 | AM72: 0 | AN72: 0 | AO72: 0 | AP72: 0 | AQ72: 0 | AR72: 0 | AS72: 0 | AT72: 0 | AU72: 0.945 | AV72: 0 | AW72: 0 | AX72: 0 | AY72: 0 | AZ72: 0 | BA72: 0 | BB72: 0 | BC72: 0 | BD72: 0
A73: Miscellaneous | B73: MISCELLANEOUS | C73: General Construction | D73: Incidental Construction | E73: 0 | F73: Unknown | G73: $ 0.5M to $ 1M | H73: 2023-12-12 | I73: 2023 | J73: 20231212015 | K73: 1060-53-70 | L73: STATE HIGHWAY REHABILITATION | M73: SE | N73: Southeast Region Wide | O73: OFF SYS | P73: VAR Noise Wall Locations; Locations On Stn Per Annual Plan | Q73: ZENITH TECH., INC. - WAUKESHA | R73: 3 | S73: 952804.46 | T73: =IFERROR(Table1[[#This Row],[Total Bid Amount]]/Table1[[#This Row],[Proposal Length]]," ") ->  | AA73: 100000 | AB73: 0.105 | AC73: 22500 | AD73: 0.024 | AE73: 0.497 | AF73: 0 | AG73: 0 | AH73: 0.065 | AI73: 0 | AJ73: 0 | AK73: 0 | AL73: 0 | AM73: 0.04 | AN73: 0.024 | AO73: 0.01 | AP73: 0 | AQ73: 0 | AR73: 0.008 | AS73: 0 | AT73: 0.007 | AU73: 0 | AV73: 0 | AW73: 0 | AX73: 0 | AY73: 0.005 | AZ73: 0.021 | BA73: 0.174 | BB73: 0 | BC73: 0 | BD73: 0.044
A74: Bridge Rehabilitation | B74: BRIDGE REHABILITATION | C74: Structures | D74: Highway Structures | E74: 0.5 | F74: Unknown | G74: $ 2M to $10M | H74: 2023-12-12 | I74: 2023 | J74: 20231212016 | K74: 1100-20-74 | L74: STATE HIGHWAY REHABILITATION | M74: SE | N74: Milwaukee | O74: IH 041 | P74: IH 41 Zoo Freeway; Capitol Dr I/C | Q74: LUNDA CONSTRUCTION COMPANY | R74: 2 | S74: 2122461.58 | T74: =IFERROR(Table1[[#This Row],[Total Bid Amount]]/Table1[[#This Row],[Proposal Length]]," ") -> 4244923.16 | AA74: 492960.54 | AB74: 0.232 | AC74: 48558.2 | AD74: 0.023 | AE74: 0.098 | AF74: 0 | AG74: 0.002 | AH74: 0.231 | AI74: 0.046 | AJ74: 0 | AK74: 0 | AL74: 0 | AM74: 0.002 | AN74: 0 | AO74: 0 | AP74: 0 | AQ74: 0 | AR74: 0 | AS74: 0 | AT74: 0.014 | AU74: 0.024 | AV74: 0 | AW74: 0.005 | AX74: 0.004 | AY74: 0 | AZ74: 0.003 | BA74: 0.282 | BB74: 0 | BC74: 0 | BD74: 0.056
A75: Pavement Replacement | B75: PAVEMENT REPLACEMENT | C75: General Construction | D75: General and Incidental Construction | E75: 0.26 | F75: Unknown | G75: $ 2M to $10M | H75: 2023-12-12 | I75: 2023 | J75: 20231212017 | K75: 2195-04-70 | L75: STATE HIGHWAY REHABILITATION | M75: SE | N75: Milwaukee | O75: STH 032 | P75: C Milwaukee Wells Street; N Broadway to N Van Buren Street | Q75: SUPER WESTERN, INC. | R75: 4 | S75: 4220130.99 | T75: =IFERROR(Table1[[#This Row],[Total Bid Amount]]/Table1[[#This Row],[Proposal Length]]," ") -> 16231273.04 | U75: 460.5224 | V75: HMA Pavement 4 LT 58-28 S | W75: 2194 | X75: 91 | Y75: 1 | AA75: 483986.95 | AB75: 0.115 | AC75: 40972.23 | AD75: 0.01 | AE75: 0.36 | AF75: 0.063 | AG75: 0.066 | AH75: 0 | AI75: 0.012 | AJ75: 0.1 | AK75: 0.075 | AL75: 0.039 | AM75: 0.009 | AN75: 0.056 | AO75: 0 | AP75: 0 | AQ75: 0 | AR75: 0.003 | AS75: 0.005 | AT75: 0.027 | AU75: 0.001 | AV75: 0.002 | AW75: 0 | AX75: 0.004 | AY75: 0.02 | AZ75: 0 | BA75: 0 | BB75: 0.007 | BC75: 0.022 | BD75: 0.014
A76: Bridge Replacement | B76: BRIDGE REPLACEMENT, PRESERVATION | C76: Structures | D76: General Const and Highway Structures | E76: 0.258 | F76: Unknown | G76: $ 2M to $10M | H76: 2023-12-12 | I76: 2023 | J76: 20231212018 | K76: 2290-03-73 | L76: STATE HIGHWAY REHABILITATION | M76: SE | N76: Racine | O76: STH 038 | P76: Racine - Milwaukee; Bridge Over Root River B-51-0012 | Q76: SHEET PILING SERVICES LLC | R76: 6 | S76: 6370599.26 | T76: =IFERROR(Table1[[#This Row],[Total Bid Amount]]/Table1[[#This Row],[Proposal Length]]," ") -> 24692245.19 | U76: 460.6224 | V76: HMA Pavement 4 MT 58-28 S | W76: 200 | X76: 110 | Y76: 1 | AA76: 550000 | AB76: 0.086 | AC76: 33656.32 | AD76: 0.005 | AE76: 0.019 | AF76: 0.01 | AG76: 0.05 | AH76: 0 | AI76: 0.096 | AJ76: 0.034 | AK76: 0.042 | AL76: 0.048 | AM76: 0.026 | AN76: 0.042 | AO76: 0 | AP76: 0.003 | AQ76: 0.001 | AR76: 0.005 | AS76: 0.001 | AT76: 0.024 | AU76: 0.008 | AV76: 0.001 | AW76: 0.028 | AX76: 0.007 | AY76: 0.015 | AZ76: 0.009 | BA76: 0.417 | BB76: 0.004 | BC76: 0.007 | BD76: 0.016
A77: Resurfacing | B77: RESURFACING (OVERLAY >= 4 INCHES) | C77: General Construction | D77: General and Incidental Construction | E77: 0.772 | F77: Unknown | G77: $ 2M to $10M | H77: 2023-12-12 | I77: 2023 | J77: 20231212019 | K77: 2717-04-70 | L77: LOCAL TRANSPORTATION FACILITY IMPROVEMENT ASSISTANCE | M77: SE | N77: Waukesha | O77: CTH T | P77: C Waukesha Grandview Blvd; Northview Road to Ih-94 | Q77: STARK PAVEMENT CORPORATION | R77: 5 | S77: 2495869.44 | T77: =IFERROR(Table1[[#This Row],[Total Bid Amount]]/Table1[[#This Row],[Proposal Length]]," ") -> 3232991.503 | U77: 460.6224 | V77: HMA Pavement 4 MT 58-28 S | W77: 3657 | X77: 74.3 | Y77: 1 | AA77: 93550 | AB77: 0.037 | AC77: 39991.56 | AD77: 0.016 | AE77: 0.177 | AF77: 0.119 | AG77: 0.097 | AH77: 0 | AI77: 0.026 | AJ77: 0.041 | AK77: 0.019 | AL77: 0.179 | AM77: 0.008 | AN77: 0.009 | AO77: 0 | AP77: 0 | AQ77: 0 | AR77: 0 | AS77: 0 | AT77: 0.086 | AU77: 0.021 | AV77: 0.03 | AW77: 0 | AX77: 0.001 | AY77: 0.024 | AZ77: 0.004 | BA77: 0 | BB77: 0.003 | BC77: 0.09 | BD77: 0.028
A78: Resurfacing | B78: RESURFACING (OVERLAY >= 2.5 INCHES AND < 4 INCHES) | C78: Asphaltic Pavement | D78: General Const and Asphaltic Surfacing | E78: 2.695 | F78: Rural | G78: $ 2M to $10M | H78: 2023-12-12 | I78: 2023 | J78: 20231212020 | K78: 1150-64-71 | L78: STATE HIGHWAY REHABILITATION | M78: NE | N78: Marinette | O78: USH 041 | P78: Peshtigo-Marinette; Peshtigo Bypass-CTH T | Q78: NORTHEAST ASPHALT, INC | R78: 1 | S78: 3410069.61 | T78: =IFERROR(Table1[[#This Row],[Total Bid Amount]]/Table1[[#This Row],[Proposal Length]]," ") -> 1265331.952 | U78: 460.8624 | V78: HMA Pavement 4 SMA 58-28 V | W78: 17985 | X78: 100.3447317 | Y78: 2 | AA78: 185750 | AB78: 0.054 | AC78: 48481 | AD78: 0.014 | AE78: 0.029 | AF78: 0.581 | AG78: 0.065 | AH78: 0 | AI78: 0.002 | AJ78: 0.017 | AK78: 0.006 | AL78: 0.003 | AM78: 0.009 | AN78: 0.015 | AO78: 0 | AP78: 0.017 | AQ78: 0 | AR78: 0.006 | AS78: 0 | AT78: 0.02 | AU78: 0.065 | AV78: 0.047 | AW78: 0 | AX78: 0 | AY78: 0.01 | AZ78: 0.002 | BA78: 0 | BB78: 0.007 | BC78: 0 | BD78: 0.044
A79: Resurfacing | B79: RESURFACING (OVERLAY >= 2.5 INCHES AND < 4 INCHES) | C79: Asphaltic Pavement | D79: General Const and Asphaltic Surfacing | E79: 4.398 | F79: Unknown | G79: $ 2M to $10M | H79: 2023-12-12 | I79: 2023 | J79: 20231212021 | K79: 1480-27-71 | L79: STATE HIGHWAY REHABILITATION | M79: NE | N79: Brown | O79: STH 054 | P79: Green Bay-Luxemburg; University Way-Sth57 | Q79: NORTHEAST ASPHALT, INC | R79: 1 | S79: 7575330.88 | T79: =IFERROR(Table1[[#This Row],[Total Bid Amount]]/Table1[[#This Row],[Proposal Length]]," ") -> 1722449.04 | U79: 460.8624 | V79: HMA Pavement 4 SMA 58-28 V | W79: 25430 | X79: 94.42137239 | Y79: 2 | AA79: 525450 | AB79: 0.069 | AC79: 165000 | AD79: 0.022 | AE79: 0.018 | AF79: 0.551 | AG79: 0.086 | AH79: 0 | AI79: 0.031 | AJ79: 0.003 | AK79: 0.002 | AL79: 0 | AM79: 0.005 | AN79: 0.004 | AO79: 0 | AP79: 0.061 | AQ79: 0 | AR79: 0 | AS79: 0 | AT79: 0.015 | AU79: 0.084 | AV79: 0.025 | AW79: 0 | AX79: 0.006 | AY79: 0.003 | AZ79: 0.002 | BA79: 0.001 | BB79: 0 | BC79: 0 | BD79: 0.035
A80: Reconstruction | B80: RECONSTRUCTION, PRESERVATION | C80: Grading | D80: General Construction and Grading | E80: 3.617 | F80: Rural | G80: $ 2M to $10M | H80: 2023-12-12 | I80: 2023 | J80: 20231212022 | K80: 1500-33-71 | L80: STATE HIGHWAY REHABILITATION | M80: NE | N80: Manitowoc | O80: USH 010 | P80: Reedsville - Manitowoc, East Village Limits - Branch River | Q80: VINTON CONSTRUCTION COMPANY | R80: 6 | S80: 3339913.98 | T80: =IFERROR(Table1[[#This Row],[Total Bid Amount]]/Table1[[#This Row],[Proposal Length]]," ") -> 923393.4144 | U80: 460.6223 | V80: HMA Pavement 3 MT 58-28 S | W80: 13360 | X80: 69.2803518 | Y80: 2 | AA80: 262000 | AB80: 0.078 | AC80: 7435 | AD80: 0.002 | AE80: 0 | AF80: 0.287 | AG80: 0.248 | AH80: 0 | AI80: 0 | AJ80: 0.006 | AK80: 0.042 | AL80: 0 | AM80: 0.058 | AN80: 0.21 | AO80: 0 | AP80: 0 | AQ80: 0 | AR80: 0.017 | AS80: 0 | AT80: 0.02 | AU80: 0.019 | AV80: 0 | AW80: 0 | AX80: 0 | AY80: 0.003 | AZ80: 0.004 | BA80: 0 | BB80: 0.005 | BC80: 0 | BD80: 0.005
A81: Resurfacing | B81: RESURFACING (OVERLAY >= 4 INCHES) | C81: Asphaltic Pavement | D81: General Const and Asphaltic Surfacing | E81: 12.076 | F81: Rural | G81: $ 2M to $10M | H81: 2023-12-12 | I81: 2023 | J81: 20231212023 | K81: 4140-28-71 | L81: STATE HIGHWAY REHABILITATION | M81: NE | N81: Door | O81: STH 042 | P81: Sturgeon Bay-Egg Harbor; Mid Junction-CTH T | Q81: NORTHEAST ASPHALT, INC | R81: 1 | S81: 6764171.88 | T81: =IFERROR(Table1[[#This Row],[Total Bid Amount]]/Table1[[#This Row],[Proposal Length]]," ") -> 560133.478 | U81: 460.6223 | V81: HMA Pavement 3 MT 58-28 S | W81: 65825 | X81: 71.47189518 | Y81: 3 | Z81: X | AA81: 95250 | AB81: 0.014 | AC81: 23125 | AD81: 0.003 | AE81: 0.006 | AF81: 0.764 | AG81: 0.037 | AH81: 0 | AI81: 0.001 | AJ81: 0.002 | AK81: 0.012 | AL81: 0 | AM81: 0.005 | AN81: 0.012 | AO81: 0 | AP81: 0 | AQ81: 0 | AR81: 0.001 | AS81: 0 | AT81: 0.021 | AU81: 0.056 | AV81: 0.032 | AW81: 0 | AX81: 0 | AY81: 0.001 | AZ81: 0 | BA81: 0 | BB81: 0.001 | BC81: 0 | BD81: 0.036
A82: Preservation/Restoration | B82: SHORT TERM OVERLAY (MILL AND OVERLAY) | C82: Asphaltic Pavement | D82: General Const and Asphaltic Surfacing | E82: 7.042 | F82: Rural | G82: $ 2M to $10M | H82: 2023-12-12 | I82: 2023 | J82: 20231212024 | K82: 4140-34-60 | L82: STATE HIGHWAY REHABILITATION | M82: NE | N82: Door | O82: STH 042 | P82: Egg Harbor-Fish Creek; Rainbow Ridge Rd-Bluff Ln | Q82: NORTHEAST ASPHALT, INC | R82: 1 | S82: 2346573.59 | T82: =IFERROR(Table1[[#This Row],[Total Bid Amount]]/Table1[[#This Row],[Proposal Length]]," ") -> 333225.4459 | U82: 460.6224 | V82: HMA Pavement 4 MT 58-28 S | W82: 17582 | X82: 84.1 | Y82: 1 | Z82: X | AA82: 124550 | AB82: 0.053 | AC82: 8125 | AD82: 0.004 | AE82: 0.011 | AF82: 0.683 | AG82: 0.025 | AH82: 0 | AI82: 0 | AJ82: 0 | AK82: 0 | AL82: 0 | AM82: 0.003 | AN82: 0.004 | AO82: 0 | AP82: 0.018 | AQ82: 0 | AR82: 0 | AS82: 0 | AT82: 0.033 | AU82: 0.096 | AV82: 0.048 | AW82: 0 | AX82: 0 | AY82: 0.001 | AZ82: 0 | BA82: 0 | BB82: 0.002 | BC82: 0 | BD82: 0.021
A83: Resurfacing | B83: RESURFACING (OVERLAY < 2.5 INCHES) | C83: Asphaltic Pavement | D83: General Const and Asphaltic Surfacing | E83: 7.805 | F83: Rural | G83: $ 2M to $10M | H83: 2023-12-12 | I83: 2023 | J83: 20231212025 | K83: 6420-00-72 | L83: STATE HIGHWAY REHABILITATION | M83: NC | N83: Waupaca | O83: STH 049 | P83: Waupaca - Northland; North Street to Depot Street | Q83: AMERICAN ASPHALT OF WISCONSIN | R83: 3 | S83: 3141474.08 | T83: =IFERROR(Table1[[#This Row],[Total Bid Amount]]/Table1[[#This Row],[Proposal Length]]," ") -> 402495.0775 | U83: 460.6224 | V83: HMA Pavement 4 MT 58-28 S | W83: 16990 | X83: 64.44 | Y83: 1 | Z83: X | AA83: 182445.2 | AB83: 0.058 | AC83: 9500 | AD83: 0.003 | AE83: 0.006 | AF83: 0.404 | AG83: 0.049 | AH83: 0 | AI83: 0.002 | AJ83: 0.028 | AK83: 0.039 | AL83: 0.006 | AM83: 0.04 | AN83: 0.025 | AO83: 0 | AP83: 0.071 | AQ83: 0 | AR83: 0.001 | AS83: 0 | AT83: 0.026 | AU83: 0.079 | AV83: 0.009 | AW83: 0 | AX83: 0 | AY83: 0.008 | AZ83: 0.002 | BA83: 0.116 | BB83: 0.003 | BC83: 0 | BD83: 0.03
A84: Resurfacing | B84: PARTIAL DEPTH CIR WITH <= 2.5 INCH CAP | C84: Asphaltic Pavement | D84: General Const and Asphaltic Surfacing | E84: 2.505 | F84: Rural | G84: $ 1M to $ 2M | H84: 2023-12-12 | I84: 2023 | J84: 20231212026 | K84: 6667-00-71 | L84: LOCAL TRANSPORTATION FACILITY IMPROVEMENT ASSISTANCE | M84: NC | N84: Marathon | O84: CTH T | P84: Hewitt - STH 97; South County Line to STH 97 | Q84: AMERICAN ASPHALT OF WISCONSIN | R84: 1 | S84: 1032716.98 | T84: =IFERROR(Table1[[#This Row],[Total Bid Amount]]/Table1[[#This Row],[Proposal Length]]," ") -> 412262.2675 | U84: 460.6225 | V84: HMA Pavement 5 MT 58-28 S | W84: 4740 | X84: 98.26 | Y84: 1 | AA84: 99565 | AB84: 0.096 | AC84: 2560 | AD84: 0.003 | AE84: 0.006 | AF84: 0.537 | AG84: 0.158 | AH84: 0 | AI84: 0 | AJ84: 0 | AK84: 0 | AL84: 0 | AM84: 0.008 | AN84: 0.059 | AO84: 0 | AP84: 0.038 | AQ84: 0 | AR84: 0 | AS84: 0 | AT84: 0.029 | AU84: 0.027 | AV84: 0.032 | AW84: 0 | AX84: 0 | AY84: 0.001 | AZ84: 0 | BA84: 0 | BB84: 0.001 | BC84: 0 | BD84: 0.006
A85: Bridge Rehabilitation | B85: BRIDGE REHABILITATION | C85: General Construction | D85: General Construction | E85: 0.0241 | F85: Unknown | G85: $ 0.5M to $ 1M | H85: 2023-12-12 | I85: 2023 | J85: 20231212028 | K85: 1021-00-80 | L85: STATE HIGHWAY REHABILITATION | M85: NW | N85: Eau Claire | O85: IH 094 | P85: Menomonie - Eau Claire; Lowes Creek Bridge B-18-0228 | Q85: CHIPPEWA CONCRETE SERVICES, INC. | R85: 3 | S85: 555994.6 | T85: =IFERROR(Table1[[#This Row],[Total Bid Amount]]/Table1[[#This Row],[Proposal Length]]," ") -> 23070315.35 | U85: 460.6644 | V85: HMA Pavement 4 MT 58-34 V | W85: 648 | X85: 164.1158025 | Y85: 1 | AA85: 98710 | AB85: 0.178 | AC85: 8286.22 | AD85: 0.015 | AE85: 0.009 | AF85: 0.216 | AG85: 0.019 | AH85: 0 | AI85: 0.146 | AJ85: 0.009 | AK85: 0 | AL85: 0 | AM85: 0.01 | AN85: 0.036 | AO85: 0 | AP85: 0.021 | AQ85: 0 | AR85: 0 | AS85: 0 | AT85: 0.022 | AU85: 0.013 | AV85: 0.029 | AW85: 0.013 | AX85: 0.01 | AY85: 0 | AZ85: 0.001 | BA85: 0.166 | BB85: 0.016 | BC85: 0 | BD85: 0.088
A86: Pavement Replacement | B86: PAVEMENT REPLACEMENT | C86: Concrete Pavement | D86: General Construction and PCC Pavement | E86: 7.595 | F86: Urban | G86: $20M or more | H86: 2023-12-12 | I86: 2023 | J86: 20231212029 | K86: 1190-08-79 | L86: STATE HIGHWAY REHABILITATION | M86: NW | N86: Chippewa | O86: USH 053 | P86: Chippewa Falls - New Auburn, 40th Avenue - CTH B (Nb & Sb) | Q86: JAMES PETERSON SONS, INC. | R86: 4 | S86: 36641207.93 | T86: =IFERROR(Table1[[#This Row],[Total Bid Amount]]/Table1[[#This Row],[Proposal Length]]," ") -> 4824385.508 | U86: 460.6244 | V86: HMA Pavement 4 MT 58-34 S | W86: 28300 | X86: 124.03 | Y86: 1 | AA86: 4842246 | AB86: 0.132 | AC86: 489567.3 | AD86: 0.013 | AE86: 0.026 | AF86: 0.152 | AG86: 0.112 | AH86: 0 | AI86: 0.283 | AJ86: 0.008 | AK86: 0.005 | AL86: 0 | AM86: 0.016 | AN86: 0.11 | AO86: 0.017 | AP86: 0.021 | AQ86: 0 | AR86: 0.01 | AS86: 0 | AT86: 0.005 | AU86: 0.017 | AV86: 0 | AW86: 0 | AX86: 0.022 | AY86: 0.006 | AZ86: 0.003 | BA86: 0.012 | BB86: 0.005 | BC86: 0 | BD86: 0.036
A87: Miscellaneous | B87: MISCELLANEOUS | C87: Asphaltic Pavement | D87: General Const and Asphaltic Surfacing | E87: 13.6 | F87: Rural | G87: $10M to $20M | H87: 2023-12-12 | I87: 2023 | J87: 20231212030 | K87: 1530-00-79 | L87: STATE HIGHWAY REHABILITATION | M87: NW | N87: Pierce | O87: USH 010 | P87: Prescott - Ellsworth; Spring Cr Culverts C-47-0060 & 0061 | Q87: MONARCH PAVING COMPANY | R87: 1 | S87: 14349291.41 | T87: =IFERROR(Table1[[#This Row],[Total Bid Amount]]/Table1[[#This Row],[Proposal Length]]," ") -> 1055094.957 | U87: 460.6645 | V87: HMA Pavement 5 MT 58-34 V | W87: 45600 | X87: 103.3699474 | Y87: 2 | Z87: X | AA87: 762050 | AB87: 0.053 | AC87: 32485 | AD87: 0.002 | AE87: 0.13 | AF87: 0.394 | AG87: 0.045 | AH87: 0 | AI87: 0.02 | AJ87: 0.001 | AK87: 0.007 | AL87: 0 | AM87: 0.026 | AN87: 0.022 | AO87: 0.002 | AP87: 0.048 | AQ87: 0 | AR87: 0.001 | AS87: 0 | AT87: 0.008 | AU87: 0.041 | AV87: 0.012 | AW87: 0.002 | AX87: 0.067 | AY87: 0.002 | AZ87: 0 | BA87: 0.091 | BB87: 0.002 | BC87: 0 | BD87: 0.026
A88: Resurfacing | B88: RESURFACING (OVERLAY >= 2.5 INCHES AND < 4 INCHES) | C88: Asphaltic Pavement | D88: General Const and Asphaltic Surfacing | E88: 7.805 | F88: Rural | G88: $ 2M to $10M | H88: 2023-12-12 | I88: 2023 | J88: 20231212031 | K88: 1530-05-73 | L88: STATE HIGHWAY REHABILITATION | M88: NW | N88: Pepin | O88: USH 010 | P88: Ellsworth - Durand Pierce/Pepin Co. Line to CTH P | Q88: MONARCH PAVING COMPANY | R88: 1 | S88: 5877482.66 | T88: =IFERROR(Table1[[#This Row],[Total Bid Amount]]/Table1[[#This Row],[Proposal Length]]," ") -> 753040.6996 | U88: 460.6645 | V88: HMA Pavement 5 MT 58-34 V | W88: 27860 | X88: 100.58 | Y88: 1 | Z88: X | AA88: 589666.23 | AB88: 0.1 | AC88: 36302.63 | AD88: 0.006 | AE88: 0.016 | AF88: 0.529 | AG88: 0.032 | AH88: 0 | AI88: 0.001 | AJ88: 0.001 | AK88: 0.014 | AL88: 0.004 | AM88: 0.017 | AN88: 0.033 | AO88: 0 | AP88: 0.108 | AQ88: 0 | AR88: 0.001 | AS88: 0 | AT88: 0.014 | AU88: 0.038 | AV88: 0.062 | AW88: 0 | AX88: 0.001 | AY88: 0.001 | AZ88: 0 | BA88: 0.003 | BB88: 0.002 | BC88: 0 | BD88: 0.022
A89: Resurfacing | B89: RESURFACING (OVERLAY >= 2.5 INCHES AND < 4 INCHES) | C89: Asphaltic Pavement | D89: General Const and Asphaltic Surfacing | E89: 21.717 | F89: Rural | G89: $ 2M to $10M | H89: 2023-12-12 | I89: 2023 | J89: 20231212032 | K89: 1580-04-72 | L89: STATE HIGHWAY REHABILITATION | M89: NW | N89: Rusk | O89: USH 008 | P89: Ladysmith - Hawkins River Avenue to Prentice Street USH 8 Rusk County | Q89: MONARCH PAVING COMPANY | R89: 2 | S89: 8781364.94 | T89: =IFERROR(Table1[[#This Row],[Total Bid Amount]]/Table1[[#This Row],[Proposal Length]]," ") -> 404354.42 | U89: 460.6644 | V89: HMA Pavement 4 MT 58-34 V | W89: 79927 | X89: 81.85904863 | Y89: 2 | Z89: X | AA89: 10000 | AB89: 0.001 | AC89: 3500 | AD89: 0 | AE89: 0.004 | AF89: 0.807 | AG89: 0.04 | AH89: 0 | AI89: 0.001 | AJ89: 0.04 | AK89: 0.002 | AL89: 0 | AM89: 0.005 | AN89: 0.019 | AO89: 0 | AP89: 0.004 | AQ89: 0 | AR89: 0 | AS89: 0 | AT89: 0.018 | AU89: 0.025 | AV89: 0.008 | AW89: 0 | AX89: 0.001 | AY89: 0.006 | AZ89: 0.001 | BA89: 0 | BB89: 0.002 | BC89: 0 | BD89: 0.017
A90: Resurfacing | B90: PARTIAL DEPTH CIR WITH > 2.5 INCH CAP | C90: Asphaltic Pavement | D90: General Const and Asphaltic Surfacing | E90: 5.25 | F90: Rural | G90: $ 2M to $10M | H90: 2023-12-12 | I90: 2023 | J90: 20231212033 | K90: 7070-06-72 | L90: STATE HIGHWAY REHABILITATION | M90: NW | N90: Chippewa | O90: STH 027 | P90: Augusta - Cadott; Eau Claire/Chippewa Co Ln to STH 29 | Q90: MONARCH PAVING COMPANY | R90: 1 | S90: 3845359.13 | T90: =IFERROR(Table1[[#This Row],[Total Bid Amount]]/Table1[[#This Row],[Proposal Length]]," ") -> 732449.3581 | U90: 460.6645 | V90: HMA Pavement 5 MT 58-34 V | W90: 15900 | X90: 99.49 | Y90: 1 | Z90: X | AA90: 335378.62 | AB90: 0.087 | AC90: 10024.76 | AD90: 0.003 | AE90: 0.015 | AF90: 0.489 | AG90: 0.13 | AH90: 0 | AI90: 0.013 | AJ90: 0.005 | AK90: 0.031 | AL90: 0.002 | AM90: 0.014 | AN90: 0.056 | AO90: 0 | AP90: 0.013 | AQ90: 0 | AR90: 0.002 | AS90: 0 | AT90: 0.013 | AU90: 0.033 | AV90: 0.013 | AW90: 0.004 | AX90: 0 | AY90: 0.002 | AZ90: 0 | BA90: 0.06 | BB90: 0.001 | BC90: 0 | BD90: 0.018
A91: Resurfacing | B91: RESURFACING (OVERLAY >= 2.5 INCHES AND < 4 INCHES) | C91: Asphaltic Pavement | D91: General Const and Asphaltic Surfacing | E91: 9.642 | F91: Rural | G91: $ 2M to $10M | H91: 2023-12-12 | I91: 2023 | J91: 20231212034 | K91: 7560-05-74 | L91: STATE HIGHWAY REHABILITATION | M91: NW | N91: Jackson | O91: STH 095 | P91: Blair - Merrillan; Trempealeau/Jackson Co Ln to IH 94 | Q91: MATHY CONSTRUCTION COMPANY | R91: 1 | S91: 5785535.31 | T91: =IFERROR(Table1[[#This Row],[Total Bid Amount]]/Table1[[#This Row],[Proposal Length]]," ") -> 600034.776 | U91: 460.8644 | V91: HMA Pavement 4 SMA 58-34 V | W91: 33501 | X91: 99.65615385 | Y91: 2 | Z91: X | AA91: 392547.02 | AB91: 0.068 | AC91: 7094.15 | AD91: 0.001 | AE91: 0.002 | AF91: 0.667 | AG91: 0.03 | AH91: 0 | AI91: 0 | AJ91: 0.009 | AK91: 0.036 | AL91: 0 | AM91: 0.006 | AN91: 0.013 | AO91: 0 | AP91: 0.024 | AQ91: 0 | AR91: 0.001 | AS91: 0 | AT91: 0.013 | AU91: 0.038 | AV91: 0.072 | AW91: 0 | AX91: 0 | AY91: 0.001 | AZ91: 0.001 | BA91: 0.003 | BB91: 0.001 | BC91: 0 | BD91: 0.014
A92: Bridge Rehabilitation | B92: BRIDGE REHABILITATION | C92: Structures | D92: General Const and Highway Structures | E92: 0.064 | F92: Rural | G92: $ 0.5M or less | H92: 2023-12-12 | I92: 2023 | J92: 20231212035 | K92: 7881-00-70 | L92: HIGHWAY AND LOCAL BRIDGE IMPROVEMENT ASSISTANCE | M92: NW | N92: Dunn | O92: LOC STR | P92: T Menomonie, 390th Street; Wilson Creek Bridge P-17-0062 | Q92: SHEET PILING SERVICES LLC | R92: 6 | S92: 455153.62 | T92: =IFERROR(Table1[[#This Row],[Total Bid Amount]]/Table1[[#This Row],[Proposal Length]]," ") -> 7111775.312 | AA92: 44530.27 | AB92: 0.098 | AC92: 2470 | AD92: 0.005 | AE92: 0.019 | AF92: 0.066 | AG92: 0.054 | AH92: 0 | AI92: 0.001 | AJ92: 0 | AK92: 0.001 | AL92: 0 | AM92: 0.026 | AN92: 0.075 | AO92: 0 | AP92: 0.067 | AQ92: 0 | AR92: 0.001 | AS92: 0 | AT92: 0.01 | AU92: 0.009 | AV92: 0 | AW92: 0.275 | AX92: 0 | AY92: 0.001 | AZ92: 0.002 | BA92: 0.283 | BB92: 0.004 | BC92: 0 | BD92: 0.009
A93: Reconstruction | B93: RECONSTRUCTION, PRESERVATION | C93: General Construction | D93: General and Incidental Construction | E93: 0.434 | F93: Unknown | G93: $ 2M to $10M | H93: 2023-12-12 | I93: 2023 | J93: 20231212036 | K93: 7995-02-59 | L93: LOCAL TRANSPORTATION FACILITY IMPROVEMENT ASSISTANCE | M93: NW | N93: Eau Claire | O93: LOC STR | P93: C Eau Claire, Fairfax Street; S Hastings Way to Spooner Avenue | Q93: HAAS SONS, INC. | R93: 4 | S93: 3181123.44 | T93: =IFERROR(Table1[[#This Row],[Total Bid Amount]]/Table1[[#This Row],[Proposal Length]]," ") -> 7329777.512 | U93: 460.6223 | V93: HMA Pavement 3 MT 58-28 S | W93: 120 | X93: 140.9966667 | Y93: 2 | AA93: 118820 | AB93: 0.037 | AC93: 6000 | AD93: 0.002 | AE93: 0.274 | AF93: 0.025 | AG93: 0.033 | AH93: 0 | AI93: 0.249 | AJ93: 0.086 | AK93: 0.18 | AL93: 0.001 | AM93: 0.009 | AN93: 0.02 | AO93: 0 | AP93: 0 | AQ93: 0 | AR93: 0.002 | AS93: 0 | AT93: 0.016 | AU93: 0.02 | AV93: 0 | AW93: 0 | AX93: 0.015 | AY93: 0.018 | AZ93: 0.001 | BA93: 0 | BB93: 0.009 | BC93: 0 | BD93: 0.005
A94: Expansion | B94: NEW BRIDGE | C94: Structures | D94: General Const and Highway Structures | E94: 0.125 | F94: Rural | G94: $ 0.5M to $ 1M | H94: 2023-12-12 | I94: 2023 | J94: 20231212037 | K94: 8170-01-74 | L94: STATE HIGHWAY REHABILITATION | M94: NW | N94: Sawyer | O94: STH 070 | P94: Ojibwa - Oxbo Log Creek Bridge B-57-0094 | Q94: LARSON CONSTRUCTION CO., INC. | R94: 6 | S94: 898574.62 | T94: =IFERROR(Table1[[#This Row],[Total Bid Amount]]/Table1[[#This Row],[Proposal Length]]," ") -> 7188596.96 | AA94: 75010 | AB94: 0.083 | AC94: 2500 | AD94: 0.003 | AE94: 0 | AF94: 0.058 | AG94: 0.068 | AH94: 0 | AI94: 0.001 | AJ94: 0.01 | AK94: 0.001 | AL94: 0 | AM94: 0.047 | AN94: 0.061 | AO94: 0 | AP94: 0.036 | AQ94: 0 | AR94: 0.004 | AS94: 0 | AT94: 0.012 | AU94: 0.008 | AV94: 0.004 | AW94: 0.029 | AX94: 0 | AY94: 0 | AZ94: 0.001 | BA94: 0.536 | BB94: 0.007 | BC94: 0 | BD94: 0.033
A95: Bridge Replacement | B95: BRIDGE REPLACEMENT, PRESERVATION | C95: Structures | D95: Highway Structures | E95: 0.025 | F95: Rural | G95: $ 0.5M or less | H95: 2023-12-12 | I95: 2023 | J95: 20231212038 | K95: 8885-03-70 | L95: HIGHWAY AND LOCAL BRIDGE IMPROVEMENT ASSISTANCE | M95: NW | N95: Taylor | O95: CTH F | P95: Lublin - STH 64, N Fork Eau Claire Rvr Br | Q95: LARSON CONSTRUCTION CO., INC. | R95: 6 | S95: 419715.17 | T95: =IFERROR(Table1[[#This Row],[Total Bid Amount]]/Table1[[#This Row],[Proposal Length]]," ") -> 16788606.8 | AA95: 37625 | AB95: 0.09 | AC95: 2550 | AD95: 0.006 | AE95: 0.017 | AF95: 0.025 | AG95: 0.033 | AH95: 0 | AI95: 0.002 | AJ95: 0 | AK95: 0.003 | AL95: 0 | AM95: 0.07 | AN95: 0.098 | AO95: 0 | AP95: 0 | AQ95: 0 | AR95: 0.001 | AS95: 0 | AT95: 0.021 | AU95: 0.014 | AV95: 0 | AW95: 0.016 | AX95: 0 | AY95: 0 | AZ95: 0.002 | BA95: 0.594 | BB95: 0.005 | BC95: 0 | BD95: 0.008
A96: Preservation/Restoration | B96: SOME COMBO OF PATCH/RUT/REPAIR/SEAL/CRACK/GRIND | C96: General Construction | D96: General Construction | E96: 28 | F96: Rural | G96: $ 2M to $10M | H96: 2023-11-14 | I96: =YEAR(H96) -> 2023 | J96: 20231114001 | K96: 1016-01-63 | L96: STATE HIGHWAY REHABILITATION | M96: SW | N96: Sauk | O96: IH 090 | P96: Tomah - Portage; Mirror Lake Bridge to STH 33 | Q96: D L GASSER CONSTRUCTION | R96: 3 | S96: 6963201.48 | T96: =IFERROR(Table1[[#This Row],[Total Bid Amount]]/Table1[[#This Row],[Proposal Length]]," ") -> 248685.7671 | U96: 460.5224 | V96: HMA Pavement 4 LT 58-28 S | W96: 28300 | X96: 83.37 | Y96: 1 | AA96: 356505.82 | AB96: 0.051 | AC96: 19000 | AD96: 0.003 | AE96: 0 | AF96: 0.347 | AG96: 0.032 | AH96: 0 | AI96: 0.283 | AJ96: 0 | AK96: 0 | AL96: 0 | AM96: 0.001 | AN96: 0.004 | AO96: 0.112 | AP96: 0 | AQ96: 0 | AR96: 0 | AS96: 0 | AT96: 0.018 | AU96: 0.037 | AV96: 0.061 | AW96: 0 | AX96: 0 | AY96: 0.03 | AZ96: 0 | BA96: 0 | BB96: 0.002 | BC96: 0 | BD96: 0.023
A97: Resurfacing | B97: RESURFACING (OVERLAY >= 4 INCHES) | C97: Asphaltic Pavement | D97: General Const and Asphaltic Surfacing | E97: 10.444 | F97: Rural | G97: $10M to $20M | H97: 2023-11-14 | I97: =YEAR(H97) -> 2023 | J97: 20231114002 | K97: 1017-01-73 | L97: STATE HIGHWAY REHABILITATION | M97: SW | N97: Monroe | O97: IH 090 | P97: Tomah – Camp Douglas, EB; USH 12 to CTH C | Q97: MATHY CONSTRUCTION COMPANY | R97: 1 | S97: 17121756.5 | T97: =IFERROR(Table1[[#This Row],[Total Bid Amount]]/Table1[[#This Row],[Proposal Length]]," ") -> 1639386.873 | U97: 460.7223 | V97: HMA Pavement 3 HT 58-28 S | W97: 102726 | X97: 97.41619571 | Y97: 5 | Z97: X | AA97: 654143.28 | AB97: 0.038 | AC97: 94504.22 | AD97: 0.006 | AE97: 0.11 | AF97: 0.609 | AG97: 0.012 | AH97: 0 | AI97: 0.005 | AJ97: 0.001 | AK97: 0.006 | AL97: 0 | AM97: 0.01 | AN97: 0.028 | AO97: 0 | AP97: 0.005 | AQ97: 0 | AR97: 0.005 | AS97: 0 | AT97: 0.007 | AU97: 0.04 | AV97: 0.002 | AW97: 0 | AX97: 0.001 | AY97: 0.001 | AZ97: 0.001 | BA97: 0 | BB97: 0.003 | BC97: 0 | BD97: 0.116
A98: Bridge Rehabilitation | B98: BRIDGE REHABILITATION | C98: Structures | D98: General Const and Highway Structures | E98: 0.083 | F98: Rural | G98: $ 1M to $ 2M | H98: 2023-11-14 | I98: =YEAR(H98) -> 2023 | J98: 20231114003 | K98: 1400-00-89 | L98: STATE HIGHWAY REHABILITATION | M98: SW | N98: Dodge | O98: STH 016 | P98: Columbus - Watertown; Cmstpp Rr Bridge B-14-066 | Q98: ZENITH TECH., INC. - WAUKESHA | R98: 2 | S98: 1316747.41 | T98: =IFERROR(Table1[[#This Row],[Total Bid Amount]]/Table1[[#This Row],[Proposal Length]]," ") -> 15864426.63 | AA98: 113000 | AB98: 0.086 | AC98: 20000 | AD98: 0.015 | AE98: 0 | AF98: 0.022 | AG98: 0.017 | AH98: 0.026 | AI98: 0.076 | AJ98: 0.011 | AK98: 0.026 | AL98: 0 | AM98: 0.035 | AN98: 0.034 | AO98: 0 | AP98: 0.048 | AQ98: 0 | AR98: 0.008 | AS98: 0 | AT98: 0.024 | AU98: 0.007 | AV98: 0 | AW98: 0.031 | AX98: 0.003 | AY98: 0.008 | AZ98: 0 | BA98: 0.507 | BB98: 0.002 | BC98: 0 | BD98: 0.029
A99: Resurfacing | B99: RESURFACING (OVERLAY >= 4 INCHES) | C99: Asphaltic Pavement | D99: General Const and Asphaltic Surfacing | E99: 14.825 | F99: Rural | G99: $ 2M to $10M | H99: 2023-11-14 | I99: 2023 | J99: 20231114004 | K99: 5150-02-70 | L99: STATE HIGHWAY REHABILITATION | M99: SW | N99: Vernon | O99: STH 082 | P99: Desoto - Viroqua; STH 35 to STH 27 | Q99: IVERSON CONSTRUCTION, A DIV. OF MATHY CONSTRUCTION | R99: 1 | S99: 9615359.51 | T99: =IFERROR(Table1[[#This Row],[Total Bid Amount]]/Table1[[#This Row],[Proposal Length]]," ") -> 648590.8607 | U99: 460.5224 | V99: HMA Pavement 4 LT 58-28 S | W99: 49635 | X99: 84.73 | Y99: 1 | Z99: X | AA99: 422308.34 | AB99: 0.044 | AC99: 54390.05 | AD99: 0.006 | AE99: 0.028 | AF99: 0.491 | AG99: 0.068 | AH99: 0 | AI99: 0 | AJ99: 0.017 | AK99: 0.035 | AL99: 0 | AM99: 0.02 | AN99: 0.04 | AO99: 0 | AP99: 0.031 | AQ99: 0 | AR99: 0.003 | AS99: 0 | AT99: 0.01 | AU99: 0.036 | AV99: 0.067 | AW99: 0.006 | AX99: 0 | AY99: 0.002 | AZ99: 0.002 | BA99: 0.08 | BB99: 0.003 | BC99: 0 | BD99: 0.018
A100: Resurfacing | B100: RESURF (OVERLAY >= 4 IN DOES NOT INCREASE PROFILE) | C100: Asphaltic Pavement | D100: General Const and Asphaltic Surfacing | E100: 2.58 | F100: Rural | G100: $ 2M to $10M | H100: 2023-11-14 | I100: =YEAR(H100) -> 2023 | J100: 20231114005 | K100: 5255-01-73 | L100: STATE HIGHWAY REHABILITATION | M100: SW | N100: Sauk | O100: STH 023 | P100: Mineral Point – Spring Green; Wisconsin River Bridge – USH 14 | Q100: D L GASSER CONSTRUCTION | R100: 1 | S100: 2262307.16 | T100: =IFERROR(Table1[[#This Row],[Total Bid Amount]]/Table1[[#This Row],[Proposal Length]]," ") -> 876863.2403 | U100: 460.6223 | V100: HMA Pavement 3 MT 58-28 S | W100: 11140 | X100: 86.81543986 | Y100: 2 | AA100: 144880.27 | AB100: 0.064 | AC100: 19973.21 | AD100: 0.009 | AE100: 0.017 | AF100: 0.462 | AG100: 0.059 | AH100: 0 | AI100: 0.088 | AJ100: 0.08 | AK100: 0.006 | AL100: 0 | AM100: 0.006 | AN100: 0.03 | AO100: 0 | AP100: 0 | AQ100: 0 | AR100: 0.002 | AS100: 0 | AT100: 0.022 | AU100: 0.033 | AV100: 0.092 | AW100: 0 | AX100: 0.001 | AY100: 0.006 | AZ100: 0.002 | BA100: 0 | BB100: 0.006 | BC100: 0 | BD100: 0.026
A101: Bridge Replacement | B101: BRIDGE REPLACEMENT, PRESERVATION | C101: Structures | D101: Highway Structures | E101: 0.0258 | F101: Rural | G101: $ 0.5M or less | H101: 2023-11-14 | I101: =YEAR(H101) -> 2023 | J101: 20231114006 | K101: 5385-00-71 | L101: HIGHWAY AND LOCAL BRIDGE IMPROVEMENT ASSISTANCE | M101: SW | N101: Vernon | O101: LOC STR | P101: T of Franklin, Ellefson Rd; S Fork Bad Axe Rv Br, B-62-0267 | Q101: RADTKE CONTRACTORS INC. | R101: 6 | S101: 333912.62 | T101: =IFERROR(Table1[[#This Row],[Total Bid Amount]]/Table1[[#This Row],[Proposal Length]]," ") -> 12942349.61 | AA101: 58838.96 | AB101: 0.176 | AC101: 1000 | AD101: 0.003 | AE101: 0.018 | AF101: 0 | AG101: 0.016 | AH101: 0 | AI101: 0.003 | AJ101: 0 | AK101: 0.002 | AL101: 0 | AM101: 0.052 | AN101: 0.085 | AO101: 0 | AP101: 0 | AQ101: 0 | AR101: 0.002 | AS101: 0 | AT101: 0.017 | AU101: 0 | AV101: 0 | AW101: 0.049 | AX101: 0 | AY101: 0 | AZ101: 0.006 | BA101: 0.555 | BB101: 0.007 | BC101: 0 | BD101: 0.012
A102: Bridge Replacement | B102: BRIDGE REPLACEMENT, PRESERVATION | C102: Structures | D102: Highway Structures | E102: 0.027 | F102: Rural | G102: $ 0.5M or less | H102: 2023-11-14 | I102: =YEAR(H102) -> 2023 | J102: 20231114007 | K102: 5478-00-77 | L102: HIGHWAY AND LOCAL BRIDGE IMPROVEMENT ASSISTANCE | M102: SW | N102: Vernon | O102: CTH P | P102: STH 131 - CTH V; Warner Creek Bridge, B-62-0268 | Q102: RADTKE CONTRACTORS INC. | R102: 6 | S102: 385975.31 | T102: =IFERROR(Table1[[#This Row],[Total Bid Amount]]/Table1[[#This Row],[Proposal Length]]," ") -> 14295381.85 | AA102: 82799.59 | AB102: 0.215 | AC102: 2000 | AD102: 0.005 | AE102: 0.023 | AF102: 0.014 | AG102: 0.024 | AH102: 0 | AI102: 0.094 | AJ102: 0 | AK102: 0.002 | AL102: 0 | AM102: 0.065 | AN102: 0.065 | AO102: 0 | AP102: 0 | AQ102: 0 | AR102: 0.005 | AS102: 0 | AT102: 0.024 | AU102: 0.017 | AV102: 0 | AW102: 0.032 | AX102: 0 | AY102: 0 | AZ102: 0.002 | BA102: 0.399 | BB102: 0.008 | BC102: 0 | BD102: 0.011
A103: Pavement Replacement | B103: PAVEMENT REPLACEMENT | C103: Asphaltic Pavement | D103: Asphaltic Surfacing | E103: 8.409 | F103: Rural | G103: $ 2M to $10M | H103: 2023-11-14 | I103: 2023 | J103: 20231114008 | K103: 5540-02-71 | L103: STATE HIGHWAY REHABILITATION | M103: SW | N103: Crawford | O103: STH 027 | P103: Prairie Du Chien - Viroqua; 0.1 Mi N North Avenue to CTH C | Q103: IVERSON CONSTRUCTION, A DIV. OF MATHY CONSTRUCTION | R103: 1 | S103: 4506261.07 | T103: =IFERROR(Table1[[#This Row],[Total Bid Amount]]/Table1[[#This Row],[Proposal Length]]," ") -> 535885.4882 | U103: 460.5223 | V103: HMA Pavement 3 LT 58-28 S | W103: 33832 | X103: 81.79039607 | Y103: 2 | Z103: X | AA103: 207558.74 | AB103: 0.046 | AC103: 17735.38 | AD103: 0.004 | AE103: 0.029 | AF103: 0.653 | AG103: 0.01 | AH103: 0 | AI103: 0 | AJ103: 0.024 | AK103: 0.055 | AL103: 0 | AM103: 0.007 | AN103: 0.008 | AO103: 0 | AP103: 0.002 | AQ103: 0 | AR103: 0.001 | AS103: 0 | AT103: 0.011 | AU103: 0.035 | AV103: 0.091 | AW103: 0 | AX103: 0 | AY103: 0.01 | AZ103: 0.001 | BA103: 0 | BB103: 0.002 | BC103: 0 | BD103: 0.014
A104: Resurfacing | B104: RESURFACING (OVERLAY >= 4 INCHES) | C104: Asphaltic Pavement | D104: General Const and Asphaltic Surfacing | E104: 6.681 | F104: Rural | G104: $ 2M to $10M | H104: 2023-11-14 | I104: =YEAR(H104) -> 2023 | J104: 20231114009 | K104: 5752-00-72 | L104: STATE HIGHWAY REHABILITATION | M104: SW | N104: Sauk | O104: STH 058 | P104: USH 14 - Lavalle; Lee Lake Bridge to STH 33 | Q104: D L GASSER CONSTRUCTION | R104: 1 | S104: 4269544.95 | T104: =IFERROR(Table1[[#This Row],[Total Bid Amount]]/Table1[[#This Row],[Proposal Length]]," ") -> 639057.7683 | U104: 460.5223 | V104: HMA Pavement 3 LT 58-28 S | W104: 28109 | X104: 82.54232381 | Y104: 2 | Z104: X | AA104: 38861.82 | AB104: 0.009 | AC104: 33887.52 | AD104: 0.008 | AE104: 0.04 | AF104: 0.576 | AG104: 0.028 | AH104: 0 | AI104: 0 | AJ104: 0.042 | AK104: 0.016 | AL104: 0.002 | AM104: 0.008 | AN104: 0.022 | AO104: 0 | AP104: 0.037 | AQ104: 0 | AR104: 0.001 | AS104: 0 | AT104: 0.03 | AU104: 0.035 | AV104: 0.105 | AW104: 0 | AX104: 0 | AY104: 0.009 | AZ104: 0.001 | BA104: 0 | BB104: 0.006 | BC104: 0 | BD104: 0.035
A105: Reconditioning | B105: RECONDITION (INTERSECTION/WIDEN/SHOULDER) | C105: General Construction | D105: General Construction | E105: 0.34 | F105: Urban | G105: $ 2M to $10M | H105: 2023-11-14 | I105: 2023 | J105: 20231114010 | K105: 5845-01-70 | L105: MAJOR HIGHWAY DEVELOPMENT | M105: SW | N105: Dane | O105: USH 051 | P105: Stoughton - Madison; CTH B/CTH Ab Intersection | Q105: MUSSON BROS., INC. | R105: 7 | S105: 3343662.46 | T105: =IFERROR(Table1[[#This Row],[Total Bid Amount]]/Table1[[#This Row],[Proposal Length]]," ") -> 9834301.353 | U105: 460.6224 | V105: HMA Pavement 4 MT 58-28 S | W105: 2682 | X105: 82 | Y105: 1 | AA105: 299999 | AB105: 0.09 | AC105: 20000 | AD105: 0.006 | AE105: 0.012 | AF105: 0.089 | AG105: 0.129 | AH105: 0 | AI105: 0.224 | AJ105: 0.051 | AK105: 0.11 | AL105: 0.029 | AM105: 0.025 | AN105: 0.085 | AO105: 0 | AP105: 0.01 | AQ105: 0 | AR105: 0.011 | AS105: 0.003 | AT105: 0.015 | AU105: 0.009 | AV105: 0 | AW105: 0 | AX105: 0.012 | AY105: 0.009 | AZ105: 0.006 | BA105: 0.02 | BB105: 0.015 | BC105: 0.003 | BD105: 0.041
A106: Pavement Replacement | B106: PAVEMENT REPLACEMENT | C106: General Construction | D106: General and Incidental Construction | E106: 0.097 | F106: Unknown | G106: $ 0.5M or less | H106: 2023-11-14 | I106: 2023 | J106: 20231114011 | K106: 5991-00-26 | L106: LOCAL TRANSPORTATION FACILITY IMPROVEMENT ASSISTANCE | M106: SW | N106: La Crosse | O106: LOC STR | P106: Village West Salem, Mark Street; E Garland Street to East Avenue | Q106: MCCABE CONSTRUCTION, INC. | R106: 4 | S106: 283310.45 | T106: =IFERROR(Table1[[#This Row],[Total Bid Amount]]/Table1[[#This Row],[Proposal Length]]," ") -> 2920726.289 | U106: 460.5223 | V106: HMA Pavement 3 LT 58-28 S | W106: 393 | X106: 120.8142494 | Y106: 2 | AA106: 28500 | AB106: 0.101 | AC106: 1192 | AD106: 0.004 | AE106: 0.472 | AF106: 0.174 | AG106: 0.084 | AH106: 0 | AI106: 0.007 | AJ106: 0 | AK106: 0.009 | AL106: 0 | AM106: 0.012 | AN106: 0.056 | AO106: 0 | AP106: 0 | AQ106: 0 | AR106: 0 | AS106: 0 | AT106: 0.03 | AU106: 0.016 | AV106: 0 | AW106: 0 | AX106: 0.001 | AY106: 0.007 | AZ106: 0.012 | BA106: 0 | BB106: 0.009 | BC106: 0 | BD106: 0.009
A107: Pavement Replacement | B107: PAVEMENT REPLACEMENT | C107: Asphaltic Pavement | D107: General Const and Asphaltic Surfacing | E107: 5.933 | F107: Urban | G107: $ 2M to $10M | H107: 2023-11-14 | I107: 2023 | J107: 20231114012 | K107: 6040-00-74 | L107: STATE HIGHWAY REHABILITATION | M107: SW | N107: Columbia | O107: STH 033 | P107: Portage - Fox Lake; 0.19 Mi W of Morris Drive to STH 73 | Q107: ROCK ROAD COMPANIES, INC. | R107: 5 | S107: 6249992.33 | T107: =IFERROR(Table1[[#This Row],[Total Bid Amount]]/Table1[[#This Row],[Proposal Length]]," ") -> 1053428.675 | U107: 460.6223 | V107: HMA Pavement 3 MT 58-28 S | W107: 43400 | X107: 62.50705991 | Y107: 2 | Z107: X | AA107: 415788.93 | AB107: 0.067 | AC107: 19000 | AD107: 0.003 | AE107: 0 | AF107: 0.46 | AG107: 0.175 | AH107: 0.001 | AI107: 0.006 | AJ107: 0.01 | AK107: 0.02 | AL107: 0 | AM107: 0.032 | AN107: 0.065 | AO107: 0 | AP107: 0.016 | AQ107: 0 | AR107: 0.008 | AS107: 0 | AT107: 0.011 | AU107: 0.029 | AV107: 0.019 | AW107: 0.011 | AX107: 0 | AY107: 0.003 | AZ107: 0.001 | BA107: 0.048 | BB107: 0.004 | BC107: 0 | BD107: 0.014
A108: Miscellaneous | B108: MISCELLANEOUS | C108: General Construction | D108: General and Incidental Construction | E108: 0.25 | F108: Unknown | G108: $ 2M to $10M | H108: 2023-11-14 | I108: 2023 | J108: 20231114014 | K108: 6085-02-75 | L108: STATE HIGHWAY REHABILITATION | M108: SW | N108: Dane | O108: STH 019 | P108: Mazomanie - Sun Prairie; USH 151 Interchange | Q108: ZIGNEGO COMPANY, INC. | R108: 4 | S108: 2454802.35 | T108: =IFERROR(Table1[[#This Row],[Total Bid Amount]]/Table1[[#This Row],[Proposal Length]]," ") -> 9819209.4 | U108: 460.6223 | V108: HMA Pavement 3 MT 58-28 S | W108: 29 | X108: 330.5 | Y108: 1 | AA108: 156000 | AB108: 0.064 | AC108: 40000 | AD108: 0.016 | AE108: 0.075 | AF108: 0.012 | AG108: 0.031 | AH108: 0 | AI108: 0.194 | AJ108: 0.164 | AK108: 0.023 | AL108: 0.185 | AM108: 0.009 | AN108: 0.021 | AO108: 0 | AP108: 0 | AQ108: 0 | AR108: 0.001 | AS108: 0.001 | AT108: 0.068 | AU108: 0.021 | AV108: 0.001 | AW108: 0 | AX108: 0.004 | AY108: 0.016 | AZ108: 0.004 | BA108: 0.02 | BB108: 0.014 | BC108: 0.048 | BD108: 0.026
A109: Resurfacing | B109: RESURFACING (OVERLAY >= 4 INCHES) | C109: General Construction | D109: General Construction | E109: 0.854 | F109: Unknown | G109: $ 2M to $10M | H109: 2023-11-14 | I109: 2023 | J109: 20231114016 | K109: 1229-03-71 | L109: STATE HIGHWAY REHABILITATION | M109: SE | N109: Ozaukee | O109: IH 043 | P109: IH 43 North South Freeway; STH 60 to STH 32 | Q109: ZIGNEGO COMPANY, INC. | R109: 4 | S109: 4248938.06 | T109: =IFERROR(Table1[[#This Row],[Total Bid Amount]]/Table1[[#This Row],[Proposal Length]]," ") -> 4975337.307 | U109: 460.7423 | V109: HMA Pavement 3 HT 58-28 H | W109: 10730 | X109: 94.58824324 | Y109: 4 | AA109: 636000 | AB109: 0.15 | AC109: 38950 | AD109: 0.009 | AE109: 0.026 | AF109: 0.247 | AG109: 0.127 | AH109: 0 | AI109: 0.024 | AJ109: 0 | AK109: 0.001 | AL109: 0.021 | AM109: 0.04 | AN109: 0.004 | AO109: 0 | AP109: 0.075 | AQ109: 0.052 | AR109: 0.016 | AS109: 0.002 | AT109: 0.026 | AU109: 0.041 | AV109: 0.06 | AW109: 0.001 | AX109: 0.002 | AY109: 0.013 | AZ109: 0.012 | BA109: 0.012 | BB109: 0 | BC109: 0 | BD109: 0.044
A110: Miscellaneous | B110: MISCELLANEOUS | C110: General Construction | D110: General and Incidental Construction | E110: 0 | F110: Unknown | G110: $ 2M to $10M | H110: 2023-11-14 | I110: 2023 | J110: 20231114017 | K110: 2090-16-70 | L110: LOCAL TRANSPORTATION FACILITY IMPROVEMENT ASSISTANCE | M110: SE | N110: Milwaukee | O110: LOC STR | P110: C Milwaukee W Silver Spring Drive; 6 Local Intersections | Q110: LALONDE CONTRACTORS INCORPORATED | R110: 4 | S110: 3189511.5 | T110: =IFERROR(Table1[[#This Row],[Total Bid Amount]]/Table1[[#This Row],[Proposal Length]]," ") ->  | AA110: 85146.28 | AB110: 0.027 | AC110: 37287.71 | AD110: 0.012 | AE110: 0.389 | AF110: 0.021 | AG110: 0.024 | AH110: 0 | AI110: 0.006 | AJ110: 0.044 | AK110: 0.001 | AL110: 0.211 | AM110: 0.004 | AN110: 0.024 | AO110: 0 | AP110: 0 | AQ110: 0.004 | AR110: 0.001 | AS110: 0 | AT110: 0.098 | AU110: 0.007 | AV110: 0.016 | AW110: 0 | AX110: 0.001 | AY110: 0.015 | AZ110: 0.001 | BA110: 0 | BB110: 0.009 | BC110: 0.076 | BD110: 0.02
A111: Resurfacing | B111: RESURFACING (OVERLAY >= 4 INCHES) | C111: General Construction | D111: General and Incidental Construction | E111: 1.043 | F111: Unknown | G111: $ 2M to $10M | H111: 2023-11-14 | I111: 2023 | J111: 20231114018 | K111: 2275-05-70 | L111: STATE HIGHWAY REHABILITATION | M111: SE | N111: Milwaukee | O111: STH 057 | P111: C Milwaukee, N 20th St; North Ave to Hopkins St | Q111: LALONDE CONTRACTORS INCORPORATED | R111: 2 | S111: 6595707.06 | T111: =IFERROR(Table1[[#This Row],[Total Bid Amount]]/Table1[[#This Row],[Proposal Length]]," ") -> 6323784.334 | U111: 460.6223 | V111: HMA Pavement 3 MT 58-28 S | W111: 6100 | X111: 81.63754098 | Y111: 2 | AA111: 151213.77 | AB111: 0.023 | AC111: 29000 | AD111: 0.004 | AE111: 0.384 | AF111: 0.077 | AG111: 0.116 | AH111: 0 | AI111: 0.014 | AJ111: 0.056 | AK111: 0.034 | AL111: 0.135 | AM111: 0.002 | AN111: 0.008 | AO111: 0 | AP111: 0 | AQ111: 0 | AR111: 0.003 | AS111: 0 | AT111: 0.059 | AU111: 0.005 | AV111: 0.011 | AW111: 0 | AX111: 0.001 | AY111: 0.01 | AZ111: 0.002 | BA111: 0 | BB111: 0.006 | BC111: 0.043 | BD111: 0.009
A112: Resurfacing | B112: RESURFACING (OVERLAY < 2.5 INCHES) | C112: General Construction | D112: General Construction | E112: 7.329 | F112: Urban | G112: $ 2M to $10M | H112: 2023-11-14 | I112: =YEAR(H112) -> 2023 | J112: 20231114019 | K112: 3120-10-70 | L112: STATE HIGHWAY REHABILITATION | M112: SE | N112: Walworth | O112: USH 012 | P112: Elkhorn - Whitewater; STH 20 to USH 12/STH 67 Split | Q112: PAYNE AND DOLAN, INC | R112: 3 | S112: 5735928.6 | T112: =IFERROR(Table1[[#This Row],[Total Bid Amount]]/Table1[[#This Row],[Proposal Length]]," ") -> 782634.5477 | U112: 460.6224 | V112: HMA Pavement 4 MT 58-28 S | W112: 26427 | X112: 67.19578461 | Y112: 3 | Z112: X | AA112: 9900 | AB112: 0.002 | AC112: 28025 | AD112: 0.005 | AE112: 0.032 | AF112: 0.331 | AG112: 0.083 | AH112: 0 | AI112: 0.019 | AJ112: 0.018 | AK112: 0.039 | AL112: 0.022 | AM112: 0.039 | AN112: 0.115 | AO112: 0 | AP112: 0.016 | AQ112: 0 | AR112: 0.007 | AS112: 0 | AT112: 0.025 | AU112: 0.05 | AV112: 0.001 | AW112: 0.004 | AX112: 0.006 | AY112: 0.007 | AZ112: 0.007 | BA112: 0.151 | BB112: 0.005 | BC112: 0.005 | BD112: 0.015
A113: Bridge Replacement | B113: BRIDGE REPLACEMENT, PRESERVATION | C113: Structures | D113: General Const and Highway Structures | E113: 0.063 | F113: Rural | G113: $ 0.5M to $ 1M | H113: 2023-11-14 | I113: 2023 | J113: 20231114020 | K113: 3853-03-70 | L113: HIGHWAY AND LOCAL BRIDGE IMPROVEMENT ASSISTANCE | M113: SE | N113: Waukesha | O113: LOC STR | P113: V Summit Delafield Road; Bridge Over Battle Creek B-67-0670 | Q113: RADTKE CONTRACTORS INC. | R113: 8 | S113: 511151.01 | T113: =IFERROR(Table1[[#This Row],[Total Bid Amount]]/Table1[[#This Row],[Proposal Length]]," ") -> 8113508.095 | U113: 460.5223 | V113: HMA Pavement 3 LT 58-28 S | W113: 314 | X113: 106.8152866 | Y113: 2 | AA113: 73115.6 | AB113: 0.143 | AC113: 9049.05 | AD113: 0.018 | AE113: 0.022 | AF113: 0.067 | AG113: 0.069 | AH113: 0 | AI113: 0.002 | AJ113: 0.016 | AK113: 0.003 | AL113: 0 | AM113: 0.059 | AN113: 0.073 | AO113: 0 | AP113: 0.068 | AQ113: 0 | AR113: 0.001 | AS113: 0 | AT113: 0.035 | AU113: 0 | AV113: 0 | AW113: 0.013 | AX113: 0 | AY113: 0 | AZ113: 0.003 | BA113: 0.38 | BB113: 0.014 | BC113: 0 | BD113: 0.031
A114: Preservation/Restoration | B114: PATCH/RUT FILL/REPAIR AND GRIND/SLAB REPLACE | C114: General Construction | D114: General Construction | E114: 7.915 | F114: Unknown | G114: $10M to $20M | H114: 2023-11-14 | I114: 2023 | J114: 20231114021 | K114: 1120-57-60 | L114: STATE HIGHWAY REHABILITATION | M114: NE | N114: Winnebago | O114: IH 041 | P114: Neenah-Appleton; Breezewood-STH 15 | Q114: VINTON CONSTRUCTION COMPANY | R114: 3 | S114: 16249778.22 | T114: =IFERROR(Table1[[#This Row],[Total Bid Amount]]/Table1[[#This Row],[Proposal Length]]," ") -> 2053035.783 | U114: 460.5224 | V114: HMA Pavement 4 LT 58-28 S | W114: 3476 | X114: 112.4 | Y114: 1 | AA114: 1514000 | AB114: 0.093 | AC114: 835345 | AD114: 0.051 | AE114: 0.078 | AF114: 0.029 | AG114: 0.004 | AH114: 0.001 | AI114: 0.265 | AJ114: 0.003 | AK114: 0.024 | AL114: 0.003 | AM114: 0.009 | AN114: 0.014 | AO114: 0.001 | AP114: 0.055 | AQ114: 0 | AR114: 0 | AS114: 0 | AT114: 0.031 | AU114: 0.098 | AV114: 0.013 | AW114: 0.063 | AX114: 0.001 | AY114: 0.006 | AZ114: 0 | BA114: 0.099 | BB114: 0.001 | BC114: 0 | BD114: 0.11
A115: Resurfacing | B115: RESURFACING (OVERLAY >= 4 INCHES) | C115: Asphaltic Pavement | D115: General Const and Asphaltic Surfacing | E115: 2.43 | F115: Rural | G115: $ 2M to $10M | H115: 2023-11-14 | I115: 2023 | J115: 20231114022 | K115: 1210-17-71 | L115: STATE HIGHWAY REHABILITATION | M115: NE | N115: Brown | O115: STH 172 | P115: Oneida - Green Bay, STH 154 - Airport Entrance | Q115: NORTHEAST ASPHALT, INC | R115: 1 | S115: 2089146.91 | T115: =IFERROR(Table1[[#This Row],[Total Bid Amount]]/Table1[[#This Row],[Proposal Length]]," ") -> 859731.2387 | U115: 460.6223 | V115: HMA Pavement 3 MT 58-28 S | W115: 11810 | X115: 75.1661304 | Y115: 3 | AA115: 125000 | AB115: 0.06 | AC115: 38125 | AD115: 0.018 | AE115: 0.023 | AF115: 0.448 | AG115: 0.027 | AH115: 0 | AI115: 0.001 | AJ115: 0.001 | AK115: 0 | AL115: 0 | AM115: 0.015 | AN115: 0.069 | AO115: 0 | AP115: 0 | AQ115: 0 | AR115: 0.001 | AS115: 0 | AT115: 0.026 | AU115: 0.035 | AV115: 0.075 | AW115: 0.005 | AX115: 0 | AY115: 0.003 | AZ115: 0 | BA115: 0.145 | BB115: 0.002 | BC115: 0 | BD115: 0.065
A116: Resurfacing | B116: RESURFACING (OVERLAY < 2.5 INCHES) | C116: Asphaltic Pavement | D116: General Const and Asphaltic Surfacing | E116: 4.89 | F116: Unknown | G116: $ 2M to $10M | H116: 2023-11-14 | I116: 2023 | J116: 20231114023 | K116: 4075-35-71 | L116: STATE HIGHWAY REHABILITATION | M116: NE | N116: Outagamie | O116: STH 096 | P116: Kaukauna - Wrightstown; Claribel Street - CTH D | Q116: NORTHEAST ASPHALT, INC | R116: 1 | S116: 2632065.78 | T116: =IFERROR(Table1[[#This Row],[Total Bid Amount]]/Table1[[#This Row],[Proposal Length]]," ") -> 538254.7607 | U116: 460.6224 | V116: HMA Pavement 4 MT 58-28 S | W116: 17803 | X116: 71.36011908 | Y116: 2 | Z116: X | AA116: 100950 | AB116: 0.038 | AC116: 9400 | AD116: 0.004 | AE116: 0.01 | AF116: 0.583 | AG116: 0.04 | AH116: 0 | AI116: 0 | AJ116: 0.053 | AK116: 0.054 | AL116: 0 | AM116: 0.018 | AN116: 0.029 | AO116: 0 | AP116: 0 | AQ116: 0 | AR116: 0.001 | AS116: 0 | AT116: 0.024 | AU116: 0.051 | AV116: 0.067 | AW116: 0 | AX116: 0 | AY116: 0.012 | AZ116: 0.001 | BA116: 0 | BB116: 0.003 | BC116: 0 | BD116: 0.017
A117: Reconstruction | B117: RECONSTRUCTION, PRESERVATION | C117: General Construction | D117: General Construction | E117: 1.439 | F117: Unknown | G117: $ 2M to $10M | H117: 2023-11-14 | I117: 2023 | J117: 20231114024 | K117: 4291-03-70 | L117: LOCAL TRANSPORTATION FACILITY IMPROVEMENT ASSISTANCE | M117: NE | N117: Sheboygan | O117: CTH TA | P117: Sheboygan Co, CTH Ta; Union Avenue to Erie Avenue | Q117: MICHELS ROAD & STONE, INC. | R117: 3 | S117: 6272416.12 | T117: =IFERROR(Table1[[#This Row],[Total Bid Amount]]/Table1[[#This Row],[Proposal Length]]," ") -> 4358871.522 | U117: 460.6223 | V117: HMA Pavement 3 MT 58-28 S | W117: 15569 | X117: 73.16677372 | Y117: 2 | AA117: 414642 | AB117: 0.066 | AC117: 39000 | AD117: 0.006 | AE117: 0.052 | AF117: 0.189 | AG117: 0.154 | AH117: 0 | AI117: 0.029 | AJ117: 0.088 | AK117: 0.118 | AL117: 0.027 | AM117: 0.041 | AN117: 0.106 | AO117: 0 | AP117: 0.008 | AQ117: 0 | AR117: 0.002 | AS117: 0.001 | AT117: 0.037 | AU117: 0.008 | AV117: 0 | AW117: 0 | AX117: 0.005 | AY117: 0.023 | AZ117: 0.002 | BA117: 0 | BB117: 0.007 | BC117: 0.012 | BD117: 0.025
A118: Resurfacing | B118: RESURFACING (OVERLAY >= 4 INCHES) | C118: Asphaltic Pavement | D118: General Const and Asphaltic Surfacing | E118: 7.662 | F118: Rural | G118: $ 2M to $10M | H118: 2023-11-14 | I118: 2023 | J118: 20231114025 | K118: 6230-20-71 | L118: STATE HIGHWAY REHABILITATION | M118: NE | N118: Outagamie | O118: STH 054 | P118: Seymour - Green Bay; French Road - Seminary Road | Q118: NORTHEAST ASPHALT, INC | R118: 1 | S118: 5993213.74 | T118: =IFERROR(Table1[[#This Row],[Total Bid Amount]]/Table1[[#This Row],[Proposal Length]]," ") -> 782199.6528 | U118: 460.6223 | V118: HMA Pavement 3 MT 58-28 S | W118: 42510 | X118: 70.70023524 | Y118: 3 | Z118: X | AA118: 91500 | AB118: 0.015 | AC118: 12900 | AD118: 0.002 | AE118: 0.025 | AF118: 0.548 | AG118: 0.052 | AH118: 0 | AI118: 0.018 | AJ118: 0.009 | AK118: 0.063 | AL118: 0.013 | AM118: 0.013 | AN118: 0.057 | AO118: 0 | AP118: 0.018 | AQ118: 0 | AR118: 0.001 | AS118: 0.001 | AT118: 0.025 | AU118: 0.028 | AV118: 0.075 | AW118: 0 | AX118: 0.001 | AY118: 0.012 | AZ118: 0.002 | BA118: 0 | BB118: 0.002 | BC118: 0.001 | BD118: 0.021
A119: Miscellaneous | B119: MISCELLANEOUS | C119: General Construction | D119: General Construction | E119: 0.372 | F119: Unknown | G119: $ 2M to $10M | H119: 2023-11-14 | I119: 2023 | J119: 20231114026 | K119: 6430-20-71 | L119: STATE HIGHWAY REHABILITATION | M119: NE | N119: Outagamie | O119: STH 076 | P119: STH 96 - STH 15; School Road Intersection | Q119: PETERS CONCRETE COMPANY | R119: 6 | S119: 2599660.14 | T119: =IFERROR(Table1[[#This Row],[Total Bid Amount]]/Table1[[#This Row],[Proposal Length]]," ") -> 6988333.71 | U119: 460.7223 | V119: HMA Pavement 3 HT 58-28 S | W119: 6500 | X119: 71.64523077 | Y119: 2 | AA119: 160500 | AB119: 0.062 | AC119: 5500 | AD119: 0.002 | AE119: 0.023 | AF119: 0.191 | AG119: 0.175 | AH119: 0 | AI119: 0.058 | AJ119: 0.133 | AK119: 0.133 | AL119: 0.037 | AM119: 0.045 | AN119: 0.07 | AO119: 0 | AP119: 0 | AQ119: 0 | AR119: 0.004 | AS119: 0.003 | AT119: 0.025 | AU119: 0.012 | AV119: 0 | AW119: 0 | AX119: 0 | AY119: 0.002 | AZ119: 0.006 | BA119: 0 | BB119: 0.008 | BC119: 0.005 | BD119: 0.009
A120: Traffic Operations | B120: STH - TRAFFIC OPERATIONS PAVEMENT MARKING | C120: General Construction | D120: Incidental Construction | E120: 265 | F120: Rural | G120: $ 2M to $10M | H120: 2023-11-14 | I120: 2023 | J120: 20231114027 | K120: 1009-42-55 | L120: HIGHWAY MAINTENANCE, REPAIR AND TRAFFIC OPERATIONS | M120: NC | N120: North Central Region Wide | O120: VAR HWY | P120: Nc Region, Epoxy Pavement Marking; Locations On Stn Per Annual Plan | Q120: MEGA RENTALS, INC. | R120: 3 | S120: 2077530.4 | T120: =IFERROR(Table1[[#This Row],[Total Bid Amount]]/Table1[[#This Row],[Proposal Length]]," ") -> 7839.737358 | AA120: 9995.9 | AB120: 0.005 | AE120: 0.029 | AF120: 0 | AG120: 0 | AH120: 0 | AI120: 0 | AJ120: 0 | AK120: 0 | AL120: 0 | AM120: 0 | AN120: 0 | AO120: 0 | AP120: 0 | AQ120: 0 | AR120: 0 | AS120: 0 | AT120: 0 | AU120: 0.966 | AV120: 0 | AW120: 0 | AX120: 0 | AY120: 0 | AZ120: 0 | BA120: 0 | BB120: 0 | BC120: 0 | BD120: 0
A121: Pavement Replacement | B121: PAVEMENT REPLACEMENT | C121: General Construction | D121: General Construction | E121: 0.389 | F121: Rural | G121: $ 1M to $ 2M | H121: 2023-11-14 | I121: 2023 | J121: 20231114028 | K121: 1170-19-72 | L121: STATE HIGHWAY REHABILITATION | M121: NC | N121: Oneida | O121: USH 051 | P121: Minocqua - Manitowish; Manitou Park to Minocqua Lk Bridge | Q121: S & N INCORPORATED | R121: 4 | S121: 1931193.1 | T121: =IFERROR(Table1[[#This Row],[Total Bid Amount]]/Table1[[#This Row],[Proposal Length]]," ") -> 4964506.684 | U121: 460.6223 | V121: HMA Pavement 3 MT 58-28 S | W121: 5470 | X121: 86.09085923 | Y121: 2 | AA121: 141370 | AB121: 0.073 | AC121: 2300 | AD121: 0.001 | AE121: 0.092 | AF121: 0.259 | AG121: 0.087 | AH121: 0.012 | AI121: 0.002 | AJ121: 0.137 | AK121: 0.071 | AL121: 0 | AM121: 0.026 | AN121: 0.066 | AO121: 0 | AP121: 0 | AQ121: 0 | AR121: 0.002 | AS121: 0 | AT121: 0.029 | AU121: 0.012 | AV121: 0 | AW121: 0 | AX121: 0.001 | AY121: 0.013 | AZ121: 0.003 | BA121: 0.074 | BB121: 0.012 | BC121: 0 | BD121: 0.029
A122: Pavement Replacement | B122: PAVEMENT REPLACEMENT | C122: Asphaltic Pavement | D122: General Const and Asphaltic Surfacing | E122: 6.787 | F122: Rural | G122: $ 1M to $ 2M | H122: 2023-11-14 | I122: 2023 | J122: 20231114029 | K122: 6653-00-71 | L122: LOCAL TRANSPORTATION FACILITY IMPROVEMENT ASSISTANCE | M122: NC | N122: Marathon | O122: CTH C | P122: CTH J - STH 49; CTH J to CTH I | Q122: AMERICAN ASPHALT OF WISCONSIN | R122: 2 | S122: 1526303.34 | T122: =IFERROR(Table1[[#This Row],[Total Bid Amount]]/Table1[[#This Row],[Proposal Length]]," ") -> 224886.3032 | U122: 460.5224 | V122: HMA Pavement 4 LT 58-28 S | W122: 11412 | X122: 73.04 | Y122: 1 | Z122: X | AA122: 13575 | AB122: 0.009 | AC122: 3100 | AD122: 0.002 | AE122: 0 | AF122: 0.661 | AG122: 0.215 | AH122: 0 | AI122: 0 | AJ122: 0 | AK122: 0 | AL122: 0 | AM122: 0 | AN122: 0.01 | AO122: 0 | AP122: 0 | AQ122: 0 | AR122: 0.008 | AS122: 0 | AT122: 0.035 | AU122: 0.033 | AV122: 0.021 | AW122: 0 | AX122: 0 | AY122: 0 | AZ122: 0 | BA122: 0 | BB122: 0.002 | BC122: 0 | BD122: 0.006
A123: Pavement Replacement | B123: PAVEMENT REPLACEMENT | C123: Asphaltic Pavement | D123: Asphaltic Surfacing | E123: 7.495 | F123: Rural | G123: $ 2M to $10M | H123: 2023-11-14 | I123: 2023 | J123: 20231114030 | K123: 6656-00-73 | L123: LOCAL TRANSPORTATION FACILITY IMPROVEMENT ASSISTANCE | M123: NC | N123: Marathon | O123: CTH J | P123: STH 153 - Weston; STH 153 to STH 29 | Q123: NORTHEAST ASPHALT, INC | R123: 2 | S123: 2645759.95 | T123: =IFERROR(Table1[[#This Row],[Total Bid Amount]]/Table1[[#This Row],[Proposal Length]]," ") -> 353003.3289 | U123: 460.6222 | V123: HMA Pavement 2 MT 58-28 S | W123: 32800 | X123: 60.5304878 | Y123: 2 | AA123: 41750 | AB123: 0.016 | AC123: 2000 | AD123: 0.001 | AE123: 0 | AF123: 0.787 | AG123: 0.116 | AH123: 0 | AI123: 0 | AJ123: 0.002 | AK123: 0 | AL123: 0 | AM123: 0.015 | AN123: 0.003 | AO123: 0 | AP123: 0 | AQ123: 0 | AR123: 0 | AS123: 0 | AT123: 0.023 | AU123: 0.02 | AV123: 0.012 | AW123: 0 | AX123: 0 | AY123: 0.001 | AZ123: 0 | BA123: 0 | BB123: 0.001 | BC123: 0 | BD123: 0.004
A124: Resurfacing | B124: RESURFACING (OVERLAY < 2.5 INCHES) | C124: Asphaltic Pavement | D124: General Const and Asphaltic Surfacing | E124: 6.93 | F124: Rural | G124: $ 2M to $10M | H124: 2023-11-14 | I124: 2023 | J124: 20231114031 | K124: 9205-03-60 | L124: STATE HIGHWAY REHABILITATION | M124: NC | N124: Vilas | O124: STH 155 | P124: Saint Germain - Sayner; STH 70 to Lake Street | Q124: PITLIK & WICK, INC. | R124: 2 | S124: 3507710.66 | T124: =IFERROR(Table1[[#This Row],[Total Bid Amount]]/Table1[[#This Row],[Proposal Length]]," ") -> 506163.1544 | U124: 460.5224 | V124: HMA Pavement 4 LT 58-28 S | W124: 19722 | X124: 83.35 | Y124: 1 | Z124: X | AA124: 125000 | AB124: 0.036 | AC124: 3150 | AD124: 0.001 | AE124: 0.065 | AF124: 0.569 | AG124: 0.038 | AH124: 0 | AI124: 0 | AJ124: 0 | AK124: 0.054 | AL124: 0 | AM124: 0.018 | AN124: 0.031 | AO124: 0 | AP124: 0 | AQ124: 0 | AR124: 0.001 | AS124: 0 | AT124: 0.016 | AU124: 0.063 | AV124: 0.082 | AW124: 0 | AX124: 0 | AY124: 0.002 | AZ124: 0.002 | BA124: 0 | BB124: 0.002 | BC124: 0 | BD124: 0.021
A125: Traffic Operations | B125: STH - TRAFFIC OPERATIONS PAVEMENT MARKING | C125: General Construction | D125: Incidental Construction | E125: 290 | F125: Rural | G125: $ 2M to $10M | H125: 2023-11-14 | I125: =YEAR(H125) -> 2023 | J125: 20231114032 | K125: 1000-18-61 | L125: HIGHWAY MAINTENANCE, REPAIR AND TRAFFIC OPERATIONS | M125: NW | N125: Northwest Region Wide | O125: VAR HWY | P125: Nw Region, Pavement Marking 2024; Various Highways, Nw Region Wide | Q125: CENTURY FENCE COMPANY | R125: 3 | S125: 2551624.39 | T125: =IFERROR(Table1[[#This Row],[Total Bid Amount]]/Table1[[#This Row],[Proposal Length]]," ") -> 8798.704793 | AA125: 50000 | AB125: 0.02 | AE125: 0.039 | AF125: 0 | AG125: 0 | AH125: 0 | AI125: 0 | AJ125: 0 | AK125: 0 | AL125: 0 | AM125: 0 | AN125: 0 | AO125: 0 | AP125: 0 | AQ125: 0 | AR125: 0 | AS125: 0 | AT125: 0 | AU125: 0.942 | AV125: 0 | AW125: 0 | AX125: 0 | AY125: 0 | AZ125: 0 | BA125: 0 | BB125: 0 | BC125: 0 | BD125: 0
A126: Miscellaneous | B126: MISCELLANEOUS | C126: General Construction | D126: General and Incidental Construction | E126: 0.473 | F126: Urban | G126: $10M to $20M | H126: 2023-11-14 | I126: 2023 | J126: 20231114034 | K126: 1022-04-76 | L126: STATE HIGHWAY REHABILITATION | M126: NW | N126: Dunn | O126: IH 094 | P126: Menomonie - Eau Claire; IH 94 Swef 63 Menomonie | Q126: CHIPPEWA CONCRETE SERVICES, INC. | R126: 2 | S126: 10951141.44 | T126: =IFERROR(Table1[[#This Row],[Total Bid Amount]]/Table1[[#This Row],[Proposal Length]]," ") -> 23152518.9 | U126: 460.6223 | V126: HMA Pavement 3 MT 58-28 S | W126: 2543 | X126: 126.9848604 | Y126: 5 | AA126: 638660.41 | AB126: 0.058 | AC126: 98674.1 | AD126: 0.009 | AE126: 0.499 | AF126: 0.069 | AG126: 0.06 | AH126: 0 | AI126: 0.162 | AJ126: 0.005 | AK126: 0.004 | AL126: 0.006 | AM126: 0.013 | AN126: 0.037 | AO126: 0.003 | AP126: 0.004 | AQ126: 0 | AR126: 0.002 | AS126: 0 | AT126: 0.009 | AU126: 0.007 | AV126: 0.001 | AW126: 0 | AX126: 0.005 | AY126: 0.002 | AZ126: 0.005 | BA126: 0.005 | BB126: 0.008 | BC126: 0 | BD126: 0.037
A127: Miscellaneous | B127: MISCELLANEOUS | C127: General Construction | D127: Incidental Construction | E127: 0.438 | F127: Rural | G127: $ 0.5M or less | H127: 2023-11-14 | I127: =YEAR(H127) -> 2023 | J127: 20231114035 | K127: 1198-00-79 | L127: STATE HIGHWAY REHABILITATION | M127: NW | N127: Douglas | O127: USH 053 | P127: Solon Springs - Superior USH 2 Interchange | Q127: RAM CONSTRUCTION SERVICES OF MICHIGAN, INC. | R127: 3 | S127: 335713.82 | T127: =IFERROR(Table1[[#This Row],[Total Bid Amount]]/Table1[[#This Row],[Proposal Length]]," ") -> 766469.9087 | AA127: 5535 | AB127: 0.016 | AC127: 12320 | AD127: 0.037 | AE127: 0.77 | AF127: 0 | AG127: 0 | AH127: 0 | AI127: 0 | AJ127: 0 | AK127: 0 | AL127: 0 | AM127: 0 | AN127: 0.001 | AO127: 0 | AP127: 0 | AQ127: 0 | AR127: 0 | AS127: 0 | AT127: 0.01 | AU127: 0.129 | AV127: 0 | AW127: 0 | AX127: 0 | AY127: 0 | AZ127: 0 | BA127: 0.001 | BB127: 0 | BC127: 0 | BD127: 0.072
A128: Resurfacing | B128: RESURFACING (OVERLAY >= 2.5 INCHES AND < 4 INCHES) | C128: Asphaltic Pavement | D128: General Const and Asphaltic Surfacing | E128: 2.737 | F128: Rural | G128: $ 2M to $10M | H128: 2023-11-14 | I128: 2023 | J128: 20231114036 | K128: 1610-01-76 | L128: STATE HIGHWAY REHABILITATION | M128: NW | N128: Taylor | O128: STH 013 | P128: Abbotsford - Medford, CTH O to Taylor Street | Q128: AMERICAN ASPHALT OF WISCONSIN | R128: 1 | S128: 3735540.82 | T128: =IFERROR(Table1[[#This Row],[Total Bid Amount]]/Table1[[#This Row],[Proposal Length]]," ") -> 1364830.406 | U128: 460.6645 | V128: HMA Pavement 5 MT 58-34 V | W128: 12738 | X128: 104.2 | Y128: 1 | AA128: 278305 | AB128: 0.075 | AC128: 3000 | AD128: 0.001 | AE128: 0.017 | AF128: 0.427 | AG128: 0.011 | AH128: 0 | AI128: 0.003 | AJ128: 0.097 | AK128: 0.011 | AL128: 0.077 | AM128: 0.004 | AN128: 0.014 | AO128: 0 | AP128: 0.001 | AQ128: 0.001 | AR128: 0.001 | AS128: 0 | AT128: 0.06 | AU128: 0.049 | AV128: 0.091 | AW128: 0 | AX128: 0 | AY128: 0.016 | AZ128: 0.001 | BA128: 0.008 | BB128: 0.007 | BC128: 0.015 | BD128: 0.015
A129: Resurfacing | B129: RESURFACING (OVERLAY >= 2.5 INCHES AND < 4 INCHES) | C129: Asphaltic Pavement | D129: General Const and Asphaltic Surfacing | E129: 13.383 | F129: Rural | G129: $ 2M to $10M | H129: 2023-11-14 | I129: =YEAR(H129) -> 2023 | J129: 20231114037 | K129: 7170-00-76 | L129: STATE HIGHWAY REHABILITATION | M129: NW | N129: Buffalo | O129: STH 025 | P129: Wabasha - Durand; STH 35 N to Pleasant Ridge Rd | Q129: MONARCH PAVING COMPANY | R129: 1 | S129: 9537220.73 | T129: =IFERROR(Table1[[#This Row],[Total Bid Amount]]/Table1[[#This Row],[Proposal Length]]," ") -> 712636.982 | U129: 460.6644 | V129: HMA Pavement 4 MT 58-34 V | W129: 55480 | X129: 97.18 | Y129: 1 | Z129: X | AA129: 883399.6 | AB129: 0.093 | AC129: 57401.63 | AD129: 0.006 | AE129: 0.006 | AF129: 0.628 | AG129: 0.012 | AH129: 0 | AI129: 0 | AJ129: 0 | AK129: 0.025 | AL129: 0 | AM129: 0.003 | AN129: 0.009 | AO129: 0 | AP129: 0.048 | AQ129: 0 | AR129: 0 | AS129: 0 | AT129: 0.011 | AU129: 0.029 | AV129: 0.114 | AW129: 0 | AX129: 0 | AY129: 0.002 | AZ129: 0 | BA129: 0.005 | BB129: 0.001 | BC129: 0 | BD129: 0.015
A130: Miscellaneous | B130: MISCELLANEOUS | C130: General Construction | D130: Incidental Construction | E130: 0.091 | F130: Rural | G130: $ 2M to $10M | H130: 2023-11-14 | I130: 2023 | J130: 20231114038 | K130: 7180-00-78 | L130: STATE HIGHWAY REHABILITATION | M130: NW | N130: Pierce | O130: STH 035 | P130: Pepin - Hager City; Green Street to Park Street | Q130: ZENITH TECH., INC. - WAUKESHA | R130: 2 | S130: 3275375.74 | T130: =IFERROR(Table1[[#This Row],[Total Bid Amount]]/Table1[[#This Row],[Proposal Length]]," ") -> 35993140 | U130: 460.6244 | V130: HMA Pavement 4 MT 58-34 S | W130: 51 | X130: 195.5 | Y130: 1 | AA130: 1000000 | AB130: 0.305 | AC130: 28650 | AD130: 0.009 | AE130: 0.233 | AF130: 0.003 | AG130: 0.001 | AH130: 0.014 | AI130: 0 | AJ130: 0.004 | AK130: 0.002 | AL130: 0 | AM130: 0.007 | AN130: 0.054 | AO130: 0.003 | AP130: 0.004 | AQ130: 0 | AR130: 0.001 | AS130: 0 | AT130: 0.023 | AU130: 0.002 | AV130: 0.001 | AW130: 0.047 | AX130: 0 | AY130: 0.002 | AZ130: 0.044 | BA130: 0.228 | BB130: 0.003 | BC130: 0 | BD130: 0.019
A131: Bridge Rehabilitation | B131: BRIDGE REHABILITATION | C131: Structures | D131: General Const and Highway Structures | E131: 0.047 | F131: Rural | G131: $ 0.5M to $ 1M | H131: 2023-11-14 | I131: =YEAR(H131) -> 2023 | J131: 20231114039 | K131: 7180-02-72 | L131: STATE HIGHWAY REHABILITATION | M131: NW | N131: Pierce | O131: STH 035 | P131: Hager City - Prescott, Big River Bridge B-47-0042 | Q131: PHEIFER BROTHERS CONSTRUCTION CO., INC. | R131: 7 | S131: 846789.84 | T131: =IFERROR(Table1[[#This Row],[Total Bid Amount]]/Table1[[#This Row],[Proposal Length]]," ") -> 18016805.11 | U131: 460.6244 | V131: HMA Pavement 4 MT 58-34 S | W131: 394 | X131: 185 | Y131: 1 | AA131: 56612.98 | AB131: 0.067 | AC131: 3011 | AD131: 0.004 | AE131: 0.016 | AF131: 0.087 | AG131: 0.033 | AH131: 0 | AI131: 0.011 | AJ131: 0.012 | AK131: 0 | AL131: 0.026 | AM131: 0.03 | AN131: 0.032 | AO131: 0 | AP131: 0.073 | AQ131: 0 | AR131: 0.004 | AS131: 0 | AT131: 0.014 | AU131: 0.01 | AV131: 0 | AW131: 0.318 | AX131: 0 | AY131: 0.005 | AZ131: 0.001 | BA131: 0.208 | BB131: 0.003 | BC131: 0 | BD131: 0.048
A132: Resurfacing | B132: RESURFACING (OVERLAY >= 2.5 INCHES AND < 4 INCHES) | C132: Asphaltic Pavement | D132: Asphaltic Surfacing | E132: 5.62 | F132: Rural | G132: $ 1M to $ 2M | H132: 2023-11-14 | I132: 2023 | J132: 20231114040 | K132: 7901-03-72 | L132: LOCAL TRANSPORTATION FACILITY IMPROVEMENT ASSISTANCE | M132: NW | N132: St Croix | O132: CTH F | P132: Pierce County Line - Hudson; Pierce County Line to Coulee Trail | Q132: MONARCH PAVING COMPANY | R132: 1 | S132: 1999814.19 | T132: =IFERROR(Table1[[#This Row],[Total Bid Amount]]/Table1[[#This Row],[Proposal Length]]," ") -> 355838.8238 | U132: 460.6244 | V132: HMA Pavement 4 MT 58-34 S | W132: 14893 | X132: 97.09 | Y132: 1 | AA132: 62800 | AB132: 0.031 | AC132: 10230 | AD132: 0.005 | AE132: 0 | AF132: 0.74 | AG132: 0.02 | AH132: 0 | AI132: 0 | AJ132: 0 | AK132: 0 | AL132: 0 | AM132: 0 | AN132: 0 | AO132: 0 | AP132: 0 | AQ132: 0 | AR132: 0 | AS132: 0 | AT132: 0.02 | AU132: 0.015 | AV132: 0.162 | AW132: 0 | AX132: 0 | AY132: 0 | AZ132: 0 | BA132: 0 | BB132: 0.001 | BC132: 0 | BD132: 0.009
A133: Reconstruction | B133: RECONSTRUCTION, PRESERVATION | C133: Concrete Pavement | D133: General Construction and PCC Pavement | E133: 1.196 | F133: Urban | G133: $ 2M to $10M | H133: 2023-11-14 | I133: 2023 | J133: 20231114041 | K133: 7996-00-43 | L133: LOCAL TRANSPORTATION FACILITY IMPROVEMENT ASSISTANCE | M133: NW | N133: Dunn | O133: CTH B | P133: C Menomonie, CTH B; USH 12 to EB Ih-94 Ramps | Q133: HAAS SONS, INC. | R133: 3 | S133: 6985402.79 | T133: =IFERROR(Table1[[#This Row],[Total Bid Amount]]/Table1[[#This Row],[Proposal Length]]," ") -> 5840637.784 | U133: 460.5244 | V133: HMA Pavement 4 LT 58-34 S | W133: 1324 | X133: 115 | Y133: 1 | AA133: 382555 | AB133: 0.055 | AC133: 12782 | AD133: 0.002 | AE133: 0.009 | AF133: 0.041 | AG133: 0.075 | AH133: 0 | AI133: 0.439 | AJ133: 0.047 | AK133: 0.045 | AL133: 0.112 | AM133: 0.015 | AN133: 0.04 | AO133: 0 | AP133: 0 | AQ133: 0 | AR133: 0.003 | AS133: 0.008 | AT133: 0.025 | AU133: 0.014 | AV133: 0.001 | AW133: 0 | AX133: 0.008 | AY133: 0.019 | AZ133: 0.005 | BA133: 0 | BB133: 0.011 | BC133: 0.008 | BD133: 0.02
A134: Bridge Rehabilitation | B134: BRIDGE REHABILITATION | C134: General Construction | D134: General Construction | E134: 12.513 | F134: Rural | G134: $ 2M to $10M | H134: 2023-11-14 | I134: 2023 | J134: 20231114042 | K134: 8110-01-72 | L134: STATE HIGHWAY REHABILITATION | M134: NW | N134: Dunn | O134: STH 064 | P134: Connorsville - Bloomer; CTH O to North Jct CTH W | Q134: MATTISON CONTRACTORS, INC. | R134: 4 | S134: 3345436.59 | T134: =IFERROR(Table1[[#This Row],[Total Bid Amount]]/Table1[[#This Row],[Proposal Length]]," ") -> 267356.876 | AA134: 292647 | AB134: 0.087 | AC134: 2600 | AD134: 0.001 | AE134: 0.005 | AF134: 0.127 | AG134: 0.08 | AH134: 0 | AI134: 0.008 | AJ134: 0.021 | AK134: 0.109 | AL134: 0 | AM134: 0.048 | AN134: 0.123 | AO134: 0 | AP134: 0.16 | AQ134: 0 | AR134: 0.003 | AS134: 0 | AT134: 0.012 | AU134: 0.004 | AV134: 0.005 | AW134: 0.005 | AX134: 0 | AY134: 0.007 | AZ134: 0.001 | BA134: 0.185 | BB134: 0.002 | BC134: 0 | BD134: 0.008
A135: Bridge Rehabilitation | B135: BRIDGE REHABILITATION | C135: Structures | D135: General Const and Highway Structures | E135: 0.069 | F135: Rural | G135: $ 0.5M to $ 1M | H135: 2023-11-14 | I135: 2023 | J135: 20231114043 | K135: 8220-00-70 | L135: STATE HIGHWAY REHABILITATION | M135: NW | N135: Taylor | O135: STH 064 | P135: Gilman - Medford; Black River Bridge B-60-0001 | Q135: SHEET PILING SERVICES LLC | R135: 6 | S135: 947844.07 | T135: =IFERROR(Table1[[#This Row],[Total Bid Amount]]/Table1[[#This Row],[Proposal Length]]," ") -> 13736870.58 | AA135: 56338.57 | AB135: 0.059 | AC135: 2050 | AD135: 0.002 | AE135: 0.001 | AF135: 0.026 | AG135: 0.017 | AH135: 0.121 | AI135: 0.041 | AJ135: 0.006 | AK135: 0 | AL135: 0 | AM135: 0.011 | AN135: 0.038 | AO135: 0 | AP135: 0.016 | AQ135: 0 | AR135: 0.001 | AS135: 0 | AT135: 0.005 | AU135: 0.052 | AV135: 0 | AW135: 0.211 | AX135: 0 | AY135: 0.001 | AZ135: 0.006 | BA135: 0.374 | BB135: 0.003 | BC135: 0 | BD135: 0.009
A136: Miscellaneous | B136: MISCELLANEOUS | C136: General Construction | D136: General Construction | E136: 0.133 | F136: Urban | G136: $ 0.5M or less | H136: 2023-11-14 | I136: 2023 | J136: 20231114044 | K136: 8829-00-71 | L136: LOCAL TRANSPORTATION FACILITY IMPROVEMENT ASSISTANCE | M136: NW | N136: Barron | O136: CTH O | P136: Dallas - Rice Lake; Decker Drive Intersection | Q136: ANTCZAK CONSTRUCTION, INC. | R136: 5 | S136: 337337.33 | T136: =IFERROR(Table1[[#This Row],[Total Bid Amount]]/Table1[[#This Row],[Proposal Length]]," ") -> 2536370.902 | AA136: 30789.07 | AB136: 0.091 | AC136: 5500 | AD136: 0.016 | AE136: 0.018 | AF136: 0.204 | AG136: 0.124 | AH136: 0 | AI136: 0 | AJ136: 0.145 | AK136: 0.059 | AL136: 0.004 | AM136: 0.047 | AN136: 0.056 | AO136: 0 | AP136: 0 | AQ136: 0 | AR136: 0.002 | AS136: 0 | AT136: 0.088 | AU136: 0.027 | AV136: 0.019 | AW136: 0 | AX136: 0 | AY136: 0.031 | AZ136: 0.014 | BA136: 0 | BB136: 0.012 | BC136: 0 | BD136: 0.06
A137: Resurfacing | B137: PARTIAL DEPTH CIR WITH > 2.5 INCH CAP | C137: Asphaltic Pavement | D137: General Const and Asphaltic Surfacing | E137: 3.223 | F137: Rural | G137: $ 2M to $10M | H137: 2023-11-14 | I137: =YEAR(H137) -> 2023 | J137: 20231114045 | K137: 8919-03-75 | L137: LOCAL TRANSPORTATION FACILITY IMPROVEMENT ASSISTANCE | M137: NW | N137: Chippewa | O137: CTH X | P137: Chippewa Falls - Cadott 197th St to CTH Xx CTH X | Q137: MONARCH PAVING COMPANY | R137: 1 | S137: 3167310.66 | T137: =IFERROR(Table1[[#This Row],[Total Bid Amount]]/Table1[[#This Row],[Proposal Length]]," ") -> 982721.2721 | U137: 460.5244 | V137: HMA Pavement 4 LT 58-34 S | W137: 13382 | X137: 90.505 | Y137: 2 | AA137: 315322.71 | AB137: 0.1 | AC137: 20222.69 | AD137: 0.006 | AE137: 0 | AF137: 0.438 | AG137: 0.177 | AH137: 0 | AI137: 0 | AJ137: 0.007 | AK137: 0.019 | AL137: 0 | AM137: 0.029 | AN137: 0.065 | AO137: 0 | AP137: 0.023 | AQ137: 0 | AR137: 0.006 | AS137: 0 | AT137: 0.019 | AU137: 0.012 | AV137: 0.078 | AW137: 0.004 | AX137: 0 | AY137: 0.002 | AZ137: 0.004 | BA137: 0 | BB137: 0.003 | BC137: 0 | BD137: 0.015
A138: Miscellaneous | B138: MISCELLANEOUS | C138: General Construction | D138: General Construction | E138: 0.27 | F138: Rural | G138: $ 1M to $ 2M | H138: 2023-11-14 | I138: =YEAR(H138) -> 2023 | J138: 20231114046 | K138: 8944-04-71 | L138: LOCAL TRANSPORTATION FACILITY IMPROVEMENT ASSISTANCE | M138: NW | N138: St Croix | O138: CTH A | P138: Hudson - New Richmond; Mccutcheon Road Intersection | Q138: MATTISON CONTRACTORS, INC. | R138: 5 | S138: 1298932.99 | T138: =IFERROR(Table1[[#This Row],[Total Bid Amount]]/Table1[[#This Row],[Proposal Length]]," ") -> 4810862.926 | U138: 460.6224 | V138: HMA Pavement 4 MT 58-28 S | W138: 3264 | X138: 111.5084712 | Y138: 3 | AA138: 69395 | AB138: 0.053 | AC138: 2969 | AD138: 0.002 | AE138: 0 | AF138: 0.292 | AG138: 0.184 | AH138: 0 | AI138: 0.052 | AJ138: 0.102 | AK138: 0.074 | AL138: 0.059 | AM138: 0.026 | AN138: 0.047 | AO138: 0 | AP138: 0 | AQ138: 0 | AR138: 0.007 | AS138: 0.01 | AT138: 0.035 | AU138: 0.023 | AV138: 0 | AW138: 0 | AX138: 0 | AY138: 0 | AZ138: 0.006 | BA138: 0 | BB138: 0.009 | BC138: 0.003 | BD138: 0.015
A139: Resurfacing | B139: RESURFACING (OVERLAY >= 4 INCHES) | C139: General Construction | D139: General Construction | E139: 1.934 | F139: Unknown | G139: $ 2M to $10M | H139: 2023-11-14 | I139: 2023 | J139: 20231114047 | K139: 2025-07-73 | L139: STATE HIGHWAY REHABILITATION | M139: SE | N139: Waukesha | O139: STH 190 | P139: City & Vil Pewaukee, Capitol Dr; STH 16 to 0.3 Mi E of 5 Fields Rd | Q139: MICHELS ROAD & STONE, INC. | R139: 8 | S139: 9046119.81 | T139: =IFERROR(Table1[[#This Row],[Total Bid Amount]]/Table1[[#This Row],[Proposal Length]]," ") -> 4677414.586 | U139: 460.6223 | V139: HMA Pavement 3 MT 58-28 S | W139: 23962 | X139: 64.6942534 | Y139: 2 | AA139: 678555.18 | AB139: 0.075 | AC139: 84000 | AD139: 0.009 | AE139: 0.033 | AF139: 0.19 | AG139: 0.109 | AH139: 0 | AI139: 0.157 | AJ139: 0.028 | AK139: 0.019 | AL139: 0.116 | AM139: 0.029 | AN139: 0.044 | AO139: 0 | AP139: 0.007 | AQ139: 0 | AR139: 0.007 | AS139: 0.003 | AT139: 0.05 | AU139: 0.031 | AV139: 0.02 | AW139: 0 | AX139: 0.001 | AY139: 0.011 | AZ139: 0.006 | BA139: 0.005 | BB139: 0.006 | BC139: 0.032 | BD139: 0.022
A140: Resurfacing | B140: RESURFACING (OVERLAY >= 4 INCHES) | C140: General Construction | D140: General Construction | E140: 1.212 | F140: Unknown | G140: $ 2M to $10M | H140: 2023-11-14 | I140: 2023 | J140: 20231114048 | K140: 4070-00-70 | L140: STATE HIGHWAY REHABILITATION | M140: SE | N140: Washington | O140: USH 045 | P140: Fond Du Lac Avenue; WB CTH H to WB STH 28 | Q140: PAYNE AND DOLAN, INC | R140: 2 | S140: 2598028.77 | T140: =IFERROR(Table1[[#This Row],[Total Bid Amount]]/Table1[[#This Row],[Proposal Length]]," ") -> 2143588.094 | U140: 460.6223 | V140: HMA Pavement 3 MT 58-28 S | W140: 9325 | X140: 72.30234853 | Y140: 2 | AA140: 178000 | AB140: 0.069 | AC140: 64100 | AD140: 0.025 | AE140: 0.13 | AF140: 0.278 | AG140: 0.038 | AH140: 0 | AI140: 0.012 | AJ140: 0.115 | AK140: 0.065 | AL140: 0.042 | AM140: 0.023 | AN140: 0.011 | AO140: 0 | AP140: 0 | AQ140: 0.001 | AR140: 0.005 | AS140: 0.001 | AT140: 0.039 | AU140: 0.032 | AV140: 0.041 | AW140: 0 | AX140: 0.006 | AY140: 0.018 | AZ140: 0.009 | BA140: 0 | BB140: 0.005 | BC140: 0.009 | BD140: 0.051
A141: Traffic Operations | B141: STH - TRAFFIC OPERATIONS IMPROVEMENT BRIDGE REPAIR | C141: General Construction | D141: General Construction | E141: 0.048 | F141: Unknown | G141: $ 0.5M or less | H141: 2023-10-17 | I141: =YEAR(H141) -> 2023 | J141: 20231017001 | K141: 1120-66-70 | L141: HIGHWAY MAINTENANCE, REPAIR AND TRAFFIC OPERATIONS | M141: NE | N141: Winnebago | O141: IH 041 | P141: Oshkosh - Neenah; Barrier Wall Repair | Q141: LUNDA CONSTRUCTION COMPANY | R141: 7 | S141: 111495 | T141: =IFERROR(Table1[[#This Row],[Total Bid Amount]]/Table1[[#This Row],[Proposal Length]]," ") -> 2322812.5 | AA141: 11067.95 | AB141: 0.099 | AC141: 10250 | AD141: 0.092 | AE141: 0.466 | AF141: 0 | AG141: 0 | AH141: 0 | AI141: 0 | AJ141: 0 | AK141: 0 | AL141: 0 | AM141: 0.001 | AN141: 0.007 | AO141: 0 | AP141: 0.018 | AQ141: 0 | AR141: 0 | AS141: 0 | AT141: 0.009 | AU141: 0 | AV141: 0 | AW141: 0 | AX141: 0 | AY141: 0.126 | AZ141: 0.007 | BA141: 0.036 | BB141: 0.009 | BC141: 0 | BD141: 0.222
A142: Miscellaneous | B142: MISCELLANEOUS | C142: General Construction | D142: General and Incidental Construction | E142: 0.069 | F142: Urban | G142: $ 0.5M to $ 1M | H142: 2023-09-12 | I142: 2023 | J142: 20230912001 | K142: 1661-09-72 | L142: STATE HIGHWAY REHABILITATION | M142: SW | N142: Crawford | O142: USH 018 | P142: Prairie Du Chien - Fennimore; South Town Ln/Selch Rd Int. | Q142: H. JAMES & SONS, INC | R142: 3 | S142: 636038.28 | T142: =IFERROR(Table1[[#This Row],[Total Bid Amount]]/Table1[[#This Row],[Proposal Length]]," ") -> 9217946.087 | AA142: 184420 | AB142: 0.29 | AC142: 8000 | AD142: 0.013 | AE142: 0.026 | AF142: 0 | AG142: 0.008 | AH142: 0 | AI142: 0.104 | AJ142: 0.061 | AK142: 0.038 | AL142: 0.135 | AM142: 0.034 | AN142: 0.013 | AO142: 0 | AP142: 0 | AQ142: 0 | AR142: 0.004 | AS142: 0.002 | AT142: 0.088 | AU142: 0.033 | AV142: 0 | AW142: 0 | AX142: 0.009 | AY142: 0.035 | AZ142: 0.004 | BA142: 0 | BB142: 0.006 | BC142: 0.079 | BD142: 0.032
A143: Miscellaneous | B143: MISCELLANEOUS | C143: Grading | D143: Gen Const and Grading and Incidental | E143: N/A | F143: Rural | G143: $ 0.5M to $ 1M | H143: 2023-09-12 | I143: 2023 | J143: 20230912004 | K143: 3742-02-70 | L143: STATE HIGHWAY REHABILITATION | M143: SW | N143: Milwaukee | O143: NON HWY | P143: Statewide Tree Clearing Project; Various Counties (Swr & Ser) | Q143: HOMER TREE SERVICE, INC. | R143: 2 | S143: 710141.35 | T143: =IFERROR(Table1[[#This Row],[Total Bid Amount]]/Table1[[#This Row],[Proposal Length]]," ") ->  | AA143: 0 | AB143: 0 | AE143: 0.235 | AF143: 0 | AG143: 0 | AH143: 0 | AI143: 0 | AJ143: 0 | AK143: 0 | AL143: 0 | AM143: 0.007 | AN143: 0.743 | AO143: 0 | AP143: 0 | AQ143: 0 | AR143: 0.008 | AS143: 0 | AT143: 0.008 | AU143: 0 | AV143: 0 | AW143: 0 | AX143: 0 | AY143: 0 | AZ143: 0 | BA143: 0 | BB143: 0 | BC143: 0 | BD143: 0
A144: Miscellaneous | B144: MISCELLANEOUS | C144: Grading | D144: Gen Const and Grading and Incidental | E144: N/A | F144: Rural | G144: $ 0.5M or less | H144: 2023-09-12 | I144: 2023 | J144: 20230912005 | K144: 1009-37-01 | L144: STATE HIGHWAY REHABILITATION | M144: NE | N144: Statewide | O144: NON HWY | P144: Fy23 State Wide Tree Clearing; Various Counties (Ner & Ncr) | Q144: ONSITE LOGGING | R144: 5 | S144: 163748 | T144: =IFERROR(Table1[[#This Row],[Total Bid Amount]]/Table1[[#This Row],[Proposal Length]]," ") ->  | AA144: 0 | AB144: 0 | AE144: 0.41 | AF144: 0 | AG144: 0 | AH144: 0 | AI144: 0 | AJ144: 0 | AK144: 0 | AL144: 0 | AM144: 0 | AN144: 0.584 | AO144: 0 | AP144: 0 | AQ144: 0 | AR144: 0 | AS144: 0 | AT144: 0.005 | AU144: 0 | AV144: 0 | AW144: 0 | AX144: 0 | AY144: 0 | AZ144: 0 | BA144: 0 | BB144: 0 | BC144: 0 | BD144: 0
A145: Miscellaneous | B145: MISCELLANEOUS | C145: Grading | D145: Gen Const and Grading and Incidental | E145: N/A | F145: Rural | G145: $ 0.5M or less | H145: 2023-09-12 | I145: 2023 | J145: 20230912006 | K145: 1009-37-02 | L145: STATE HIGHWAY REHABILITATION | M145: NE | N145: Statewide | O145: NON HWY | P145: Fy23 State Wide Tree Clearing; Various Counties (Nwr & Ncr) | Q145: MATTISON CONTRACTORS, INC. | R145: 3 | S145: 296980 | T145: =IFERROR(Table1[[#This Row],[Total Bid Amount]]/Table1[[#This Row],[Proposal Length]]," ") ->  | AA145: 0 | AB145: 0 | AE145: 0.55 | AF145: 0 | AG145: 0 | AH145: 0 | AI145: 0 | AJ145: 0 | AK145: 0 | AL145: 0 | AM145: 0 | AN145: 0.446 | AO145: 0 | AP145: 0 | AQ145: 0 | AR145: 0 | AS145: 0 | AT145: 0.003 | AU145: 0 | AV145: 0 | AW145: 0 | AX145: 0 | AY145: 0 | AZ145: 0 | BA145: 0 | BB145: 0 | BC145: 0 | BD145: 0
A146: Resurfacing | B146: PARTIAL DEPTH CIR WITH > 2.5 INCH CAP | C146: Asphaltic Pavement | D146: General Const and Asphaltic Surfacing | E146: 6.969 | F146: Rural | G146: $ 2M to $10M | H146: 2023-09-12 | I146: 2023 | J146: 20230912007 | K146: 1430-02-73 | L146: STATE HIGHWAY REHABILITATION | M146: NC | N146: Marquette | O146: STH 023 | P146: Endeavor - Princeton; 8th Court to Morningside Court | Q146: D L GASSER CONSTRUCTION | R146: 2 | S146: 3869702.92 | T146: =IFERROR(Table1[[#This Row],[Total Bid Amount]]/Table1[[#This Row],[Proposal Length]]," ") -> 555273.7724 | U146: 460.6224 | V146: HMA Pavement 4 MT 58-28 S | W146: 30988 | X146: 65.33084162 | Y146: 2 | Z146: X | AA146: 41382.76 | AB146: 0.011 | AC146: 22000 | AD146: 0.006 | AE146: 0.088 | AF146: 0.598 | AG146: 0.155 | AH146: 0 | AI146: 0 | AJ146: 0.004 | AK146: 0.018 | AL146: 0 | AM146: 0.013 | AN146: 0.034 | AO146: 0 | AP146: 0 | AQ146: 0 | AR146: 0.001 | AS146: 0 | AT146: 0.016 | AU146: 0.001 | AV146: 0.049 | AW146: 0 | AX146: 0 | AY146: 0.002 | AZ146: 0.001 | BA146: 0 | BB146: 0.002 | BC146: 0 | BD146: 0.007
A147: Resurfacing | B147: RESURF (OVERLAY >= 4 IN DOES NOT INCREASE PROFILE) | C147: Asphaltic Pavement | D147: General Const and Asphaltic Surfacing | E147: 2.198 | F147: Rural | G147: $ 2M to $10M | H147: 2023-09-12 | I147: 2023 | J147: 20230912008 | K147: 1510-02-74 | L147: STATE HIGHWAY REHABILITATION | M147: NE | N147: Waupaca | O147: USH 010 | P147: Waupaca - Appleton, USH 10/STH 49/STH 110 Interchange | Q147: NORTHEAST ASPHALT, INC | R147: 2 | S147: 2820473.82 | T147: =IFERROR(Table1[[#This Row],[Total Bid Amount]]/Table1[[#This Row],[Proposal Length]]," ") -> 1283200.1 | U147: 460.6424 | V147: HMA Pavement 4 MT 58-28 H | W147: 22740 | X147: 72.22234828 | Y147: 2 | Z147: X | AA147: 105680 | AB147: 0.037 | AC147: 32500 | AD147: 0.012 | AE147: 0.004 | AF147: 0.65 | AG147: 0.045 | AH147: 0 | AI147: 0 | AJ147: 0.031 | AK147: 0.009 | AL147: 0 | AM147: 0.01 | AN147: 0.009 | AO147: 0 | AP147: 0.047 | AQ147: 0 | AR147: 0.001 | AS147: 0 | AT147: 0.016 | AU147: 0.053 | AV147: 0.025 | AW147: 0.002 | AX147: 0 | AY147: 0.005 | AZ147: 0.008 | BA147: 0 | BB147: 0.004 | BC147: 0 | BD147: 0.045
A148: Pavement Replacement | B148: PAVEMENT REPLACEMENT | C148: Asphaltic Pavement | D148: General Const and Asphaltic Surfacing | E148: 4.769 | F148: Rural | G148: $ 2M to $10M | H148: 2023-09-12 | I148: 2023 | J148: 20230912009 | K148: 1620-02-76 | L148: STATE HIGHWAY REHABILITATION | M148: NC | N148: Wood | O148: STH 080 | P148: Necedah - Babcock; Juneau Co Line to STH 173 N | Q148: AMERICAN ASPHALT OF WISCONSIN | R148: 4 | S148: 5150838.03 | T148: =IFERROR(Table1[[#This Row],[Total Bid Amount]]/Table1[[#This Row],[Proposal Length]]," ") -> 1080066.687 | U148: 460.6224 | V148: HMA Pavement 4 MT 58-28 S | W148: 27986 | X148: 89.76490352 | Y148: 3 | Z148: X | AA148: 349171.94 | AB148: 0.068 | AC148: 28670.51 | AD148: 0.006 | AE148: 0.027 | AF148: 0.508 | AG148: 0.047 | AH148: 0 | AI148: 0.002 | AJ148: 0.025 | AK148: 0.091 | AL148: 0 | AM148: 0.021 | AN148: 0.043 | AO148: 0 | AP148: 0.022 | AQ148: 0 | AR148: 0.001 | AS148: 0 | AT148: 0.029 | AU148: 0.019 | AV148: 0.068 | AW148: 0 | AX148: 0.002 | AY148: 0.004 | AZ148: 0.003 | BA148: 0 | BB148: 0.005 | BC148: 0 | BD148: 0.016
A149: Resurfacing | B149: RESURFACING (OVERLAY < 2.5 INCHES) | C149: Asphaltic Pavement | D149: General Const and Asphaltic Surfacing | E149: 5.54 | F149: Rural | G149: $ 1M to $ 2M | H149: 2023-09-12 | I149: 2023 | J149: 20230912010 | K149: 4075-00-71 | L149: STATE HIGHWAY REHABILITATION | M149: NC | N149: Waupaca | O149: STH 096 | P149: Fremont - Appleton; STH 110 to USH 45 | Q149: AMERICAN ASPHALT OF WISCONSIN | R149: 2 | S149: 1574726.59 | T149: =IFERROR(Table1[[#This Row],[Total Bid Amount]]/Table1[[#This Row],[Proposal Length]]," ") -> 284246.6769 | U149: 460.6224 | V149: HMA Pavement 4 MT 58-28 S | W149: 11958 | X149: 65.3 | Y149: 1 | Z149: X | AA149: 37236.52 | AB149: 0.024 | AC149: 4500 | AD149: 0.003 | AE149: 0.034 | AF149: 0.593 | AG149: 0.026 | AH149: 0 | AI149: 0 | AJ149: 0.008 | AK149: 0.066 | AL149: 0 | AM149: 0.024 | AN149: 0.011 | AO149: 0 | AP149: 0 | AQ149: 0 | AR149: 0.001 | AS149: 0 | AT149: 0.021 | AU149: 0.058 | AV149: 0.082 | AW149: 0 | AX149: 0.009 | AY149: 0.007 | AZ149: 0.003 | BA149: 0.005 | BB149: 0.003 | BC149: 0 | BD149: 0.025
A150: Resurfacing | B150: RESURFACING (OVERLAY < 2.5 INCHES) | C150: Asphaltic Pavement | D150: General Const and Asphaltic Surfacing | E150: 9.31 | F150: Rural | G150: $ 2M to $10M | H150: 2023-09-12 | I150: 2023 | J150: 20230912011 | K150: 6243-05-73 | L150: STATE HIGHWAY REHABILITATION | M150: NC | N150: Shawano | O150: STH 047 | P150: Black Creek - Bonduel, Outagamie Co Line - STH 29 | Q150: NORTHEAST ASPHALT, INC | R150: 2 | S150: 3293872.15 | T150: =IFERROR(Table1[[#This Row],[Total Bid Amount]]/Table1[[#This Row],[Proposal Length]]," ") -> 353799.3716 | U150: 460.6224 | V150: HMA Pavement 4 MT 58-28 S | W150: 23130 | X150: 77.4 | Y150: 1 | Z150: X | AA150: 275750 | AB150: 0.084 | AC150: 5500 | AD150: 0.002 | AE150: 0.018 | AF150: 0.61 | AG150: 0.041 | AH150: 0 | AI150: 0.01 | AJ150: 0 | AK150: 0.002 | AL150: 0.005 | AM150: 0.002 | AN150: 0.004 | AO150: 0 | AP150: 0.01 | AQ150: 0 | AR150: 0 | AS150: 0 | AT150: 0.02 | AU150: 0.046 | AV150: 0.12 | AW150: 0 | AX150: 0 | AY150: 0 | AZ150: 0 | BA150: 0 | BB150: 0.002 | BC150: 0 | BD150: 0.025
A151: Pavement Replacement | B151: PAVEMENT REPLACEMENT | C151: Asphaltic Pavement | D151: General Const and Asphaltic Surfacing | E151: 1.034 | F151: Urban | G151: $ 2M to $10M | H151: 2023-09-12 | I151: 2023 | J151: 20230912012 | K151: 9040-02-71 | L151: STATE HIGHWAY REHABILITATION | M151: NC | N151: Oneida | O151: STH 017 | P151: Rhinelander - Eagle River; Stevens Street to Pollyana Road | Q151: NORTHEAST ASPHALT, INC | R151: 2 | S151: 2394447.43 | T151: =IFERROR(Table1[[#This Row],[Total Bid Amount]]/Table1[[#This Row],[Proposal Length]]," ") -> 2315713.182 | U151: 460.6223 | V151: HMA Pavement 3 MT 58-28 S | W151: 15641 | X151: 81.23442874 | Y151: 2 | AA151: 131250 | AB151: 0.055 | AC151: 3030 | AD151: 0.001 | AE151: 0.086 | AF151: 0.558 | AG151: 0.009 | AH151: 0 | AI151: 0 | AJ151: 0.033 | AK151: 0.01 | AL151: 0 | AM151: 0.02 | AN151: 0.013 | AO151: 0 | AP151: 0 | AQ151: 0 | AR151: 0.002 | AS151: 0 | AT151: 0.019 | AU151: 0.031 | AV151: 0.13 | AW151: 0 | AX151: 0 | AY151: 0.008 | AZ151: 0 | BA151: 0 | BB151: 0.008 | BC151: 0 | BD151: 0.017
A152: Pavement Replacement | B152: PAVEMENT REPLACEMENT | C152: General Construction | D152: General and Incidental Construction | E152: 1.1 | F152: Rural | G152: $ 2M to $10M | H152: 2023-09-12 | I152: 2023 | J152: 20230912013 | K152: 9220-04-72 | L152: STATE HIGHWAY REHABILITATION | M152: NC | N152: Shawano | O152: STH 117 | P152: Bonduel - Cecil; Express Way to Mutzy Lane | Q152: ADVANCE CONSTRUCTION, INC. | R152: 5 | S152: 2935035.71 | T152: =IFERROR(Table1[[#This Row],[Total Bid Amount]]/Table1[[#This Row],[Proposal Length]]," ") -> 2668214.282 | U152: 460.6223 | V152: HMA Pavement 3 MT 58-28 S | W152: 7390 | X152: 101.0433018 | Y152: 3 | AA152: 129550 | AB152: 0.044 | AC152: 25660 | AD152: 0.009 | AE152: 0.263 | AF152: 0.262 | AG152: 0.045 | AH152: 0 | AI152: 0.025 | AJ152: 0.092 | AK152: 0.031 | AL152: 0.031 | AM152: 0.019 | AN152: 0.061 | AO152: 0 | AP152: 0 | AQ152: 0 | AR152: 0.001 | AS152: 0.002 | AT152: 0.021 | AU152: 0.014 | AV152: 0.029 | AW152: 0 | AX152: 0 | AY152: 0.017 | AZ152: 0.001 | BA152: 0.001 | BB152: 0.008 | BC152: 0.01 | BD152: 0.022
A153: Bridge Replacement | B153: BRIDGE REPLACEMENT, PRESERVATION | C153: General Construction | D153: General Construction | E153: 8.461 | F153: Rural | G153: $20M or more | H153: 2023-09-12 | I153: 2023 | J153: 20230912014 | K153: 1021-03-71 | L153: STATE HIGHWAY REHABILITATION | M153: NW | N153: Eau Claire | O153: IH 094 | P153: Eau Claire - Osseo; CTH J Bridge B-18-0212 (West Bound) | Q153: HOFFMAN CONSTRUCTION COMPANY | R153: 3 | S153: 69969900 | T153: =IFERROR(Table1[[#This Row],[Total Bid Amount]]/Table1[[#This Row],[Proposal Length]]," ") -> 8269696.253 | U153: 460.6244 | V153: HMA Pavement 4 MT 58-34 S | W153: 52199 | X153: 128.7130639 | Y153: 2 | AA153: 7173699.59 | AB153: 0.103 | AC153: 467236.05 | AD153: 0.007 | AE153: 0.221 | AF153: 0.208 | AG153: 0.004 | AH153: 0 | AI153: 0.008 | AJ153: 0.001 | AK153: 0.043 | AL153: 0 | AM153: 0.01 | AN153: 0.132 | AO153: 0.008 | AP153: 0.027 | AQ153: 0 | AR153: 0.005 | AS153: 0 | AT153: 0.005 | AU153: 0.007 | AV153: 0.009 | AW153: 0.01 | AX153: 0.004 | AY153: 0.005 | AZ153: 0.004 | BA153: 0.114 | BB153: 0.005 | BC153: 0 | BD153: 0.07
A154: Resurfacing | B154: PARTIAL DEPTH CIR WITH > 2.5 INCH CAP | C154: Asphaltic Pavement | D154: General Const and Asphaltic Surfacing | E154: 8.903 | F154: Rural | G154: $ 2M to $10M | H154: 2023-09-12 | I154: =YEAR(H154) -> 2023 | J154: 20230912015 | K154: 1520-02-72 | L154: STATE HIGHWAY REHABILITATION | M154: NW | N154: Clark | O154: USH 010 | P154: Osseo - Neillsville; USH 12 E Jct to Bachelors Ave | Q154: AMERICAN ASPHALT OF WISCONSIN | R154: 1 | S154: 4678951.95 | T154: =IFERROR(Table1[[#This Row],[Total Bid Amount]]/Table1[[#This Row],[Proposal Length]]," ") -> 525547.7873 | U154: 460.6645 | V154: HMA Pavement 5 MT 58-34 V | W154: 28075 | X154: 99.46 | Y154: 1 | Z154: X | AA154: 360009.4 | AB154: 0.077 | AC154: 3800.44 | AD154: 0.001 | AE154: 0.002 | AF154: 0.704 | AG154: 0.076 | AH154: 0 | AI154: 0 | AJ154: 0 | AK154: 0.008 | AL154: 0 | AM154: 0.008 | AN154: 0.034 | AO154: 0 | AP154: 0.017 | AQ154: 0 | AR154: 0.001 | AS154: 0 | AT154: 0.011 | AU154: 0.037 | AV154: 0.006 | AW154: 0 | AX154: 0 | AY154: 0 | AZ154: 0 | BA154: 0 | BB154: 0.003 | BC154: 0 | BD154: 0.016
A155: Miscellaneous | B155: MISCELLANEOUS | C155: General Construction | D155: General Construction | E155: 0.011 | F155: Rural | G155: $ 0.5M or less | H155: 2023-09-12 | I155: =YEAR(H155) -> 2023 | J155: 20230912016 | K155: 7620-00-73 | L155: STATE HIGHWAY REHABILITATION | M155: NW | N155: St Croix | O155: STH 128 | P155: Elmwood - STH 64 Ih94 (Kwik Trip) Intersection | Q155: MATTISON CONTRACTORS, INC. | R155: 3 | S155: 45968.51 | T155: =IFERROR(Table1[[#This Row],[Total Bid Amount]]/Table1[[#This Row],[Proposal Length]]," ") -> 4178955.455 | AA155: 8484 | AB155: 0.185 | AC155: 1850 | AD155: 0.04 | AE155: 0 | AF155: 0.125 | AG155: 0.049 | AH155: 0 | AI155: 0.13 | AJ155: 0.139 | AK155: 0 | AL155: 0 | AM155: 0.052 | AN155: 0.068 | AO155: 0 | AP155: 0 | AQ155: 0 | AR155: 0.019 | AS155: 0 | AT155: 0.027 | AU155: 0 | AV155: 0.005 | AW155: 0 | AX155: 0.041 | AY155: 0.01 | AZ155: 0.058 | BA155: 0 | BB155: 0.033 | BC155: 0 | BD155: 0.061
A156: Miscellaneous | B156: MISCELLANEOUS | C156: Structures | D156: General Const and Highway Structures | E156: 0.56 | F156: Rural | G156: $ 1M to $ 2M | H156: 2023-09-12 | I156: 2023 | J156: 20230912017 | K156: 8510-00-71 | L156: STATE HIGHWAY REHABILITATION | M156: NW | N156: Bayfield | O156: STH 013 | P156: Cornucopia - Port Wing; Lost Creek Culverts C-04-0070,71,72 | Q156: JAMES PETERSON SONS, INC. | R156: 6 | S156: 1907571.41 | T156: =IFERROR(Table1[[#This Row],[Total Bid Amount]]/Table1[[#This Row],[Proposal Length]]," ") -> 3406377.518 | AA156: 194376.25 | AB156: 0.102 | AC156: 3150 | AD156: 0.002 | AE156: 0.065 | AF156: 0.098 | AG156: 0.043 | AH156: 0 | AI156: 0.001 | AJ156: 0 | AK156: 0 | AL156: 0.008 | AM156: 0.069 | AN156: 0.273 | AO156: 0 | AP156: 0 | AQ156: 0 | AR156: 0.006 | AS156: 0 | AT156: 0.009 | AU156: 0.007 | AV156: 0 | AW156: 0.02 | AX156: 0 | AY156: 0 | AZ156: 0 | BA156: 0.274 | BB156: 0.006 | BC156: 0 | BD156: 0.019
A157: Miscellaneous | B157: MISCELLANEOUS | C157: General Construction | D157: General Construction | E157: 23.75 | F157: Rural | G157: $ 1M to $ 2M | H157: 2023-09-12 | I157: 2023 | J157: 20230912018 | K157: 8510-03-72 | L157: STATE HIGHWAY REHABILITATION | M157: NW | N157: Bayfield | O157: STH 013 | P157: Cornucopia - Superior; Bark Point Road to CTH H | Q157: MATTISON CONTRACTORS, INC. | R157: 4 | S157: 1325946.65 | T157: =IFERROR(Table1[[#This Row],[Total Bid Amount]]/Table1[[#This Row],[Proposal Length]]," ") -> 55829.33263 | AA157: 155530 | AB157: 0.117 | AC157: 9600 | AD157: 0.007 | AE157: 0.003 | AF157: 0.192 | AG157: 0.114 | AH157: 0 | AI157: 0 | AJ157: 0 | AK157: 0.347 | AL157: 0 | AM157: 0.031 | AN157: 0.113 | AO157: 0.001 | AP157: 0 | AQ157: 0 | AR157: 0.01 | AS157: 0 | AT157: 0.014 | AU157: 0.01 | AV157: 0 | AW157: 0 | AX157: 0 | AY157: 0.017 | AZ157: 0.001 | BA157: 0 | BB157: 0.005 | BC157: 0 | BD157: 0.025
A158: Miscellaneous | B158: MISCELLANEOUS | C158: General Construction | D158: General and Incidental Construction | E158: 0 | F158: Rural | G158: $ 0.5M to $ 1M | H158: 2023-09-12 | I158: 2023 | J158: 20230912019 | K158: 1195-00-66 | L158: STATE HIGHWAY REHABILITATION | M158: NW | N158: Douglas | O158: USH 002 | P158: Solon Springs - Superior; Bayfield Road to STH 13 | Q158: MATTISON CONTRACTORS, INC. | R158: 2 | S158: 623267.71 | T158: =IFERROR(Table1[[#This Row],[Total Bid Amount]]/Table1[[#This Row],[Proposal Length]]," ") ->  | AA158: 86367 | AB158: 0.139 | AC158: 7500 | AD158: 0.012 | AE158: 0.729 | AF158: 0.003 | AG158: 0.004 | AH158: 0 | AI158: 0 | AJ158: 0 | AK158: 0.014 | AL158: 0 | AM158: 0.027 | AN158: 0.023 | AO158: 0.006 | AP158: 0 | AQ158: 0 | AR158: 0.003 | AS158: 0 | AT158: 0 | AU158: 0 | AV158: 0 | AW158: 0 | AX158: 0 | AY158: 0.001 | AZ158: 0 | BA158: 0 | BB158: 0 | BC158: 0 | BD158: 0.051
A159: Resurfacing | B159: RESURFACING (OVERLAY >= 4 INCHES) | C159: Asphaltic Pavement | D159: Asphaltic Surfacing | E159: 2.918 | F159: Rural | G159: $ 2M to $10M | H159: 2023-08-08 | I159: 2023 | J159: 20230808001 | K159: 1011-00-70 | L159: STATE HIGHWAY REHABILITATION | M159: SW | N159: Columbia | O159: IH 039 | P159: Madison - Portage; S County Ln To 2,500 Ft S Sth 60 | Q159: PAYNE AND DOLAN, INC | R159: 2 | S159: 2668176.03 | T159: =IFERROR(Table1[[#This Row],[Total Bid Amount]]/Table1[[#This Row],[Proposal Length]]," ") -> 914385.2056 | U159: 460.8624 | V159: HMA Pavement 4 SMA 58-28 V | W159: 22210 | X159: 94.23502927 | Y159: 2 | Z159: X | AA159: 49000 | AB159: 0.018 | AC159: 12125 | AD159: 0.005 | AE159: 0 | AF159: 0.837 | AG159: 0.023 | AH159: 0 | AI159: 0.002 | AJ159: 0 | AK159: 0.003 | AL159: 0 | AM159: 0.001 | AN159: 0 | AO159: 0 | AP159: 0.016 | AQ159: 0 | AR159: 0 | AS159: 0 | AT159: 0.006 | AU159: 0.031 | AV159: 0.017 | AW159: 0 | AX159: 0.016 | AY159: 0 | AZ159: 0 | BA159: 0 | BB159: 0.002 | BC159: 0 | BD159: 0.027
A160: Pavement Replacement | B160: PAVEMENT REPLACEMENT | C160: General Construction | D160: General and Incidental Construction | E160: 2.466 | F160: Urban | G160: $10M to $20M | H160: 2023-08-08 | I160: 2023 | J160: 20230808002 | K160: 5090-05-60 | L160: STATE HIGHWAY REHABILITATION | M160: SW | N160: Sauk | O160: STH 033 | P160: Reedsburg - Baraboo; W Mulberry St To E V Limits | Q160: A-1 EXCAVATING LLC | R160: 5 | S160: 18788706.31 | T160: =IFERROR(Table1[[#This Row],[Total Bid Amount]]/Table1[[#This Row],[Proposal Length]]," ") -> 7619102.315 | U160: 460.6223 | V160: HMA Pavement 3 MT 58-28 S | W160: 24353 | X160: 84.92996099 | Y160: 3 | AA160: 764000 | AB160: 0.041 | AC160: 185732 | AD160: 0.01 | AE160: 0.255 | AF160: 0.117 | AG160: 0.125 | AH160: 0 | AI160: 0.01 | AJ160: 0.054 | AK160: 0.143 | AL160: 0.055 | AM160: 0.019 | AN160: 0.052 | AO160: 0 | AP160: 0.002 | AQ160: 0.005 | AR160: 0.001 | AS160: 0.002 | AT160: 0.031 | AU160: 0.009 | AV160: 0.001 | AW160: 0 | AX160: 0.024 | AY160: 0.015 | AZ160: 0.003 | BA160: 0.002 | BB160: 0.01 | BC160: 0.01 | BD160: 0.016
A161: Bridge Replacement | B161: BRIDGE REPLACEMENT, PRESERVATION | C161: Structures | D161: Highway Structures | E161: 0.0271 | F161: Rural | G161: $ 0.5M or less | H161: 2023-08-08 | I161: 2023 | J161: 20230808003 | K161: 5677-00-78 | L161: HIGHWAY AND LOCAL BRIDGE IMPROVEMENT ASSISTANCE | M161: SW | N161: Sauk | O161: CTH N | P161: Cth G - Sth 23; Sugar Grove Creek, B-56-0241 | Q161: RADTKE CONTRACTORS INC. | R161: 7 | S161: 344930.46 | T161: =IFERROR(Table1[[#This Row],[Total Bid Amount]]/Table1[[#This Row],[Proposal Length]]," ") -> 12728061.25 | AA161: 53362.5 | AB161: 0.155 | AC161: 1000 | AD161: 0.003 | AE161: 0 | AF161: 0.025 | AG161: 0.032 | AH161: 0 | AI161: 0.003 | AJ161: 0 | AK161: 0.002 | AL161: 0 | AM161: 0.055 | AN161: 0.077 | AO161: 0 | AP161: 0.025 | AQ161: 0 | AR161: 0.008 | AS161: 0 | AT161: 0.023 | AU161: 0.01 | AV161: 0 | AW161: 0.04 | AX161: 0 | AY161: 0 | AZ161: 0.003 | BA161: 0.527 | BB161: 0.006 | BC161: 0 | BD161: 0.011
A162: Bridge Replacement | B162: BRIDGE REPLACEMENT, PRESERVATION | C162: Structures | D162: Highway Structures | E162: 0.041 | F162: Rural | G162: $ 0.5M to $ 1M | H162: 2023-08-08 | I162: 2023 | J162: 20230808004 | K162: 5721-00-76 | L162: HIGHWAY AND LOCAL BRIDGE IMPROVEMENT ASSISTANCE | M162: SW | N162: Grant | O162: LOC STR | P162: T Jamestown, Woodland Lane; Menomonie River Bridge B-22-0301 | Q162: BRENNAN CONSTRUCTION COMPANY | R162: 7 | S162: 611727.01 | T162: =IFERROR(Table1[[#This Row],[Total Bid Amount]]/Table1[[#This Row],[Proposal Length]]," ") -> 14920170.98 | AA162: 100000 | AB162: 0.163 | AC162: 1000 | AD162: 0.002 | AE162: 0.004 | AF162: 0.025 | AG162: 0.011 | AH162: 0 | AI162: 0.003 | AJ162: 0 | AK162: 0.003 | AL162: 0 | AM162: 0.046 | AN162: 0.046 | AO162: 0 | AP162: 0 | AQ162: 0 | AR162: 0.003 | AS162: 0 | AT162: 0.023 | AU162: 0 | AV162: 0 | AW162: 0.041 | AX162: 0 | AY162: 0 | AZ162: 0.003 | BA162: 0.609 | BB162: 0.009 | BC162: 0 | BD162: 0.009
A163: Expansion | B163: RECONSTRUCTION, EXPANSION | C163: Grading | D163: General Construction and Grading | E163: 2.528 | F163: Unknown | G163: $10M to $20M | H163: 2023-08-08 | I163: 2023 | J163: 20230808005 | K163: 5954-00-01 | L163: LOCAL TRANSPORTATION FACILITY IMPROVEMENT ASSISTANCE | M163: SW | N163: Dane | O163: CTH M | P163: Cth Q - Sth 113 (Cth M); Oncken Road To Sth 113 | Q163: MASHUDA CONTRACTORS, INC. | R163: 7 | S163: 18419344.21 | T163: =IFERROR(Table1[[#This Row],[Total Bid Amount]]/Table1[[#This Row],[Proposal Length]]," ") -> 7286132.994 | U163: 460.6223 | V163: HMA Pavement 3 MT 58-28 S | W163: 41297 | X163: 71.65825605 | Y163: 3 | Z163: X | AA163: 908967 | AB163: 0.049 | AC163: 98665 | AD163: 0.005 | AE163: 0.107 | AF163: 0.184 | AG163: 0.169 | AH163: 0 | AI163: 0.006 | AJ163: 0.046 | AK163: 0.05 | AL163: 0.022 | AM163: 0.034 | AN163: 0.17 | AO163: 0 | AP163: 0.005 | AQ163: 0.012 | AR163: 0.005 | AS163: 0 | AT163: 0.007 | AU163: 0.01 | AV163: 0.002 | AW163: 0.005 | AX163: 0 | AY163: 0.007 | AZ163: 0.002 | BA163: 0.076 | BB163: 0.009 | BC163: 0.005 | BD163: 0.015
A164: Bridge Rehabilitation | B164: BRIDGE REHABILITATION | C164: Structures | D164: General Const and Highway Structures | E164: 0.834 | F164: Unknown | G164: $ 2M to $10M | H164: 2023-08-08 | I164: 2023 | J164: 20230808006 | K164: 1360-13-70 | L164: STATE HIGHWAY REHABILITATION | M164: SE | N164: Milwaukee | O164: STH 145 | P164: Fond Du Lac, City Of Milwaukee 76th St. Bridges | Q164: ZENITH TECH., INC. - WAUKESHA | R164: 3 | S164: 8962327.73 | T164: =IFERROR(Table1[[#This Row],[Total Bid Amount]]/Table1[[#This Row],[Proposal Length]]," ") -> 10746196.32 | U164: 460.7424 | V164: HMA Pavement 4 HT 58-28 H | W164: 813 | X164: 110 | Y164: 1 | AA164: 415000 | AB164: 0.046 | AC164: 80377.16 | AD164: 0.009 | AE164: 0.065 | AF164: 0.015 | AG164: 0.005 | AH164: 0.106 | AI164: 0.028 | AJ164: 0.025 | AK164: 0.008 | AL164: 0.069 | AM164: 0.008 | AN164: 0.012 | AO164: 0.006 | AP164: 0.008 | AQ164: 0.004 | AR164: 0.001 | AS164: 0 | AT164: 0.016 | AU164: 0.02 | AV164: 0.005 | AW164: 0.089 | AX164: 0.001 | AY164: 0.011 | AZ164: 0.002 | BA164: 0.425 | BB164: 0.004 | BC164: 0 | BD164: 0.023
A165: Reconstruction | B165: RECONSTRUCTION, PRESERVATION | C165: General Construction | D165: General Construction | E165: 1.04 | F165: Unknown | G165: $ 2M to $10M | H165: 2023-08-08 | I165: 2023 | J165: 20230808007 | K165: 2040-14-70 | L165: STATE HIGHWAY REHABILITATION | M165: SE | N165: Milwaukee | O165: USH 045 | P165: Lovers Lane (City Of Franklin); Rawson Ave To College Ave | Q165: A.W. OAKES & SON, INC. | R165: 8 | S165: 9775047.58 | T165: =IFERROR(Table1[[#This Row],[Total Bid Amount]]/Table1[[#This Row],[Proposal Length]]," ") -> 9399084.212 | U165: 460.6223 | V165: HMA Pavement 3 MT 58-28 S | W165: 23881 | X165: 65.14630878 | Y165: 2 | AA165: 360000 | AB165: 0.037 | AC165: 85000 | AD165: 0.009 | AE165: 0.113 | AF165: 0.179 | AG165: 0.004 | AH165: 0 | AI165: 0.005 | AJ165: 0.1 | AK165: 0.157 | AL165: 0.034 | AM165: 0.021 | AN165: 0.132 | AO165: 0 | AP165: 0.03 | AQ165: 0.007 | AR165: 0.003 | AS165: 0.003 | AT165: 0.023 | AU165: 0.02 | AV165: 0.002 | AW165: 0.001 | AX165: 0.057 | AY165: 0.024 | AZ165: 0.009 | BA165: 0.009 | BB165: 0.005 | BC165: 0.004 | BD165: 0.022
A166: Expansion | B166: RECONSTRUCTION, EXPANSION | C166: General Construction | D166: General Construction | E166: 2.945 | F166: Rural | G166: $10M to $20M | H166: 2023-08-08 | I166: 2023 | J166: 20230808008 | K166: 1146-75-73 | L166: MAJOR HIGHWAY DEVELOPMENT | M166: NE | N166: Outagamie | O166: STH 015 | P166: Sth 76-New London; Cth T/Givens Road-Ush 45 | Q166: MASHUDA CONTRACTORS, INC. | R166: 7 | S166: 14039957.73 | T166: =IFERROR(Table1[[#This Row],[Total Bid Amount]]/Table1[[#This Row],[Proposal Length]]," ") -> 4767388.024 | U166: 460.5224 | V166: HMA Pavement 4 LT 58-28 S | W166: 15010 | X166: 80.98247835 | Y166: 4 | AA166: 947991 | AB166: 0.068 | AC166: 50000 | AD166: 0.004 | AE166: 0.025 | AF166: 0.097 | AG166: 0.223 | AH166: 0 | AI166: 0.222 | AJ166: 0.015 | AK166: 0.052 | AL166: 0.015 | AM166: 0.036 | AN166: 0.148 | AO166: 0 | AP166: 0 | AQ166: 0 | AR166: 0.014 | AS166: 0.001 | AT166: 0.014 | AU166: 0.005 | AV166: 0.001 | AW166: 0.001 | AX166: 0.002 | AY166: 0.004 | AZ166: 0.005 | BA166: 0.035 | BB166: 0.004 | BC166: 0.006 | BD166: 0.007
A167: Resurfacing | B167: RESURFACING (OVERLAY < 2.5 INCHES) | C167: Asphaltic Pavement | D167: General Const and Asphaltic Surfacing | E167: 4.501 | F167: Rural | G167: $ 2M to $10M | H167: 2023-08-08 | I167: 2023 | J167: 20230808009 | K167: 1620-03-72 | L167: STATE HIGHWAY REHABILITATION | M167: NC | N167: Marathon | O167: STH 013 | P167: Marshfield - Abbotsford; 26th Road To Sth 98 | Q167: AMERICAN ASPHALT OF WISCONSIN | R167: 1 | S167: 2313762.86 | T167: =IFERROR(Table1[[#This Row],[Total Bid Amount]]/Table1[[#This Row],[Proposal Length]]," ") -> 514055.2899 | U167: 460.6425 | V167: HMA Pavement 5 MT 58-28 H | W167: 11095 | X167: 94.58 | Y167: 1 | Z167: X | AA167: 178207 | AB167: 0.077 | AC167: 4000 | AD167: 0.002 | AE167: 0.082 | AF167: 0.52 | AG167: 0.03 | AH167: 0 | AI167: 0.001 | AJ167: 0.039 | AK167: 0 | AL167: 0 | AM167: 0.008 | AN167: 0.007 | AO167: 0 | AP167: 0 | AQ167: 0 | AR167: 0.001 | AS167: 0 | AT167: 0.035 | AU167: 0.029 | AV167: 0.15 | AW167: 0 | AX167: 0 | AY167: 0.006 | AZ167: 0.001 | BA167: 0 | BB167: 0.004 | BC167: 0 | BD167: 0.01
A168: Miscellaneous | B168: MISCELLANEOUS | C168: General Construction | D168: General Construction | E168: 0.21 | F168: Rural | G168: $ 0.5M to $ 1M | H168: 2023-08-08 | I168: 2023 | J168: 20230808010 | K168: 6580-10-61 | L168: STATE HIGHWAY REHABILITATION | M168: NC | N168: Shawano | O168: STH 156 | P168: Clintonville - Howard; Herman Creek Guardrail Restoration | Q168: VINTON CONSTRUCTION COMPANY | R168: 2 | S168: 517082.13 | T168: =IFERROR(Table1[[#This Row],[Total Bid Amount]]/Table1[[#This Row],[Proposal Length]]," ") -> 2462295.857 | AA168: 94000 | AB168: 0.182 | AC168: 4182 | AD168: 0.008 | AE168: 0.059 | AF168: 0.166 | AG168: 0.051 | AH168: 0 | AI168: 0 | AJ168: 0 | AK168: 0 | AL168: 0.01 | AM168: 0.155 | AN168: 0.111 | AO168: 0 | AP168: 0.141 | AQ168: 0 | AR168: 0.014 | AS168: 0 | AT168: 0.019 | AU168: 0.02 | AV168: 0.02 | AW168: 0 | AX168: 0 | AY168: 0.006 | AZ168: 0.001 | BA168: 0 | BB168: 0.008 | BC168: 0 | BD168: 0.038
A169: Pavement Replacement | B169: PAVEMENT REPLACEMENT | C169: General Construction | D169: General Construction | E169: 1.13 | F169: Rural | G169: $ 2M to $10M | H169: 2023-08-08 | I169: 2023 | J169: 20230808011 | K169: 8160-00-75 | L169: STATE HIGHWAY REHABILITATION | M169: NW | N169: Bayfield | O169: STH 013 | P169: C Washburn, Bayfield Street; Thompson Creek To Washington Ave | Q169: HOFFMAN CONSTRUCTION COMPANY | R169: 5 | S169: 8316724.34 | T169: =IFERROR(Table1[[#This Row],[Total Bid Amount]]/Table1[[#This Row],[Proposal Length]]," ") -> 7359933.044 | U169: 460.6244 | V169: HMA Pavement 4 MT 58-34 S | W169: 4250 | X169: 119.5452235 | Y169: 2 | AA169: 998514.58 | AB169: 0.12 | AC169: 2000 | AD169: 0 | AE169: 0.064 | AF169: 0.065 | AG169: 0 | AH169: 0 | AI169: 0.231 | AJ169: 0.076 | AK169: 0.152 | AL169: 0.017 | AM169: 0.013 | AN169: 0.178 | AO169: 0 | AP169: 0 | AQ169: 0 | AR169: 0 | AS169: 0 | AT169: 0.02 | AU169: 0.011 | AV169: 0.009 | AW169: 0 | AX169: 0.003 | AY169: 0.014 | AZ169: 0.003 | BA169: 0 | BB169: 0.018 | BC169: 0 | BD169: 0.006
A170: Preservation/Restoration | B170: SHORT TERM OVERLAY (MILL AND OVERLAY) | C170: Asphaltic Pavement | D170: General Const and Asphaltic Surfacing | E170: 6.206 | F170: Rural | G170: $ 2M to $10M | H170: 2023-08-08 | I170: 2023 | J170: 20230808012 | K170: 5640-04-70 | L170: STATE HIGHWAY REHABILITATION | M170: SW | N170: Columbia | O170: STH 113 | P170: Lodi - Baraboo; Sth 60 To Sth 188 | Q170: MASHUDA CONTRACTORS, INC. | R170: 6 | S170: 2769177.77 | T170: =IFERROR(Table1[[#This Row],[Total Bid Amount]]/Table1[[#This Row],[Proposal Length]]," ") -> 446209.7599 | U170: 460.6224 | V170: HMA Pavement 4 MT 58-28 S | W170: 13890 | X170: 78.16980562 | Y170: 2 | AA170: 144745 | AB170: 0.052 | AC170: 15000 | AD170: 0.005 | AE170: 0.009 | AF170: 0.434 | AG170: 0.089 | AH170: 0 | AI170: 0.002 | AJ170: 0.039 | AK170: 0.022 | AL170: 0 | AM170: 0.025 | AN170: 0.077 | AO170: 0 | AP170: 0.025 | AQ170: 0 | AR170: 0.018 | AS170: 0 | AT170: 0.031 | AU170: 0.075 | AV170: 0.05 | AW170: 0 | AX170: 0 | AY170: 0.003 | AZ170: 0.001 | BA170: 0 | BB170: 0.008 | BC170: 0 | BD170: 0.041
A171: Expansion | B171: RECONSTRUCTION, EXPANSION | C171: General Construction | D171: General Construction | E171: 2.42 | F171: Unknown | G171: $20M or more | H171: 2023-07-11 | I171: 2023 | J171: 20230711002 | K171: 1229-04-75 | L171: MAJOR HIGHWAY DEVELOPMENT | M171: SE | N171: Ozaukee | O171: IH 043 | P171: I-43 North South Freeway; Mequon Rd Interchange | Q171: ZIGNEGO COMPANY, INC. | R171: 5 | S171: 50083812.12 | T171: =IFERROR(Table1[[#This Row],[Total Bid Amount]]/Table1[[#This Row],[Proposal Length]]," ") -> 20695790.13 | U171: 460.6223 | V171: HMA Pavement 3 MT 58-28 S | W171: 20845 | X171: 82.67309235 | Y171: 2 | AA171: 2863000 | AB171: 0.057 | AC171: 303910 | AD171: 0.006 | AE171: 0.346 | AF171: 0.036 | AG171: 0.151 | AH171: 0 | AI171: 0.005 | AJ171: 0.006 | AK171: 0.095 | AL171: 0.012 | AM171: 0.012 | AN171: 0.053 | AO171: 0.011 | AP171: 0.013 | AQ171: 0.007 | AR171: 0.002 | AS171: 0 | AT171: 0.01 | AU171: 0.01 | AV171: 0 | AW171: 0.013 | AX171: 0.003 | AY171: 0.008 | AZ171: 0.004 | BA171: 0.117 | BB171: 0 | BC171: 0.002 | BD171: 0.026
A172: Resurfacing | B172: RESURFACING (OVERLAY >= 4 INCHES) | C172: Asphaltic Pavement | D172: General Const and Asphaltic Surfacing | E172: 3.872 | F172: Rural | G172: $ 2M to $10M | H172: 2023-07-11 | I172: 2023 | J172: 20230711003 | K172: 1330-22-70 | L172: STATE HIGHWAY REHABILITATION | M172: SE | N172: Washington | O172: STH 083 | P172: Sth 83 - Hartford To Chenequa; Sth 167 To Monroe Avenue | Q172: PAYNE AND DOLAN, INC | R172: 4 | S172: 3257793.7 | T172: =IFERROR(Table1[[#This Row],[Total Bid Amount]]/Table1[[#This Row],[Proposal Length]]," ") -> 841372.3399 | U172: 460.6223 | V172: HMA Pavement 3 MT 58-28 S | W172: 19892 | X172: 65.08167856 | Y172: 2 | AA172: 143000 | AB172: 0.044 | AC172: 24850 | AD172: 0.008 | AE172: 0.118 | AF172: 0.417 | AG172: 0.106 | AH172: 0 | AI172: 0.022 | AJ172: 0.017 | AK172: 0.022 | AL172: 0 | AM172: 0.024 | AN172: 0.03 | AO172: 0 | AP172: 0.03 | AQ172: 0 | AR172: 0.001 | AS172: 0 | AT172: 0.016 | AU172: 0.025 | AV172: 0.049 | AW172: 0.004 | AX172: 0.001 | AY172: 0.008 | AZ172: 0.002 | BA172: 0.049 | BB172: 0.003 | BC172: 0 | BD172: 0.013
A173: Bridge Rehabilitation | B173: BRIDGE REHABILITATION | C173: Structures | D173: General Const and Highway Structures | E173: 0.26 | F173: Unknown | G173: $ 0.5M or less | H173: 2023-07-11 | I173: 2023 | J173: 20230711004 | K173: 1370-11-71 | L173: STATE HIGHWAY REHABILITATION | M173: SE | N173: Waukesha | O173: STH 016 | P173: V Pewaukee Sth 16; Capitol Drive Bridge (B-67-0179) | Q173: SHEET PILING SERVICES LLC | R173: 5 | S173: 420260.04 | T173: =IFERROR(Table1[[#This Row],[Total Bid Amount]]/Table1[[#This Row],[Proposal Length]]," ") -> 1616384.769 | AA173: 29726.44 | AB173: 0.071 | AC173: 24124.44 | AD173: 0.057 | AE173: 0.088 | AF173: 0.069 | AG173: 0.012 | AH173: 0 | AI173: 0.001 | AJ173: 0.004 | AK173: 0.004 | AL173: 0 | AM173: 0.033 | AN173: 0.057 | AO173: 0.016 | AP173: 0.05 | AQ173: 0 | AR173: 0.005 | AS173: 0 | AT173: 0.03 | AU173: 0.025 | AV173: 0.038 | AW173: 0.059 | AX173: 0 | AY173: 0.009 | AZ173: 0 | BA173: 0.262 | BB173: 0.024 | BC173: 0 | BD173: 0.142
A174: Resurfacing | B174: PARTIAL DEPTH CIR WITH > 2.5 INCH CAP | C174: Asphaltic Pavement | D174: General Const and Asphaltic Surfacing | E174: 12.862 | F174: Rural | G174: $ 2M to $10M | H174: 2023-07-11 | I174: 2023 | J174: 20230711006 | K174: 6518-00-70 | L174: STATE HIGHWAY REHABILITATION | M174: NC | N174: Waupaca | O174: STH 076 | P174: Greenville - Bear Creek; Outagamie County Line To Ush 45 | Q174: NORTHEAST ASPHALT, INC | R174: 1 | S174: 7393656.94 | T174: =IFERROR(Table1[[#This Row],[Total Bid Amount]]/Table1[[#This Row],[Proposal Length]]," ") -> 574845.0428 | U174: 460.5224 | V174: HMA Pavement 4 LT 58-28 S | W174: 28175 | X174: 78.91542147 | Y174: 3 | Z174: X | AA174: 760470 | AB174: 0.103 | AC174: 23500 | AD174: 0.003 | AE174: 0.02 | AF174: 0.399 | AG174: 0.13 | AH174: 0 | AI174: 0.001 | AJ174: 0.009 | AK174: 0.041 | AL174: 0.002 | AM174: 0.013 | AN174: 0.071 | AO174: 0 | AP174: 0.011 | AQ174: 0 | AR174: 0 | AS174: 0 | AT174: 0.02 | AU174: 0.024 | AV174: 0.07 | AW174: 0.004 | AX174: 0 | AY174: 0.004 | AZ174: 0.001 | BA174: 0.053 | BB174: 0.003 | BC174: 0 | BD174: 0.021
A175: Resurfacing | B175: RESURFACING (OVERLAY < 2.5 INCHES) | C175: Asphaltic Pavement | D175: General Const and Asphaltic Surfacing | E175: 7.06 | F175: Rural | G175: $ 1M to $ 2M | H175: 2023-07-11 | I175: 2023 | J175: 20230711007 | K175: 6866-06-70 | L175: STATE HIGHWAY REHABILITATION | M175: NC | N175: Waushara | O175: STH 152 | P175: Wautoma - Mt Morris; North Townline Road To CTH G | Q175: AMERICAN ASPHALT OF WISCONSIN | R175: 2 | S175: 1907495.08 | T175: =IFERROR(Table1[[#This Row],[Total Bid Amount]]/Table1[[#This Row],[Proposal Length]]," ") -> 270183.4391 | U175: 460.5224 | V175: HMA Pavement 4 LT 58-28 S | W175: 14150 | X175: 69.56 | Y175: 1 | Z175: X | AA175: 86039.5 | AB175: 0.045 | AC175: 12933 | AD175: 0.007 | AE175: 0.002 | AF175: 0.599 | AG175: 0.041 | AH175: 0 | AI175: 0.002 | AJ175: 0.003 | AK175: 0.031 | AL175: 0 | AM175: 0.016 | AN175: 0.063 | AO175: 0 | AP175: 0.025 | AQ175: 0 | AR175: 0.002 | AS175: 0 | AT175: 0.021 | AU175: 0.075 | AV175: 0.048 | AW175: 0.002 | AX175: 0 | AY175: 0.001 | AZ175: 0 | BA175: 0 | BB175: 0.004 | BC175: 0 | BD175: 0.02
A176: Miscellaneous | B176: MISCELLANEOUS | C176: General Construction | D176: General and Incidental Construction | E176: 0.014 | F176: Rural | G176: $ 1M to $ 2M | H176: 2023-07-11 | I176: 2023 | J176: 20230711008 | K176: 7180-00-79 | L176: STATE HIGHWAY REHABILITATION | M176: NW | N176: Pierce | O176: STH 035 | P176: Pepin - Hager City; USH 63 Intersection | Q176: A-1 EXCAVATING LLC | R176: 2 | S176: 1055506.75 | T176: =IFERROR(Table1[[#This Row],[Total Bid Amount]]/Table1[[#This Row],[Proposal Length]]," ") -> 75393339.29 | U176: 460.6244 | V176: HMA Pavement 4 MT 58-34 S | W176: 337 | X176: 146 | Y176: 1 | AA176: 132025 | AB176: 0.125 | AC176: 29815 | AD176: 0.028 | AE176: 0.052 | AF176: 0.055 | AG176: 0.034 | AH176: 0 | AI176: 0 | AJ176: 0.017 | AK176: 0.467 | AL176: 0.092 | AM176: 0.02 | AN176: 0.005 | AO176: 0 | AP176: 0.013 | AQ176: 0 | AR176: 0.002 | AS176: 0 | AT176: 0.018 | AU176: 0.013 | AV176: 0.004 | AW176: 0 | AX176: 0 | AY176: 0.023 | AZ176: 0.001 | BA176: 0.002 | BB176: 0.006 | BC176: 0 | BD176: 0.052
A177: Traffic Operations | B177: STH - TRAFFIC OPERATIONS SIGNING | C177: General Construction | D177: General and Incidental Construction | E177: 0 | F177: Unknown | G177: $ 1M to $ 2M | H177: 2023-07-11 | I177: 2023 | J177: 20230711009 | K177: 1000-20-64 | L177: HIGHWAY MAINTENANCE, REPAIR AND TRAFFIC OPERATIONS | M177: SE | N177: Milwaukee | O177: VAR HWY | P177: Ancillary Struct Rehab/Replace 2022; Locations On Stn | Q177: ARBOR GREEN, INC. | R177: 2 | S177: 1276900 | T177: =IFERROR(Table1[[#This Row],[Total Bid Amount]]/Table1[[#This Row],[Proposal Length]]," ") ->  | AA177: 190000 | AB177: 0.149 | AC177: 14610 | AD177: 0.011 | AE177: 0.803 | AF177: 0 | AG177: 0 | AH177: 0 | AI177: 0 | AJ177: 0 | AK177: 0 | AL177: 0 | AM177: 0 | AN177: 0 | AO177: 0 | AP177: 0.001 | AQ177: 0 | AR177: 0 | AS177: 0 | AT177: 0.016 | AU177: 0 | AV177: 0 | AW177: 0 | AX177: 0 | AY177: 0 | AZ177: 0.001 | BA177: 0.028 | BB177: 0 | BC177: 0 | BD177: 0.003
A178: Resurfacing | B178: RESURFACING (OVERLAY >= 4 INCHES) | C178: General Construction | D178: General Construction | E178: 3.563 | F178: Unknown | G178: $20M or more | H178: 2023-07-11 | I178: 2023 | J178: 20230711010 | K178: 1100-45-70 | L178: STATE HIGHWAY REHABILITATION | M178: SE | N178: Milwaukee | O178: IH 041 | P178: Ih 41 Airport Freeway; 84th St To 35th St (Mainline) | Q178: ZIGNEGO COMPANY, INC. | R178: 4 | S178: 59724681.2 | T178: =IFERROR(Table1[[#This Row],[Total Bid Amount]]/Table1[[#This Row],[Proposal Length]]," ") -> 16762470.17 | U178: 460.7423 | V178: HMA Pavement 3 HT 58-28 H | W178: 92940 | X178: 99.31900151 | Y178: 3 | Z178: X | AA178: 6650000 | AB178: 0.111 | AC178: 839900 | AD178: 0.014 | AE178: 0.203 | AF178: 0.172 | AG178: 0.045 | AH178: 0.005 | AI178: 0.026 | AJ178: 0.031 | AK178: 0.059 | AL178: 0.043 | AM178: 0.006 | AN178: 0.04 | AO178: 0.001 | AP178: 0.045 | AQ178: 0.003 | AR178: 0.001 | AS178: 0.004 | AT178: 0.015 | AU178: 0.014 | AV178: 0.018 | AW178: 0.01 | AX178: 0.008 | AY178: 0.014 | AZ178: 0.003 | BA178: 0.083 | BB178: 0 | BC178: 0.002 | BD178: 0.038
A179: Preservation/Restoration | B179: SEAL COAT/CRACK FILL/JOINT, CRACK OR SPOT REPAIR | C179: General Construction | D179: General and Incidental Construction | E179: 1.887 | F179: Rural | G179: $ 0.5M to $ 1M | H179: 2023-05-09 | I179: 2023 | J179: 20230509001 | K179: 1640-01-74 | L179: STATE HIGHWAY REHABILITATION | M179: SW | N179: Vernon | O179: USH 014 | P179: C Viroqua, Main Street; Brendel Ln To South Washington Ave | Q179: CHIPPEWA CONCRETE SERVICES, INC. | R179: 1 | S179: 547448.87 | T179: =IFERROR(Table1[[#This Row],[Total Bid Amount]]/Table1[[#This Row],[Proposal Length]]," ") -> 290115.9883 | AA179: 95894.83 | AB179: 0.175 | AE179: 0.069 | AF179: 0.006 | AG179: 0.013 | AH179: 0 | AI179: 0.055 | AJ179: 0.219 | AK179: 0.01 | AL179: 0.007 | AM179: 0.013 | AN179: 0.023 | AO179: 0 | AP179: 0 | AQ179: 0 | AR179: 0.004 | AS179: 0 | AT179: 0.118 | AU179: 0.233 | AV179: 0 | AW179: 0 | AX179: 0.008 | AY179: 0.008 | AZ179: 0.01 | BA179: 0 | BB179: 0.018 | BC179: 0 | BD179: 0.011
A180: Bridge Rehabilitation | B180: BRIDGE REHABILITATION | C180: General Construction | D180: Incidental Construction | E180: 0.042 | F180: Urban | G180: $ 0.5M or less | H180: 2023-05-09 | I180: 2023 | J180: 20230509002 | K180: 3997-01-74 | L180: HIGHWAY AND LOCAL BRIDGE IMPROVEMENT ASSISTANCE | M180: SW | N180: Jefferson | O180: LOC STR | P180: City of Watertown, Cady Street; Rock River Bridge P-28-0706 | Q180: ZENITH TECH., INC. - WAUKESHA | R180: 2 | S180: 313947.31 | T180: =IFERROR(Table1[[#This Row],[Total Bid Amount]]/Table1[[#This Row],[Proposal Length]]," ") -> 7474935.952 | AA180: 61500 | AB180: 0.196 | AC180: 4000 | AD180: 0.013 | AE180: 0.039 | AF180: 0.032 | AG180: 0.011 | AH180: 0 | AI180: 0.088 | AJ180: 0.028 | AK180: 0 | AL180: 0 | AM180: 0.005 | AN180: 0.015 | AO180: 0 | AP180: 0 | AQ180: 0 | AR180: 0.002 | AS180: 0 | AT180: 0.001 | AU180: 0.012 | AV180: 0.002 | AW180: 0 | AX180: 0.013 | AY180: 0.014 | AZ180: 0 | BA180: 0.5 | BB180: 0.014 | BC180: 0 | BD180: 0.03
A181: Miscellaneous | B181: MISCELLANEOUS | C181: General Construction | D181: General and Incidental Construction | E181: 0.228 | F181: Unknown | G181: $ 2M to $10M | H181: 2023-05-09 | I181: 2023 | J181: 20230509004 | K181: 1060-10-72 | L181: STATE HIGHWAY REHABILITATION | M181: SE | N181: Waukesha | O181: IH 094 | P181: IH 94 East West Freeway; Moorland I/C | Q181: VINTON CONSTRUCTION COMPANY | R181: 4 | S181: 3860563.31 | T181: =IFERROR(Table1[[#This Row],[Total Bid Amount]]/Table1[[#This Row],[Proposal Length]]," ") -> 16932295.22 | U181: 460.6224 | V181: HMA Pavement 4 MT 58-28 S | W181: 1930 | X181: 105.7072539 | Y181: 2 | AA181: 634000 | AB181: 0.164 | AC181: 40713 | AD181: 0.011 | AE181: 0.11 | AF181: 0.06 | AG181: 0.132 | AH181: 0 | AI181: 0.006 | AJ181: 0.037 | AK181: 0.119 | AL181: 0.066 | AM181: 0.017 | AN181: 0.057 | AO181: 0.001 | AP181: 0.05 | AQ181: 0.039 | AR181: 0.006 | AS181: 0.003 | AT181: 0.019 | AU181: 0.011 | AV181: 0.008 | AW181: 0.003 | AX181: 0.002 | AY181: 0.02 | AZ181: 0.004 | BA181: 0.04 | BB181: 0 | BC181: 0.005 | BD181: 0.021
A182: Traffic Operations | B182: STH - TRAFFIC OPERATIONS IMPROVEMENT BRIDGE REPAIR | C182: General Construction | D182: Incidental Construction | E182: 0 | F182: Unknown | G182: $ 2M to $10M | H182: 2023-05-09 | I182: 2023 | J182: 20230509005 | K182: 1300-15-70 | L182: HIGHWAY MAINTENANCE, REPAIR AND TRAFFIC OPERATIONS | M182: SE | N182: Milwaukee | O182: IH 794 | P182: Milwaukee - Cudahy; S Of Clybourn-N Of Lincoln Memorial | Q182: CENTURY FENCE COMPANY | R182: 1 | S182: 3073972.2 | T182: =IFERROR(Table1[[#This Row],[Total Bid Amount]]/Table1[[#This Row],[Proposal Length]]," ") ->  | AA182: 72500 | AB182: 0.024 | AC182: 22874 | AD182: 0.007 | AE182: 0.013 | AF182: 0 | AG182: 0 | AH182: 0 | AI182: 0 | AJ182: 0 | AK182: 0 | AL182: 0 | AM182: 0.002 | AN182: 0 | AO182: 0.879 | AP182: 0 | AQ182: 0 | AR182: 0 | AS182: 0 | AT182: 0 | AU182: 0.007 | AV182: 0 | AW182: 0 | AX182: 0 | AY182: 0 | AZ182: 0.001 | BA182: 0.008 | BB182: 0 | BC182: 0 | BD182: 0.066
A183: Reconstruction | B183: RECONSTRUCTION, PRESERVATION | C183: General Construction | D183: General Construction | E183: 0.256 | F183: Rural | G183: $ 2M to $10M | H183: 2023-05-09 | I183: =YEAR(H183) -> 2023 | J183: 20230509006 | K183: 1310-14-70 | L183: STATE HIGHWAY REHABILITATION | M183: SE | N183: Kenosha | O183: STH 050 | P183: Geneva Rd, Town Of Wheatland; S Cth W To 1750 Feet East | Q183: A.W. OAKES & SON, INC. | R183: 6 | S183: 4087707.45 | T183: =IFERROR(Table1[[#This Row],[Total Bid Amount]]/Table1[[#This Row],[Proposal Length]]," ") -> 15967607.23 | U183: 460.6223 | V183: HMA Pavement 3 MT 58-28 S | W183: 2199 | X183: 91.82446567 | Y183: 2 | AA183: 374000 | AB183: 0.091 | AC183: 51000 | AD183: 0.013 | AE183: 0.007 | AF183: 0.056 | AG183: 0.081 | AH183: 0.109 | AI183: 0.186 | AJ183: 0.003 | AK183: 0.043 | AL183: 0 | AM183: 0.065 | AN183: 0.075 | AO183: 0.002 | AP183: 0.022 | AQ183: 0 | AR183: 0.008 | AS183: 0 | AT183: 0.011 | AU183: 0.007 | AV183: 0.002 | AW183: 0 | AX183: 0.006 | AY183: 0.007 | AZ183: 0.005 | BA183: 0.173 | BB183: 0.003 | BC183: 0 | BD183: 0.037
A184: Pavement Replacement | B184: PAVEMENT REPLACEMENT | C184: General Construction | D184: General Construction | E184: 0.188 | F184: Unknown | G184: $ 1M to $ 2M | H184: 2023-05-09 | I184: =YEAR(H184) -> 2023 | J184: 20230509008 | K184: 2015-10-71 | L184: STATE HIGHWAY REHABILITATION | M184: SE | N184: Milwaukee | O184: STH 119 | P184: General Mitchell Airport Spur; Sth 119 At Howell Ave | Q184: ZENITH TECH., INC. - WAUKESHA | R184: 4 | S184: 1683383.83 | T184: =IFERROR(Table1[[#This Row],[Total Bid Amount]]/Table1[[#This Row],[Proposal Length]]," ") -> 8954169.309 | U184: 460.6424 | V184: HMA Pavement 4 MT 58-28 H | W184: 523 | X184: 98 | Y184: 1 | AA184: 85700.87 | AB184: 0.051 | AC184: 16000 | AD184: 0.01 | AE184: 0.052 | AF184: 0.069 | AG184: 0.152 | AH184: 0 | AI184: 0.219 | AJ184: 0.048 | AK184: 0.031 | AL184: 0.043 | AM184: 0.025 | AN184: 0.102 | AO184: 0 | AP184: 0.011 | AQ184: 0.012 | AR184: 0.004 | AS184: 0 | AT184: 0.044 | AU184: 0.023 | AV184: 0.01 | AW184: 0 | AX184: 0.027 | AY184: 0.007 | AZ184: 0.007 | BA184: 0 | BB184: 0.002 | BC184: 0 | BD184: 0.062
A185: Resurfacing | B185: RESURFACING (OVERLAY >= 4 INCHES) | C185: Asphaltic Pavement | D185: General Const and Asphaltic Surfacing | E185: 5.35 | F185: Unknown | G185: $10M to $20M | H185: 2023-05-09 | I185: 2023 | J185: 20230509010 | K185: 2200-20-70 | L185: STATE HIGHWAY REHABILITATION | M185: SE | N185: Waukesha | O185: USH 018 | P185: Bluemound Road IH 94 to East County Line | Q185: STARK PAVEMENT CORPORATION | R185: 2 | S185: 15697739.54 | T185: =IFERROR(Table1[[#This Row],[Total Bid Amount]]/Table1[[#This Row],[Proposal Length]]," ") -> 2934156.923 | U185: 460.6223 | V185: HMA Pavement 3 MT 58-28 S | W185: 86654 | X185: 75.66492026 | Y185: 2 | Z185: X | AA185: 648702.43 | AB185: 0.041 | AC185: 424000 | AD185: 0.027 | AE185: 0.03 | AF185: 0.469 | AG185: 0.076 | AH185: 0 | AI185: 0.004 | AJ185: 0.043 | AK185: 0.008 | AL185: 0.099 | AM185: 0.004 | AN185: 0.012 | AO185: 0 | AP185: 0 | AQ185: 0 | AR185: 0.001 | AS185: 0 | AT185: 0.025 | AU185: 0.067 | AV185: 0.063 | AW185: 0 | AX185: 0 | AY185: 0.009 | AZ185: 0.001 | BA185: 0 | BB185: 0.005 | BC185: 0.005 | BD185: 0.037
A186: Resurfacing | B186: RESURFACING (OVERLAY >= 4 INCHES) | C186: Asphaltic Pavement | D186: General Const and Asphaltic Surfacing | E186: 4.865 | F186: Unknown | G186: $ 2M to $10M | H186: 2023-05-09 | I186: =YEAR(H186) -> 2023 | J186: 20230509011 | K186: 2210-12-70 | L186: STATE HIGHWAY REHABILITATION | M186: SE | N186: Waukesha | O186: USH 018 | P186: Summit Ave, Town Delafield; Sth 83 To Sth 318 | Q186: ROCK ROAD COMPANIES, INC. | R186: 3 | S186: 3510997.24 | T186: =IFERROR(Table1[[#This Row],[Total Bid Amount]]/Table1[[#This Row],[Proposal Length]]," ") -> 721684.9414 | U186: 460.6223 | V186: HMA Pavement 3 MT 58-28 S | W186: 30250 | X186: 58.8231405 | Y186: 2 | Z186: X | AA186: 145533.86 | AB186: 0.041 | AC186: 11500 | AD186: 0.003 | AE186: 0.055 | AF186: 0.548 | AG186: 0.01 | AH186: 0 | AI186: 0 | AJ186: 0.019 | AK186: 0.028 | AL186: 0.04 | AM186: 0.023 | AN186: 0.014 | AO186: 0 | AP186: 0.066 | AQ186: 0 | AR186: 0.003 | AS186: 0.001 | AT186: 0.054 | AU186: 0.037 | AV186: 0.005 | AW186: 0.004 | AX186: 0 | AY186: 0.009 | AZ186: 0.003 | BA186: 0.006 | BB186: 0.004 | BC186: 0.019 | BD186: 0.011
A187: Preservation/Restoration | B187: SHORT TERM OVERLAY (MILL AND OVERLAY) | C187: General Construction | D187: General Construction | E187: 4.818 | F187: Rural | G187: $ 2M to $10M | H187: 2023-05-09 | I187: 2023 | J187: 20230509012 | K187: 2290-24-70 | L187: STATE HIGHWAY REHABILITATION | M187: SE | N187: Racine | O187: STH 038 | P187: Caledonia - Oak Creek; Linwood Rd To E Oakwood Rd | Q187: PAYNE AND DOLAN, INC | R187: 2 | S187: 3974760.28 | T187: =IFERROR(Table1[[#This Row],[Total Bid Amount]]/Table1[[#This Row],[Proposal Length]]," ") -> 824981.3782 | U187: 460.6224 | V187: HMA Pavement 4 MT 58-28 S | W187: 14070 | X187: 63.72 | Y187: 1 | Z187: X | AA187: 68851.6 | AB187: 0.017 | AC187: 18500 | AD187: 0.005 | AE187: 0.116 | AF187: 0.257 | AG187: 0.045 | AH187: 0 | AI187: 0 | AJ187: 0.012 | AK187: 0.029 | AL187: 0.243 | AM187: 0.024 | AN187: 0.019 | AO187: 0 | AP187: 0.012 | AQ187: 0 | AR187: 0.002 | AS187: 0.006 | AT187: 0.051 | AU187: 0.041 | AV187: 0.038 | AW187: 0.01 | AX187: 0 | AY187: 0.023 | AZ187: 0.013 | BA187: 0.009 | BB187: 0 | BC187: 0.02 | BD187: 0.014
A188: Resurfacing | B188: RESURF (OVERLAY < 2.5 IN W/SOME FULL DEPTH PATCHG) | C188: General Construction | D188: General Construction | E188: 3.349 | F188: Rural | G188: $10M to $20M | H188: 2023-05-09 | I188: 2023 | J188: 20230509013 | K188: 2340-00-79 | L188: STATE HIGHWAY REHABILITATION | M188: SE | N188: Racine | O188: STH 020 | P188: East Troy - Racine Honey Creek Road to Buena Park Road | Q188: PAYNE AND DOLAN, INC | R188: 6 | S188: 12958562.06 | T188: =IFERROR(Table1[[#This Row],[Total Bid Amount]]/Table1[[#This Row],[Proposal Length]]," ") -> 3869382.52 | U188: 460.6224 | V188: HMA Pavement 4 MT 58-28 S | W188: 43949 | X188: 69.82470432 | Y188: 2 | Z188: X | AA188: 356200.33 | AB188: 0.027 | AC188: 82222.22 | AD188: 0.006 | AE188: 0.11 | AF188: 0.261 | AG188: 0.152 | AH188: 0 | AI188: 0.003 | AJ188: 0.042 | AK188: 0.081 | AL188: 0.025 | AM188: 0.037 | AN188: 0.084 | AO188: 0 | AP188: 0.024 | AQ188: 0 | AR188: 0.005 | AS188: 0 | AT188: 0.023 | AU188: 0.028 | AV188: 0.012 | AW188: 0 | AX188: 0.013 | AY188: 0.012 | AZ188: 0.013 | BA188: 0.019 | BB188: 0.006 | BC188: 0.004 | BD188: 0.016
A189: Resurfacing | B189: RESURF (OVERLAY >= 4 IN DOES NOT INCREASE PROFILE) | C189: General Construction | D189: General Construction | E189: 0.347 | F189: Unknown | G189: $ 1M to $ 2M | H189: 2023-05-09 | I189: =YEAR(H189) -> 2023 | J189: 20230509014 | K189: 2450-00-73 | L189: STATE HIGHWAY REHABILITATION | M189: SE | N189: Waukesha | O189: STH 059 | P189: T Genesee, Genesee Rd Saylesville Creek to Rockwood Trail | Q189: ROCK ROAD COMPANIES, INC. | R189: 5 | S189: 1870562.1 | T189: =IFERROR(Table1[[#This Row],[Total Bid Amount]]/Table1[[#This Row],[Proposal Length]]," ") -> 5390668.876 | U189: 460.6223 | V189: HMA Pavement 3 MT 58-28 S | W189: 4398 | X189: 71.69907231 | Y189: 2 | AA189: 212559.95 | AB189: 0.114 | AC189: 17000 | AD189: 0.009 | AE189: 0.036 | AF189: 0.187 | AG189: 0.168 | AH189: 0 | AI189: 0.003 | AJ189: 0.012 | AK189: 0.072 | AL189: 0.067 | AM189: 0.031 | AN189: 0.138 | AO189: 0 | AP189: 0.015 | AQ189: 0 | AR189: 0.007 | AS189: 0.001 | AT189: 0.051 | AU189: 0.026 | AV189: 0.02 | AW189: 0 | AX189: 0.001 | AY189: 0.003 | AZ189: 0.004 | BA189: 0 | BB189: 0.01 | BC189: 0.014 | BD189: 0.023
A190: Resurfacing | B190: RESURFACING (OVERLAY >= 4 INCHES) | C190: Asphaltic Pavement | D190: General Const and Asphaltic Surfacing | E190: 4.867 | F190: Unknown | G190: $ 2M to $10M | H190: 2023-05-09 | I190: 2023 | J190: 20230509015 | K190: 3380-06-70 | L190: STATE HIGHWAY REHABILITATION | M190: SE | N190: Kenosha | O190: STH 083 | P190: Antioch Rd, Antioch - Burlington | Q190: PAYNE AND DOLAN, INC | R190: 2 | S190: 5435125.98 | T190: =IFERROR(Table1[[#This Row],[Total Bid Amount]]/Table1[[#This Row],[Proposal Length]]," ") -> 1116730.22 | U190: 460.6223 | V190: HMA Pavement 3 MT 58-28 S | W190: 43240 | X190: 68.77823774 | Y190: 2 | Z190: X | AA190: 156834 | AB190: 0.029 | AC190: 89898.99 | AD190: 0.017 | AE190: 0.04 | AF190: 0.603 | AG190: 0.009 | AH190: 0 | AI190: 0 | AJ190: 0.027 | AK190: 0.023 | AL190: 0.049 | AM190: 0.01 | AN190: 0.003 | AO190: 0 | AP190: 0 | AQ190: 0 | AR190: 0.001 | AS190: 0.001 | AT190: 0.043 | AU190: 0.046 | AV190: 0.045 | AW190: 0 | AX190: 0 | AY190: 0.012 | AZ190: 0.009 | BA190: 0.001 | BB190: 0.005 | BC190: 0.013 | BD190: 0.031
A191: Resurfacing | B191: RESURFACING (OVERLAY >= 2.5 INCHES AND < 4 INCHES) | C191: Asphaltic Pavement | D191: General Const and Asphaltic Surfacing | E191: 9.737 | F191: Rural | G191: $ 2M to $10M | H191: 2023-05-09 | I191: 2023 | J191: 20230509016 | K191: 3694-00-71 | L191: STATE HIGHWAY REHABILITATION | M191: SE | N191: Walworth | O191: STH 120 | P191: Hebron - East Troy; Sth 36 To O'Leary Ln | Q191: ROCK ROAD COMPANIES, INC. | R191: 3 | S191: 5577207.83 | T191: =IFERROR(Table1[[#This Row],[Total Bid Amount]]/Table1[[#This Row],[Proposal Length]]," ") -> 572785.0293 | U191: 460.5224 | V191: HMA Pavement 4 LT 58-28 S | W191: 32290 | X191: 64 | Y191: 1 | Z191: X | AA191: 224761.43 | AB191: 0.04 | AC191: 21000 | AD191: 0.004 | AE191: 0.198 | AF191: 0.411 | AG191: 0.016 | AH191: 0 | AI191: 0.077 | AJ191: 0.011 | AK191: 0.008 | AL191: 0 | AM191: 0.023 | AN191: 0.008 | AO191: 0.008 | AP191: 0.043 | AQ191: 0 | AR191: 0.003 | AS191: 0 | AT191: 0.014 | AU191: 0.034 | AV191: 0.027 | AW191: 0 | AX191: 0 | AY191: 0.012 | AZ191: 0.006 | BA191: 0.041 | BB191: 0.004 | BC191: 0 | BD191: 0.017
A192: Resurfacing | B192: RESURFACING (OVERLAY >= 4 INCHES) | C192: Asphaltic Pavement | D192: Asphaltic Surfacing | E192: 3.688 | F192: Rural | G192: $ 2M to $10M | H192: 2023-05-09 | I192: 2023 | J192: 20230509017 | K192: 1491-22-71 | L192: STATE HIGHWAY REHABILITATION | M192: NE | N192: Marinette | O192: USH 141 | P192: Wausaukee-Niagara; Cth Z-Cth R | Q192: NORTHEAST ASPHALT, INC | R192: 1 | S192: 2354927.5 | T192: =IFERROR(Table1[[#This Row],[Total Bid Amount]]/Table1[[#This Row],[Proposal Length]]," ") -> 638537.8254 | U192: 460.6223 | V192: HMA Pavement 3 MT 58-28 S | W192: 21344 | X192: 63.99642991 | Y192: 2 | AA192: 205000 | AB192: 0.087 | AC192: 22350 | AD192: 0.01 | AE192: 0.007 | AF192: 0.613 | AG192: 0.026 | AH192: 0 | AI192: 0.001 | AJ192: 0.012 | AK192: 0.006 | AL192: 0 | AM192: 0.01 | AN192: 0.013 | AO192: 0 | AP192: 0.036 | AQ192: 0 | AR192: 0.001 | AS192: 0 | AT192: 0.028 | AU192: 0.029 | AV192: 0.098 | AW192: 0 | AX192: 0 | AY192: 0.007 | AZ192: 0.001 | BA192: 0 | BB192: 0.002 | BC192: 0 | BD192: 0.024
A193: Resurfacing | B193: RESURFACING (OVERLAY >= 2.5 INCHES AND < 4 INCHES) | C193: Asphaltic Pavement | D193: General Const and Asphaltic Surfacing | E193: 11.7 | F193: Rural | G193: $ 2M to $10M | H193: 2023-05-09 | I193: 2023 | J193: 20230509018 | K193: 1491-23-71 | L193: STATE HIGHWAY REHABILITATION | M193: NE | N193: Marinette | O193: USH 141 | P193: Pembine - Niagara; Ush 8 - Scpl Niagara | Q193: NORTHEAST ASPHALT, INC | R193: 1 | S193: 5118927 | T193: =IFERROR(Table1[[#This Row],[Total Bid Amount]]/Table1[[#This Row],[Proposal Length]]," ") -> 437515.1282 | U193: 460.6224 | V193: HMA Pavement 4 MT 58-28 S | W193: 38957 | X193: 67.37691814 | Y193: 2 | Z193: X | AA193: 225000 | AB193: 0.044 | AC193: 15000 | AD193: 0.003 | AE193: 0.025 | AF193: 0.633 | AG193: 0.032 | AH193: 0 | AI193: 0 | AJ193: 0 | AK193: 0.011 | AL193: 0 | AM193: 0.012 | AN193: 0.009 | AO193: 0 | AP193: 0.04 | AQ193: 0 | AR193: 0.001 | AS193: 0 | AT193: 0.035 | AU193: 0.059 | AV193: 0.062 | AW193: 0 | AX193: 0 | AY193: 0.004 | AZ193: 0 | BA193: 0 | BB193: 0.001 | BC193: 0 | BD193: 0.032
A194: Bridge Replacement | B194: BRIDGE REPLACEMENT, PRESERVATION | C194: Structures | D194: General Const and Highway Structures | E194: 0.04 | F194: Unknown | G194: $ 1M to $ 2M | H194: 2023-05-09 | I194: 2023 | J194: 20230509019 | K194: 4986-12-71 | L194: HIGHWAY AND LOCAL BRIDGE IMPROVEMENT ASSISTANCE | M194: NE | N194: Fond Du Lac | O194: LOC STR | P194: C Fond du Lac, W Division St; W Br Fond du Lac River Bridg | Q194: SHEET PILING SERVICES LLC | R194: 4 | S194: 1892216.53 | T194: =IFERROR(Table1[[#This Row],[Total Bid Amount]]/Table1[[#This Row],[Proposal Length]]," ") -> 47305413.25 | AA194: 125571 | AB194: 0.066 | AC194: 3550 | AD194: 0.002 | AE194: 0.155 | AF194: 0.008 | AG194: 0.005 | AH194: 0.006 | AI194: 0.034 | AJ194: 0.014 | AK194: 0.033 | AL194: 0.002 | AM194: 0.01 | AN194: 0.063 | AO194: 0 | AP194: 0 | AQ194: 0 | AR194: 0 | AS194: 0 | AT194: 0.032 | AU194: 0.002 | AV194: 0 | AW194: 0.119 | AX194: 0.002 | AY194: 0.005 | AZ194: 0 | BA194: 0.437 | BB194: 0.004 | BC194: 0 | BD194: 0.005
A195: Reconstruction | B195: RECONSTRUCTION, PRESERVATION | C195: General Construction | D195: General Construction | E195: 0.24 | F195: Urban | G195: $ 1M to $ 2M | H195: 2023-05-09 | I195: 2023 | J195: 20230509021 | K195: 6995-12-70 | L195: LOCAL TRANSPORTATION FACILITY IMPROVEMENT ASSISTANCE | M195: NC | N195: Wood | O195: LOC STR | P195: C Marshfield, S Lincoln Avenue; West 5th St To Adler Rd | Q195: EARTH, INC. | R195: 2 | S195: 1794962.69 | T195: =IFERROR(Table1[[#This Row],[Total Bid Amount]]/Table1[[#This Row],[Proposal Length]]," ") -> 7479011.208 | AA195: 100000 | AB195: 0.056 | AC195: 2500 | AD195: 0.001 | AE195: 0.346 | AF195: 0.022 | AG195: 0.07 | AH195: 0 | AI195: 0.176 | AJ195: 0.068 | AK195: 0.102 | AL195: 0 | AM195: 0.031 | AN195: 0.066 | AO195: 0 | AP195: 0 | AQ195: 0 | AR195: 0.002 | AS195: 0 | AT195: 0.017 | AU195: 0.012 | AV195: 0.002 | AW195: 0.011 | AX195: 0.001 | AY195: 0.005 | AZ195: 0.003 | BA195: 0 | BB195: 0.008 | BC195: 0 | BD195: 0.003
A196: Bridge Rehabilitation | B196: BRIDGE REHABILITATION | C196: Structures | D196: General Const and Highway Structures | E196: 0.44 | F196: Urban | G196: $ 2M to $10M | H196: 2023-05-09 | I196: 2023 | J196: 20230509022 | K196: 1023-01-74 | L196: STATE HIGHWAY REHABILITATION | M196: NW | N196: Jackson | O196: IH 094 | P196: Black River Falls-Tomah B-27-39 & 43 EB/B-27-40 & 044 WB | Q196: LUNDA CONSTRUCTION COMPANY | R196: 2 | S196: 5195704.9 | T196: =IFERROR(Table1[[#This Row],[Total Bid Amount]]/Table1[[#This Row],[Proposal Length]]," ") -> 11808420.23 | U196: 460.7425 | V196: HMA Pavement 5 HT 58-28 H | W196: 1044 | X196: 151.24 | Y196: 1 | AA196: 713070.56 | AB196: 0.137 | AC196: 158000 | AD196: 0.03 | AE196: 0.013 | AF196: 0.08 | AG196: 0.055 | AH196: 0.058 | AI196: 0.033 | AJ196: 0.004 | AK196: 0.01 | AL196: 0 | AM196: 0.021 | AN196: 0.06 | AO196: 0 | AP196: 0.028 | AQ196: 0 | AR196: 0.004 | AS196: 0 | AT196: 0.013 | AU196: 0.033 | AV196: 0.003 | AW196: 0.067 | AX196: 0.003 | AY196: 0.002 | AZ196: 0.002 | BA196: 0.296 | BB196: 0.002 | BC196: 0 | BD196: 0.074
A197: Pavement Replacement | B197: PAVEMENT REPLACEMENT | C197: Concrete Pavement | D197: General Construction and PCC Pavement | E197: 7.732 | F197: Rural | G197: $20M or more | H197: 2023-05-09 | I197: =YEAR(H197) -> 2023 | J197: 20230509023 | K197: 1198-10-77 | L197: STATE HIGHWAY REHABILITATION | M197: NW | N197: Barron | O197: USH 053 | P197: Rice Lake - Spooner; 26th Ave To Pine Grove Rd (Nb & Sb) | Q197: HOFFMAN CONSTRUCTION COMPANY | R197: 4 | S197: 21897579.23 | T197: =IFERROR(Table1[[#This Row],[Total Bid Amount]]/Table1[[#This Row],[Proposal Length]]," ") -> 2832071.809 | U197: 460.6224 | V197: HMA Pavement 4 MT 58-28 S | W197: 24550 | X197: 113.5131894 | Y197: 2 | AA197: 1892194.23 | AB197: 0.086 | AC197: 286600 | AD197: 0.013 | AE197: 0.038 | AF197: 0.162 | AG197: 0 | AH197: 0 | AI197: 0.422 | AJ197: 0.002 | AK197: 0.023 | AL197: 0 | AM197: 0.007 | AN197: 0.09 | AO197: 0.014 | AP197: 0.017 | AQ197: 0 | AR197: 0.002 | AS197: 0 | AT197: 0.006 | AU197: 0.026 | AV197: 0 | AW197: 0 | AX197: 0.049 | AY197: 0.005 | AZ197: 0.005 | BA197: 0.001 | BB197: 0.005 | BC197: 0 | BD197: 0.038
A198: Bridge Replacement | B198: BRIDGE REPLACEMENT, PRESERVATION | C198: Structures | D198: Highway Structures | E198: 0.037 | F198: Rural | G198: $ 0.5M to $ 1M | H198: 2023-05-09 | I198: =YEAR(H198) -> 2023 | J198: 20230509024 | K198: 7146-00-74 | L198: HIGHWAY AND LOCAL BRIDGE IMPROVEMENT ASSISTANCE | M198: NW | N198: Trempealeau | O198: CTH D | P198: USH 53 - STH 95, French Creek Bridge B-61-255 | Q198: LARSON CONSTRUCTION CO., INC. | R198: 5 | S198: 771232.35 | T198: =IFERROR(Table1[[#This Row],[Total Bid Amount]]/Table1[[#This Row],[Proposal Length]]," ") -> 20844117.57 | AA198: 39838.8 | AB198: 0.052 | AC198: 2900 | AD198: 0.004 | AE198: 0.02 | AF198: 0.018 | AG198: 0.032 | AH198: 0 | AI198: 0.061 | AJ198: 0 | AK198: 0.002 | AL198: 0 | AM198: 0.03 | AN198: 0.05 | AO198: 0 | AP198: 0.044 | AQ198: 0 | AR198: 0.002 | AS198: 0 | AT198: 0.011 | AU198: 0.006 | AV198: 0 | AW198: 0.026 | AX198: 0 | AY198: 0.001 | AZ198: 0.001 | BA198: 0.633 | BB198: 0.004 | BC198: 0 | BD198: 0.005
A199: Resurfacing | B199: RESURFACING (OVERLAY >= 2.5 INCHES AND < 4 INCHES) | C199: Asphaltic Pavement | D199: General Const and Asphaltic Surfacing | E199: 2.052 | F199: Rural | G199: $ 2M to $10M | H199: 2023-05-09 | I199: 2023 | J199: 20230509025 | K199: 7170-00-75 | L199: STATE HIGHWAY REHABILITATION | M199: NW | N199: Buffalo | O199: STH 025 | P199: Wabasha - Durand, MN/WI St Ln to 100' S of STH 35 S | Q199: MONARCH PAVING COMPANY | R199: 1 | S199: 2224274.72 | T199: =IFERROR(Table1[[#This Row],[Total Bid Amount]]/Table1[[#This Row],[Proposal Length]]," ") -> 1083954.542 | U199: 460.6645 | V199: HMA Pavement 5 MT 58-34 V | W199: 8060 | X199: 106.5 | Y199: 1 | AA199: 322000 | AB199: 0.145 | AC199: 9000 | AD199: 0.004 | AE199: 0.01 | AF199: 0.467 | AG199: 0.016 | AH199: 0 | AI199: 0.045 | AJ199: 0.001 | AK199: 0 | AL199: 0.02 | AM199: 0.001 | AN199: 0.007 | AO199: 0 | AP199: 0.046 | AQ199: 0 | AR199: 0 | AS199: 0 | AT199: 0.017 | AU199: 0.036 | AV199: 0.072 | AW199: 0 | AX199: 0.009 | AY199: 0.002 | AZ199: 0.001 | BA199: 0.066 | BB199: 0 | BC199: 0 | BD199: 0.037
A200: Bridge Rehabilitation | B200: BRIDGE REHABILITATION | C200: Structures | D200: General Const and Highway Structures | E200: 0.088 | F200: Urban | G200: $ 1M to $ 2M | H200: 2023-05-09 | I200: 2023 | J200: 20230509028 | K200: 7900-00-70 | L200: HIGHWAY AND LOCAL BRIDGE IMPROVEMENT ASSISTANCE | M200: NW | N200: St Croix | O200: LOC STR | P200: C River Falls, Powell Ave, Kinnickinnic River Bridg | Q200: LARSON CONSTRUCTION CO., INC. | R200: 5 | S200: 1003625.01 | T200: =IFERROR(Table1[[#This Row],[Total Bid Amount]]/Table1[[#This Row],[Proposal Length]]," ") -> 11404829.66 | AA200: 133633 | AB200: 0.133 | AC200: 2340 | AD200: 0.002 | AE200: 0.008 | AF200: 0.039 | AG200: 0.026 | AH200: 0.012 | AI200: 0.066 | AJ200: 0.009 | AK200: 0.037 | AL200: 0 | AM200: 0.014 | AN200: 0.04 | AO200: 0 | AP200: 0.025 | AQ200: 0 | AR200: 0.003 | AS200: 0 | AT200: 0.012 | AU200: 0.004 | AV200: 0 | AW200: 0.151 | AX200: 0 | AY200: 0.005 | AZ200: 0.001 | BA200: 0.405 | BB200: 0.004 | BC200: 0 | BD200: 0.004
... 925 more rows
